Business Unit Description,Expense Code,Expense Code Description,GL Date,Document No.,Invoice No.,Invoiced Value,Supplier Name,Address Book No.,Proclass Details Level 1,Thomson Classification Description
MINIBUSES - TENDERED          ,7060,EXTERNAL VEHICLE HIRE         ,02/01/2014,3575401,43356,6907.92,MINIBUS MASTER                          ,586794,Transport,TAXIS & PRIVATE HIRE          
CARE PROCEEDINGS (LEGAL FEES) ,8470,LEGAL FEES                    ,02/01/2014,3571105,12742,289.42,PARSONS DOWD PSYCHOLOGICAL LTD          ,563972,Medical ,PSYCHOLOGISTS                 
SHEFFIELD HOMES HR            ,8460,CONSULTANTS FEES              ,02/01/2014,3575070,106763,3280.10,HEALTH MANAGEMENT LTD                   ,531359,Medical ,OCCUPATIONAL HEALTH           
NORTH EAST                    ,9120,OTHER AGENCIES                ,02/01/2014,3575096,2419,600.00,BURNGREAVE MESSENGER LTD                ,301418,Education,NEWSPAPER & MAGAZINE PUBLISHER
SAFER COMMUNITIES PARTNERSHIP ,8440,FEE EXPENSES                  ,02/01/2014,3575379,90357177,547.00,AMEY LG LTD                             ,578587,Construction,ROAD CONSTRUCTION CONTRACTORS 
CARE PROCEEDINGS (LEGAL FEES) ,8470,LEGAL FEES                    ,02/01/2014,3575480,ERS INVOICE94842         ,840.37,NAVJOT AHLUAWALIA PARTNERSHIP LIMITED   ,424561,Medical ,PSYCHIATRISTS                 
CARE PROCEEDINGS (LEGAL FEES) ,8470,LEGAL FEES                    ,02/01/2014,3575481,ERS INVOICE94843         ,880.87,NAVJOT AHLUAWALIA PARTNERSHIP LIMITED   ,424561,Medical ,PSYCHIATRISTS                 
MINOR WORKS & ADAPTATIONS     ,6020,REPAIRS AND MTCE - PROGRAMMED ,02/01/2014,3575483,ERS INVOICE94845         ,5320.00,NEIL MARRISON                           ,459864,Construction,BUILDING SERVICES             
CARE PROCEEDINGS (LEGAL FEES) ,8470,LEGAL FEES                    ,02/01/2014,3575569,ERS INVOICE94847         ,664.50,THE FORENSIC PSYCHOLOGY AGENCY LTD.     ,430472,Medical ,PSYCHOLOGISTS                 
IN HOUSE FOSTER PLACEMENT     ,9270,IN-HOUSE FOSTERING            ,02/01/2014,3575570,ERS INVOICE94848         ,300.00,REDACTED PERSONAL DATA,587757,Unclassified Non Trade,OUT OF SCOPE FOR SIC MONITORIN
ARBOURTHORNE 5M'S REFURB      ,1143,COMPENSATION                  ,02/01/2014,3575571,ERS INVOICE94850         ,4700.00,REDACTED PERSONAL DATA,591065,Unclassified Non Trade,OUT OF SCOPE FOR SIC MONITORIN
THE MOOR INDOOR MARKET        ,6030,REPAIRS AND MTCE - RESPONSIVE ,02/01/2014,3554631,P03626208                ,417.97,ARNOLD LAVER DIY LTD                    ,203047,Building Construction Materials,"TIMBER MERCHANTS, IMPORTERS & "
CAR PARKING MANAGEMENT        ,8370,PRINTING                      ,02/01/2014,3556062,218641,1360.00,NAGELS UK LIMITED                       ,413367,Facilities Management,PRINTERS                      
CAR PARKING MANAGEMENT        ,8370,PRINTING                      ,02/01/2014,3567101,218802,2050.00,NAGELS UK LIMITED                       ,413367,Facilities Management,PRINTERS                      
CAR PARKING MANAGEMENT        ,8010,EQUIPMENT PURCHASE AND REPAIR ,02/01/2014,3567109,133968,1410.00,H HARROLD & SONS LTD                    ,205285,Facilities Management,LOCK SMITHS                   
INDEPENDENT PLACEMENTS        ,9310,EDUCATIONAL OR JOINT PLACEMENT,02/01/2014,3567902,13/3279                  ,1321.75,PACES SHEFFIELD LIMITED                 ,295794,Social Community Care,RESIDENTIAL CARE HOMES        
INDEPENDENT PLACEMENTS        ,9310,EDUCATIONAL OR JOINT PLACEMENT,02/01/2014,3567903,13/3280                  ,1321.75,PACES SHEFFIELD LIMITED                 ,295794,Social Community Care,RESIDENTIAL CARE HOMES        
INDEPENDENT PLACEMENTS        ,9310,EDUCATIONAL OR JOINT PLACEMENT,02/01/2014,3567904,13/3281                  ,1321.75,PACES SHEFFIELD LIMITED                 ,295794,Social Community Care,RESIDENTIAL CARE HOMES        
INDEPENDENT PLACEMENTS        ,9310,EDUCATIONAL OR JOINT PLACEMENT,02/01/2014,3567905,13/3282                  ,1321.75,PACES SHEFFIELD LIMITED                 ,295794,Social Community Care,RESIDENTIAL CARE HOMES        
INDEPENDENT PLACEMENTS        ,9310,PARENTAL OR TRIBUNAL PLACEMENT,02/01/2014,3567976,13/3277                  ,568.89,PACES SHEFFIELD LIMITED                 ,295794,Social Community Care,RESIDENTIAL CARE HOMES        
INDEPENDENT PLACEMENTS        ,9310,EDUCATIONAL OR JOINT PLACEMENT,02/01/2014,3567978,13/3278                  ,945.43,PACES SHEFFIELD LIMITED                 ,295794,Social Community Care,RESIDENTIAL CARE HOMES        
INDEPENDENT PLACEMENTS        ,9310,EDUCATIONAL OR JOINT PLACEMENT,02/01/2014,3567980,13/3276                  ,1321.75,PACES SHEFFIELD LIMITED                 ,295794,Social Community Care,RESIDENTIAL CARE HOMES        
INDEPENDENT PLACEMENTS        ,9310,EDUCATIONAL OR JOINT PLACEMENT,02/01/2014,3567982,13/3275                  ,945.43,PACES SHEFFIELD LIMITED                 ,295794,Social Community Care,RESIDENTIAL CARE HOMES        
INDEPENDENT PLACEMENTS        ,9310,PARENTAL OR TRIBUNAL PLACEMENT,02/01/2014,3567984,13/3274                  ,1321.75,PACES SHEFFIELD LIMITED                 ,295794,Social Community Care,RESIDENTIAL CARE HOMES        
INDEPENDENT PLACEMENTS        ,9310,EDUCATIONAL OR JOINT PLACEMENT,02/01/2014,3567985,13/3273                  ,1321.75,PACES SHEFFIELD LIMITED                 ,295794,Social Community Care,RESIDENTIAL CARE HOMES        
INDEPENDENT PLACEMENTS        ,9310,EDUCATIONAL OR JOINT PLACEMENT,02/01/2014,3567987,13/3272                  ,1321.75,PACES SHEFFIELD LIMITED                 ,295794,Social Community Care,RESIDENTIAL CARE HOMES        
INDEPENDENT PLACEMENTS        ,9310,PARENTAL OR TRIBUNAL PLACEMENT,02/01/2014,3567989,13/3271                  ,1321.75,PACES SHEFFIELD LIMITED                 ,295794,Social Community Care,RESIDENTIAL CARE HOMES        
LOWFIELD                      ,8010,EQUIPMENT PURCHASE AND REPAIR ,02/01/2014,3568122,SIN404808                ,387.24,POWERHOUSE FITNESS LTD                  ,508929,Sports & Playground,SPORTS EQUIPMENT MNFRS & DISTR
CITY DEAL                     ,9120,OTHER AGENCIES                ,02/01/2014,3568624,SINV.28760               ,5391.00,CHESTERFIELD COLLEGE                    ,317687,Unclassified Non Trade,SCHOOLS & COLLEGES - FURTHER E
HME                           ,6030,REPAIRS TO TENANTED PROPERTIES,02/01/2014,3569419,SSH/CAPITAL/234/13/14    ,3037.74,TELSTAR SECURITY                        ,299814,Facilities Management,SECURITY EQUIPMENT            
DECRIMINALISED PARKING        ,8440,FEE EXPENSES                  ,02/01/2014,3569421,25464,861.60,IMPERIAL CIVIL ENFORCEMENT SOLUTIONS    ,556259,Consultancy,COMPUTER CONSULTANTS          
SUPPORTED HOUSING             ,8050,ELECTRICAL GOODS              ,02/01/2014,3569490,CMD2370645               ,339.00,DOMESTIC APPLIANCE DISTRIBUTORS         ,527171,Domestic Goods,ELECTRICAL GOODS - SALES      
PEST CONTROL                  ,8010,EQUIPMENT PURCHASE AND REPAIR ,02/01/2014,3569559,133406,739.12,SX ENVIRONMENTAL SUPPLIES LTD           ,306758,Environmental Services,PEST & VERMIN CONTROL PRODUCTS
DISADVANTAGED AREA FUNDING    ,9120,OTHER AGENCIES                ,02/01/2014,3570763,5042666,1000.00,TCV EMPLOYMENT & TRAINING SRVS          ,316075,Environmental Services,CONSERVATION ORGANISATIONS    
LDD SPECIALIST PLACEMENTS     ,8390,STATIONERY                    ,02/01/2014,3570828,SINV00260918             ,349.74,R A ROBERTS (OFFICE EQUIPMENT) LTD      ,207777,Furniture,OFFICE FURNITURE & EQUIPMENT  
LICENSING                     ,8390,STATIONERY                    ,02/01/2014,3571046,SINV00260828             ,767.00,R A ROBERTS (OFFICE EQUIPMENT) LTD      ,207777,Furniture,OFFICE FURNITURE & EQUIPMENT  
DISADVANTAGED AREA FUNDING    ,8440,FEE EXPENSES                  ,02/01/2014,3571054,1077,10000.00,SHEFFIELD CAB DEBT SUPPORT UNIT         ,330174,Unclassified Non Trade,CHARITIES & VOLUNTARY ORGANISA
DISADVANTAGED AREA FUNDING    ,9120,OTHER AGENCIES                ,02/01/2014,3571060,23440,1000.00,CATCH22 - NCAS                          ,487933,Unclassified Non Trade,CHARITIES & VOLUNTARY ORGANISA
CITY WIDE CHILD CARE CONTRACT ,8440,FEE EXPENSES                  ,02/01/2014,3571483,R81IN1/00005301          ,10251.81,ACTION FOR CHILDREN                     ,326212,Unclassified Non Trade,CHARITIES & VOLUNTARY ORGANISA
ELECTORAL REGISTRATION        ,8400,PUBLICATIONS AND PERIODICALS  ,02/01/2014,3571567,801755835,290.00, THOMSON REUTERS                        ,340190,Human Resources,INFORMATION SERVICES          
SCHEME DESIGN                 ,8380,PHOTOCOPYING                  ,02/01/2014,3571571,1107580816,271.26,KONICA MINOLTA BUSINESS SOLUTIONS       ,375732,ICT,PHOTOCOPIERS                  
CITY DEAL                     ,9120,OTHER AGENCIES                ,02/01/2014,3571598,T131                     ,5391.00,THE EMPLOYERS FORUM                     ,353566,Unclassified Non Trade,CHARITIES & VOLUNTARY ORGANISA
LDD SPECIALIST PLACEMENTS     ,9120,OTHER AGENCIES                ,02/01/2014,3571609,2720,700.00,YOUTH ASSOCIATION SOUTH YORKSHIRE       ,313174,Unclassified Non Trade,CHARITIES & VOLUNTARY ORGANISA
COMMUNICATIONS                ,9120,OTHER AGENCIES                ,02/01/2014,3574068,19502,605.00,P & N CORPORATE MEDIA LTD               ,308965,Facilities Management,DESIGNERS - GRAPHIC           
MULTISYSTEMIC THERAPY TEAM    ,9120,OTHER AGENCIES                ,02/01/2014,3574078,2100154326,87021.00,SHEFFIELD CHILDRENS HOSPITAL NHS TRUST  ,306287,Unclassified Non Trade,HOSPITALS                     
MULTISYSTEMIC THERAPY TEAM    ,9120,OTHER AGENCIES                ,02/01/2014,3574081,2100154817,43511.00,SHEFFIELD CHILDRENS HOSPITAL NHS TRUST  ,306287,Unclassified Non Trade,HOSPITALS                     
EXTENDED LEARNING & SUPPORT   ,8440,FEE EXPENSES                  ,02/01/2014,3574094,8012,727.65,MUDDY FACES LTD                         ,470667,Leisure Services,OUTDOOR PURSUIT ORGANISERS & E
CREMATORIA                    ,8090,SANCTUM NICHES                ,02/01/2014,3574112,INV0034772               ,425.00,THE COLUMBARIA COMPANY                  ,315866,Construction,STONEMASONS                   
TREE MANAGEMENT               ,1165,NC&A OTHER                    ,02/01/2014,3574124,1280,420.00,SHEFFIELD TREE CARE                     ,462546,Environmental Services,TREE WORK & FORESTRY SERVICES 
TREE MANAGEMENT               ,1165,NC&A OTHER                    ,02/01/2014,3574129,1277,420.00,SHEFFIELD TREE CARE                     ,462546,Environmental Services,TREE WORK & FORESTRY SERVICES 
CASTLE MARKET                 ,8550,OTHER SERVICES                ,02/01/2014,3574144,CN18559521               ,1535.70,OCS GROUP UK LTD TA CANNON HYGIENE LTD  ,203709,Cleaning and Janitorial,HYGIENE & CLEANSING SERVICES  
SCC BALANCE SHEET             ,1540,PUBLIC SAFETY CONTROL ACCOUNT ,02/01/2014,3574169,83002,457.00,HAGUE PLANT LTD                         ,205330,Vehicles Not Buses,PLANT & MACHINERY HIRE & LEASI
MINOR WORKS & ADAPTATIONS     ,6020,REPAIRS AND MTCE - PROGRAMMED ,02/01/2014,3574180,3082/13                  ,709.00,PIKE JOINERY LIMITED                    ,453858,Construction,CARPENTERS & JOINERS          
MINOR WORKS & ADAPTATIONS     ,6020,REPAIRS AND MTCE - PROGRAMMED ,02/01/2014,3574181,3081/13                  ,654.00,PIKE JOINERY LIMITED                    ,453858,Construction,CARPENTERS & JOINERS          
MINOR WORKS & ADAPTATIONS     ,6020,REPAIRS AND MTCE - PROGRAMMED ,02/01/2014,3574182,3083/13                  ,529.00,PIKE JOINERY LIMITED                    ,453858,Construction,CARPENTERS & JOINERS          
MINOR WORKS & ADAPTATIONS     ,6030,REPAIRS AND MTCE - RESPONSIVE ,02/01/2014,3574183,3084/13                  ,738.00,PIKE JOINERY LIMITED                    ,453858,Construction,CARPENTERS & JOINERS          
CITY DEAL                     ,9120,OTHER AGENCIES                ,02/01/2014,3574355,4305,5391.00,FERN GLOBAL LTD                         ,517222,Human Resources,EMPLOYMENT & RECRUITMENT AGENC
CREMATORIA                    ,6020,REPAIRS AND MTCE - PROGRAMMED ,02/01/2014,3574376,494/13                   ,1397.00,IFZW MAINTENANCE LTD                    ,563612,Cemetery & Crematorium ,CEMETERIES & CREMATORIA       
TRANSPORT FLEET MANAGEMENT    ,8070,STOCKS AND STORES             ,02/01/2014,3574385,1660103,5576.82,CARLTON FUELS                           ,466741,Vehicles Not Buses,FUEL DEALERS                  
DECRIMINALISED PARKING        ,8440,FEE EXPENSES                  ,02/01/2014,3574387,25503,684.13,IMPERIAL CIVIL ENFORCEMENT SOLUTIONS    ,556259,Consultancy,COMPUTER CONSULTANTS          
DISTRICT HEATING GENERAL      ,6170,COMBINED HEAT AND POWER       ,02/01/2014,3574389,SMS11949                 ,318.10,ENER-G SWITCH2 LTD                      ,546534,Unclassified Non Trade,INSTRUMENTATION ENGINEERS     
DELEGATED BUDGETS             ,8470,LEGAL FEES                    ,02/01/2014,3574401,143768,690.00,REDACTED PERSONAL DATA,583880,Unclassified Non Trade,OUT OF SCOPE FOR SIC MONITORIN
RECRUITMENT ADVERTISING       ,5720,RECRUITMENT ADVERTISING       ,02/01/2014,3574402,TARINV/15258179          ,590.62,TIMES EDUCATIONAL SUPPLEMENT            ,297123,Education,NEWSPAPER & MAGAZINE PUBLISHER
INCOME MANAGEMENT             ,9140,CO-OP RENT PAYMENT CARDS      ,02/01/2014,3574403,7254,668.00,PSC SYSTEMS                             ,525464,Facilities Management,DIRECT MAIL                   
CNG REFUELLING INFRASTRUCTURE ,1193,CONSULTANTS FEES              ,02/01/2014,3574404,41628,1000.00,JOULEVERT LIMITED                       ,578657,Consultancy,ENERGY CONSERVATION CONSULTANT
PARKS OPS EAST & NORTH EAST   ,8060,MATERIALS AND SUPPLIES GENERAL,02/01/2014,3574407,10027,900.00,J C PLANT HIRE LTD                      ,324417,Highway Equipment and Materials,PAVING & DRIVEWAY CONTRACTORS 
PARKS OPS EAST & NORTH EAST   ,8060,MATERIALS AND SUPPLIES GENERAL,02/01/2014,3574408,10026,900.00,J C PLANT HIRE LTD                      ,324417,Highway Equipment and Materials,PAVING & DRIVEWAY CONTRACTORS 
MARKETING SHEFFIELD           ,8250,MARKETING EXPENSES            ,02/01/2014,3574409,1050490,905.00,PREMIER TRAVEL INN                      ,434638,Facilities Management,HOTELS                        
CITY DEAL                     ,9120,OTHER AGENCIES                ,02/01/2014,3574425,SINV.29053               ,5391.00,CHESTERFIELD COLLEGE                    ,317687,Unclassified Non Trade,SCHOOLS & COLLEGES - FURTHER E
LOCALITY 1 MANAGEMENT+O/HEADS ,8060,MATERIALS AND SUPPLIES GENERAL,02/01/2014,3574428,256717767,365.95,YORKSHIRE PURCHASING ORGANISATION       ,295997,Unclassified Trade,PURCHASING SERVICES           
LDD SPECIALIST PLACEMENTS     ,5610,AGENCY STAFF                  ,02/01/2014,3574466,226021858,291.64,REED                                    ,341818,Human Resources,EMPLOYMENT & RECRUITMENT AGENC
THE MOOR INDOOR MARKET        ,8420,ADVERTISING AND PUBLICITY     ,02/01/2014,3574483,I176135                  ,613.00,BRASS FOUNDERS (SHEFFIELD) LTD          ,532429,Building Construction Materials,ENGINEERING MATERIALS         
YOUTH JUSTICE SERVICE         ,6210,RENTS                         ,02/01/2014,3574515,18230,1108.00,THE BURTON STREET FOUNDATION            ,568070,Social Community Care,DISABILITY & SPECIAL NEEDS - S
PARK HILL REV                 ,8440,FEE EXPENSES                  ,02/01/2014,3574517,44378,27096.00,SOUTH YORKSHIRE POLICE                  ,346012,Unclassified Non Trade,POLICE                        
DEVELOPMENT CONTROL           ,8470,LEGAL FEES                    ,02/01/2014,3574520,113956,1250.00,CORNERSTONE BARRISTERS                  ,452847,Legal Services,BARRISTERS                    
GRAVES PARK - ANIMAL FARM INC ,8060,MATERIALS AND SUPPLIES GENERAL,02/01/2014,3575019,629,1390.00,S & R BURDEN                            ,327368,Unclassified Trade,FARMING - CROPS               
LOCAL ELECTIONS               ,8570,POSTAGE & DELIVERY            ,02/01/2014,3575396,76305,2980.34,FACILITIES & CORPORATE SOLUTIONS LTD    ,204806,Facilities Management,DIRECT MAIL                   
MINIBUSES - TENDERED          ,7060,EXTERNAL VEHICLE HIRE         ,02/01/2014,3575426,41628,3594.00,MINIBUS MASTER                          ,586794,Transport,TAXIS & PRIVATE HIRE          
STADIA TECHNOLOGY PARK        ,6150,ELECTRICITY                   ,02/01/2014,3575284,A3570940/1496829         ,269.46,BRITISH GAS BUSINESS                    ,370790,Utilities,GAS COMPANIES                 
STADIA TECHNOLOGY PARK        ,6150,ELECTRICITY                   ,02/01/2014,3575292,A3558451/1368142         ,410.13,BRITISH GAS BUSINESS                    ,370790,Utilities,GAS COMPANIES                 
STADIA TECHNOLOGY PARK        ,6150,ELECTRICITY                   ,02/01/2014,3575299,A3558478/381362          ,323.14,BRITISH GAS BUSINESS                    ,370790,Utilities,GAS COMPANIES                 
STADIA TECHNOLOGY PARK        ,6150,ELECTRICITY                   ,02/01/2014,3575301,A3558478/381359          ,990.31,BRITISH GAS BUSINESS                    ,370790,Utilities,GAS COMPANIES                 
CORPORATE MAIL                ,8570,POSTAGE & DELIVERY            ,02/01/2014,3575306,9046114477,283.33,ROYAL MAIL GROUP LTD                    ,295326,Mail Services,DELIVERY SERVICES             
CORPORATE MAIL                ,8570,POSTAGE & DELIVERY            ,02/01/2014,3575307,9046108924,8042.72,ROYAL MAIL GROUP LTD                    ,295326,Mail Services,DELIVERY SERVICES             
CITY WIDE CHILD CARE CONTRACT ,6150,ELECTRICITY                   ,02/01/2014,3575390,291565273/0003           ,545.57,SOUTHERN ELECTRIC                       ,318926,Utilities,ELECTRICITY COMPANIES         
PURCHASING LEARNING DISABILITI,9190,DIRECT PAYMENTS               ,02/01/2014,3575208,J797250                  ,1839.69,A4E                                     ,547567,Human Resources,TRAINING SERVICES             
ADULT SOCIAL CARE PURCHASING  ,9190,DIRECT PAYMENTS               ,02/01/2014,3575209,J797250                  ,466.40,REDACTED PERSONAL DATA,555064,Social Community Care,CAREFIRST DIRECT PAYMENTS     
PURCHASING                    ,9190,DIRECT PAYMENTS               ,02/01/2014,3575210,J797250                  ,300.00,SHEFFIELD MIND                          ,556296,Social Community Care,CAREFIRST DIRECT PAYMENTS     
PURCHASING LEARNING DISABILITI,9190,DIRECT PAYMENTS               ,02/01/2014,3575211,J797250                  ,2090.83,REDACTED PERSONAL DATA,567939,Social Community Care,CAREFIRST DIRECT PAYMENTS     
PURCHASING LEARNING DISABILITI,9190,DIRECT PAYMENTS               ,02/01/2014,3575212,J797250                  ,748.05,REDACTED PERSONAL DATA,591196,Social Community Care,CAREFIRST DIRECT PAYMENTS     
PURCHASING LEARNING DISABILITI,9190,DIRECT PAYMENTS               ,02/01/2014,3575213,J797250                  ,6647.14,REDACTED PERSONAL DATA,591209,Social Community Care,CAREFIRST DIRECT PAYMENTS     
PURCHASING LEARNING DISABILITI,9190,DIRECT PAYMENTS               ,02/01/2014,3575214,J797250                  ,3500.24,REDACTED PERSONAL DATA,591212,Social Community Care,CAREFIRST DIRECT PAYMENTS     
PURCHASING LEARNING DISABILITI,9190,SUPPORT PLANNING COSTS        ,02/01/2014,3575216,J797251                  ,258.50,SHEFFIELD MENCAP LTD                    ,577009,Social Community Care,CAREFIRST DIRECT PAYMENTS     
PURCHASING LEARNING DISABILITI,9250,INDEPENDENT DAY CARE          ,02/01/2014,3575217,18153,339.60,BURTON STREET PROJECT                   ,342774,Unclassified Non Trade,CHARITIES & VOLUNTARY ORGANISA
PURCHASING LEARNING DISABILITI,9250,INDEPENDENT DAY CARE          ,02/01/2014,3575218,18154,914.40,BURTON STREET PROJECT                   ,342774,Unclassified Non Trade,CHARITIES & VOLUNTARY ORGANISA
PURCHASING LEARNING DISABILITI,9250,INDEPENDENT DAY CARE          ,02/01/2014,3575220,18157,339.60,BURTON STREET PROJECT                   ,342774,Unclassified Non Trade,CHARITIES & VOLUNTARY ORGANISA
PURCHASING LEARNING DISABILITI,9190,CITYWIDE SPOT                 ,02/01/2014,3575221,18152,1190.60,BURTON STREET PROJECT                   ,342774,Unclassified Non Trade,CHARITIES & VOLUNTARY ORGANISA
PURCHASING LEARNING DISABILITI,9190,CITYWIDE SPOT                 ,02/01/2014,3575222,265-006741               ,1094.75,LEONARD CHESHIRE SERVICES               ,329306,Unclassified Non Trade,CHARITIES & VOLUNTARY ORGANISA
PURCHASING LEARNING DISABILITI,9190,CITYWIDE SPOT                 ,02/01/2014,3575223,265-006742               ,471.25,LEONARD CHESHIRE SERVICES               ,329306,Unclassified Non Trade,CHARITIES & VOLUNTARY ORGANISA
PURCHASING LEARNING DISABILITI,9190,CITYWIDE SPOT                 ,02/01/2014,3575224,AB/11/237262             ,2596.00,H F TRUST LIMITED                       ,362078,Unclassified Non Trade,CHARITIES & VOLUNTARY ORGANISA
PURCHASING LEARNING DISABILITI,9190,FUNDED HOME SUPPORT           ,02/01/2014,3575224,AB/11/237262             ,442.52,H F TRUST LIMITED                       ,362078,Unclassified Non Trade,CHARITIES & VOLUNTARY ORGANISA
PURCHASING LEARNING DISABILITI,9190,CITYWIDE SPOT                 ,02/01/2014,3575225,AB/11/237263             ,590.00,H F TRUST LIMITED                       ,362078,Unclassified Non Trade,CHARITIES & VOLUNTARY ORGANISA
PURCHASING LEARNING DISABILITI,9190,CITYWIDE SPOT                 ,02/01/2014,3575227,AB/11/237265             ,472.00,H F TRUST LIMITED                       ,362078,Unclassified Non Trade,CHARITIES & VOLUNTARY ORGANISA
PURCHASING LEARNING DISABILITI,9190,CITYWIDE SPOT                 ,02/01/2014,3575228,AB/11/237592             ,4425.24,H F TRUST LIMITED                       ,362078,Unclassified Non Trade,CHARITIES & VOLUNTARY ORGANISA
PURCHASING LEARNING DISABILITI,9190,CITYWIDE SPOT                 ,02/01/2014,3575229,AB/11/237593             ,850.76,H F TRUST LIMITED                       ,362078,Unclassified Non Trade,CHARITIES & VOLUNTARY ORGANISA
PURCHASING LEARNING DISABILITI,9190,CITYWIDE SPOT                 ,02/01/2014,3575230,AB/11/237594             ,1612.32,H F TRUST LIMITED                       ,362078,Unclassified Non Trade,CHARITIES & VOLUNTARY ORGANISA
PURCHASING LEARNING DISABILITI,9190,CITYWIDE SPOT                 ,02/01/2014,3575231,AB/11/237595             ,334.52,H F TRUST LIMITED                       ,362078,Unclassified Non Trade,CHARITIES & VOLUNTARY ORGANISA
PURCHASING LEARNING DISABILITI,9190,CITYWIDE SPOT                 ,02/01/2014,3575232,AB/11/237596             ,1027.80,H F TRUST LIMITED                       ,362078,Unclassified Non Trade,CHARITIES & VOLUNTARY ORGANISA
PURCHASING LEARNING DISABILITI,9190,CITYWIDE SPOT                 ,02/01/2014,3575233,AB/11/237597             ,2800.04,H F TRUST LIMITED                       ,362078,Unclassified Non Trade,CHARITIES & VOLUNTARY ORGANISA
PURCHASING LEARNING DISABILITI,9190,CITYWIDE SPOT                 ,02/01/2014,3575234,AB/11/237598             ,1118.52,H F TRUST LIMITED                       ,362078,Unclassified Non Trade,CHARITIES & VOLUNTARY ORGANISA
PURCHASING LEARNING DISABILITI,9190,CITYWIDE SPOT                 ,02/01/2014,3575235,AB/11/237599             ,472.00,H F TRUST LIMITED                       ,362078,Unclassified Non Trade,CHARITIES & VOLUNTARY ORGANISA
PURCHASING LEARNING DISABILITI,9190,CITYWIDE SPOT                 ,02/01/2014,3575236,AB/11/237602             ,2299.96,H F TRUST LIMITED                       ,362078,Unclassified Non Trade,CHARITIES & VOLUNTARY ORGANISA
PURCHASING LEARNING DISABILITI,9190,CITYWIDE SPOT                 ,02/01/2014,3575237,AB/11/237603             ,1472.52,H F TRUST LIMITED                       ,362078,Unclassified Non Trade,CHARITIES & VOLUNTARY ORGANISA
PURCHASING LEARNING DISABILITI,9190,CITYWIDE SPOT                 ,02/01/2014,3575238,AB/11/237604             ,2749.40,H F TRUST LIMITED                       ,362078,Unclassified Non Trade,CHARITIES & VOLUNTARY ORGANISA
PURCHASING LEARNING DISABILITI,9190,CITYWIDE SPOT                 ,02/01/2014,3575239,AB/11/237605             ,1413.52,H F TRUST LIMITED                       ,362078,Unclassified Non Trade,CHARITIES & VOLUNTARY ORGANISA
PURCHASING LEARNING DISABILITI,9190,CITYWIDE SPOT                 ,02/01/2014,3575240,AB/11/237606             ,1266.56,H F TRUST LIMITED                       ,362078,Unclassified Non Trade,CHARITIES & VOLUNTARY ORGANISA
PURCHASING LEARNING DISABILITI,9190,FUNDED HOME SUPPORT           ,02/01/2014,3575240,AB/11/237606             ,1031.96,H F TRUST LIMITED                       ,362078,Unclassified Non Trade,CHARITIES & VOLUNTARY ORGANISA
PURCHASING LEARNING DISABILITI,9190,CITYWIDE SPOT                 ,02/01/2014,3575241,AB/11/237607             ,1770.00,H F TRUST LIMITED                       ,362078,Unclassified Non Trade,CHARITIES & VOLUNTARY ORGANISA
PURCHASING LEARNING DISABILITI,9190,CITYWIDE SPOT                 ,02/01/2014,3575242,AB/11/237608             ,4087.72,H F TRUST LIMITED                       ,362078,Unclassified Non Trade,CHARITIES & VOLUNTARY ORGANISA
PURCHASING LEARNING DISABILITI,9190,FUNDED HOME SUPPORT           ,02/01/2014,3575242,AB/11/237608             ,1054.28,H F TRUST LIMITED                       ,362078,Unclassified Non Trade,CHARITIES & VOLUNTARY ORGANISA
PURCHASING LEARNING DISABILITI,9190,CITYWIDE SPOT                 ,02/01/2014,3575243,AB/11/237609             ,2800.04,H F TRUST LIMITED                       ,362078,Unclassified Non Trade,CHARITIES & VOLUNTARY ORGANISA
PURCHASING LEARNING DISABILITI,9190,CITYWIDE SPOT                 ,02/01/2014,3575244,AB/11/238524             ,1418.88,H F TRUST LIMITED                       ,362078,Unclassified Non Trade,CHARITIES & VOLUNTARY ORGANISA
PURCHASING LEARNING DISABILITI,9190,CITYWIDE SPOT                 ,02/01/2014,3575245,AB/11/238525             ,1216.44,H F TRUST LIMITED                       ,362078,Unclassified Non Trade,CHARITIES & VOLUNTARY ORGANISA
INDEPENDENT FOSTERING PLACEMEN,9270,INDEPENDENT FOSTERING         ,02/01/2014,3575202,18560,3084.20,PARALLEL PARENTS LTD                    ,521940,Social Community Care,ADOPTION & FOSTERING          
INDEPENDENT RES BLOCK PLACEMEN,9270,INDEPENDENT RESIDENTIAL PMENT ,02/01/2014,3575203,18918,9665.88,CARE TODAY                              ,382727,Social Community Care,CHILDREN'S HOMES              
LEAVING CARE                  ,9270,CARELEAVERS ACCOMMODATION     ,02/01/2014,3575204,6344,3700.00,PROGRESSIVE CARE LTD                    ,343548,Social Community Care,CHILDREN'S HOMES              
ADULT SOCIAL CARE PURCHASING  ,9200,CONTINUING RESIDENTIAL CARE   ,02/01/2014,3575201,J793849 050114           ,24726.00,LITTLEDALE NURSING HOME                 ,361783,Social Community Care,NURSING HOMES                 
CARELEAVER SUPPORT            ,9270,CARELEAVERS INDEPENDENT LIVING,02/01/2014,3575257,100523667X               ,1261.50,ESSEX COUNTY COUNCIL                    ,375923,Unclassified Non Trade,LOCAL GOVERNMENT              
CORONIAL SERVICES             ,8440,WITNESS FEES                  ,03/01/2014,3575986,ERS INVOICE94851         ,278.50,REDACTED PERSONAL DATA,591096,Unclassified Non Trade,OUT OF SCOPE FOR SIC MONITORIN
CORONIAL SERVICES             ,8440,WITNESS FEES                  ,03/01/2014,3575988,ERS INVOICE94853         ,273.84,REDACTED PERSONAL DATA,591098,Unclassified Non Trade,OUT OF SCOPE FOR SIC MONITORIN
CORONIAL SERVICES             ,8440,DOCTORS ATTENDANCE            ,03/01/2014,3575989,ERS INVOICE94854         ,1320.00,REDACTED PERSONAL DATA,591104,Unclassified Non Trade,OUT OF SCOPE FOR SIC MONITORIN
CARE PROCEEDINGS (LEGAL FEES) ,8470,LEGAL FEES                    ,03/01/2014,3575992,ERS INVOICE94857         ,301.88,DR J PILGRIM                            ,478242,Medical ,DOCTORS                       
CORONIAL SERVICES             ,8440,PATHOLOGIST INVOICE           ,03/01/2014,3575993,ERS INVOICE94858         ,3000.80,REDACTED PERSONAL DATA,579914,Unclassified Non Trade,OUT OF SCOPE FOR SIC MONITORIN
CORONIAL SERVICES             ,8440,PATHOLOGIST INVOICE           ,03/01/2014,3575994,ERS INVOICE94859         ,287.70,HIGH PEAK FORENSICS                     ,575858,Medical ,DOCTORS                       
CORONIAL SERVICES             ,8440,PATHOLOGIST INVOICE           ,03/01/2014,3575996,ERS INVOICE94860         ,938.80,HIGH PEAK FORENSICS                     ,575858,Medical ,DOCTORS                       
PRIVATE RENTED SOLUTIONS      ,9120,OTHER AGENCIES                ,03/01/2014,3575997,ERS INVOICE94861         ,459.00,MR ARSHAD REHMAN                        ,570681,Unclassified Trade,LETTING AGENTS                
CAR PARKING MANAGEMENT        ,4190,PARKING PENALTY CHARGE NOTICES,03/01/2014,3575998,ERS INVOICE94862         ,330.00,REDACTED PERSONAL DATA,591285,Unclassified Non Trade,OUT OF SCOPE FOR SIC MONITORIN
DECRIMINALISED PARKING        ,8470,LEGAL FEES                    ,03/01/2014,3575999,ERS INVOICE94863         ,7000.00,TRAFFIC ENFORCEMENT CENTRE              ,448749,Unclassified Non Trade,COURTS                        
WOOD LANE                     ,8060,MATERIALS AND SUPPLIES GENERAL,03/01/2014,3470396,SINV00245260             ,664.94,R A ROBERTS (OFFICE EQUIPMENT) LTD      ,207777,Furniture,OFFICE FURNITURE & EQUIPMENT  
NORTH SERVICE AREA CSS        ,5790,EMPLOYEE EXPENSES             ,03/01/2014,3532565,116664,1696.00,BDF SOLUTIONS LTD                       ,433921,ICT,DICTATION MACHINES & SYSTEMS  
ADDACTION                     ,9030,HEALTH                        ,03/01/2014,3561392,SIN001588                ,374160.00,ADDACTION                               ,580706,Unclassified Non Trade,PUBLIC HEALTH SUPPLIERS       
ACCOMMODATION                 ,8010,EQUIPMENT PURCHASE AND REPAIR ,03/01/2014,3562903,863216,566.50,EFG OFFICE FURNITURE LTD                ,206769,Furniture,FURNITURE MNFRS - HOME & OFFIC
LD PARTNERSHIP CONTRACTS      ,9160,PARTNERSHIP CONTRACTS         ,03/01/2014,3564141,3932,2241.00,SHEFFIELD RECLAMATION LTD               ,301678,Environmental Services,RECYCLING CENTRES             
ECCLESFIELD SUPPORT UNIT      ,8540,SECURITY SERVICES             ,03/01/2014,3564658,418823/420368            ,855.00,KINGS SECURITY SYSTEMS LIMITED          ,368448,Facilities Management,SECURITY EQUIPMENT INSTALLERS 
BIS TELECOMMS                 ,5750,TRAINING EXPENDITURE          ,03/01/2014,3564792,IN00532819               ,375.00,HAPPY COMPUTERS LTD                     ,535359,Human Resources,COMPUTER TRAINING             
SERVICE OVERHEADS             ,6280,HIRE OF PREMISES              ,03/01/2014,3564795,LDDS063                  ,560.00,HANDSWORTH COMMUNITY NURSERY            ,297395,Social Community Care,NURSERIES & CRECHES           
COORDINATION & LICENSES       ,4080,FEES & CHARGES                ,03/01/2014,3568783,2516,950.00,ANDERSON TREE CARE LTD                  ,316084,Environmental Services,TREE WORK & FORESTRY SERVICES 
RESPONSIVE HM&E               ,6020,LEGIONELLA MONITORING         ,03/01/2014,3569415,10745450,1364.61,RENTOKIL INITIAL UK LTD                 ,437082,Cleaning and Janitorial,CLEANING SERVICES - COMMERCIAL
GENERAL ADMINISTRATION        ,8060,MATERIALS AND SUPPLIES GENERAL,03/01/2014,3569422,12118,1226.00,MOONLIGHT TEXTILES LTD                  ,206951,Furniture,CURTAINS - RETAILERS & MAKERS 
ICAM                          ,8440,FEE EXPENSES                  ,03/01/2014,3571084,C239756                  ,803.60,ROSSENDALES COLLECT LTD                 ,477656,Financial Services,BAILIFFS                      
AGENCY STAFF                  ,5610,AGENCY STAFF - INVOICE        ,03/01/2014,3571491,CE020415296M             ,201813.34,REED                                    ,341818,Human Resources,EMPLOYMENT & RECRUITMENT AGENC
STATUTORY ADVERTISING         ,8420,ADVERTISING AND PUBL-INVOICED ,03/01/2014,3571493,1345978,642.38,SHEFFIELD NEWSPAPERS LTD                ,208391,Education,NEWSPAPER & MAGAZINE PUBLISHER
STATUTORY ADVERTISING         ,8420,ADVERTISING AND PUBL-INVOICED ,03/01/2014,3571495,1352948,339.56,SHEFFIELD NEWSPAPERS LTD                ,208391,Education,NEWSPAPER & MAGAZINE PUBLISHER
STATUTORY ADVERTISING         ,8420,ADVERTISING AND PUBL-INVOICED ,03/01/2014,3571497,1359489,2184.09,SHEFFIELD NEWSPAPERS LTD                ,208391,Education,NEWSPAPER & MAGAZINE PUBLISHER
STATUTORY ADVERTISING         ,8420,ADVERTISING AND PUBL-INVOICED ,03/01/2014,3571499,1359497,835.09,SHEFFIELD NEWSPAPERS LTD                ,208391,Education,NEWSPAPER & MAGAZINE PUBLISHER
OUT OF CITY GUM               ,9030,HEALTH                        ,03/01/2014,3571528,82118701,1877.00,DONCASTER & BASSETLAW HOSPITALS  FOUNDAT,585509,Unclassified Non Trade,HOSPITALS                     
WEST MAST                     ,8490,TRANSLATN/SIGN/INTERPRET FEES ,03/01/2014,3571576,52210,435.00,LANGUAGELINE SOLUTIONS                  ,471915,Human Resources,TRANSLATORS & INTERPRETERS    
NORTH MAST                    ,8490,TRANSLATN/SIGN/INTERPRET FEES ,03/01/2014,3571577,52146,3382.50,LANGUAGELINE SOLUTIONS                  ,471915,Human Resources,TRANSLATORS & INTERPRETERS    
COORDINATION & LICENSES       ,4080,FEES & CHARGES                ,03/01/2014,3574092,8008,950.00,A & W HELLIWELL & SONS LTD              ,202556,Unclassified Trade,FARMING - LIVESTOCK & OTHER AN
BIS TELECOMMS                 ,5750,TRAINING EXPENDITURE          ,03/01/2014,3574175,12685,435.00,SMARTSTYLE                              ,481447,Human Resources,TRAINING SERVICES             
BUSINESS SUPPORT              ,8370,PRINTING                      ,03/01/2014,3574497,SINV00261553             ,324.51,R A ROBERTS (OFFICE EQUIPMENT) LTD      ,207777,Furniture,OFFICE FURNITURE & EQUIPMENT  
PARENTING STRATEGY            ,8440,FEE EXPENSES                  ,03/01/2014,3574514,1028,500.50,ROUNDABOUT CRECHE SERVICE               ,462116,Social Community Care,NURSERIES & CRECHES           
OUTDOOR EDUCATION             ,8590,LANDLINE TELEPHONES           ,03/01/2014,3574558,9634,375.00,CONTACT VOICE & DATA LTD.               ,332059,ICT,TELECOMMUNICATION SERVICES    
BUSINESS SUPPORT              ,8370,PRINTING                      ,03/01/2014,3574610,SINV00256480             ,683.27,R A ROBERTS (OFFICE EQUIPMENT) LTD      ,207777,Furniture,OFFICE FURNITURE & EQUIPMENT  
OUTDOOR EDUCATION             ,8010,EQUIPMENT PURCHASE AND REPAIR ,03/01/2014,3575197,16585,352.72,AIGUILLE LIMITED                        ,578981,Clothing,OUTDOOR CLOTHING & EQUIPMENT  
CLAIMS                        ,8490,OTHER PROFESSIONAL FEES       ,03/01/2014,3575199,1800003054,8970.00,ZURICH RISK ENGINEERING                 ,575255,Legal Services,SOLICITORS                    
MI-21/WORLD METAL INDEX       ,8440,FEE EXPENSES                  ,03/01/2014,3575343,10126,325.00,BIRCHENALLHOWDEN LTD                    ,518758,Consultancy,COMPUTER CONSULTANTS          
RECRUITMENT ADVERTISING       ,5720,RECRUIT. ADV. - INVOICE       ,03/01/2014,3575358,INV460339                ,700.00,ENVIRONMENTAL HEALTH NEWS               ,297716,Education,NEWSPAPER & MAGAZINE PUBLISHER
AGENCY STAFF                  ,5610,AGENCY STAFF - INVOICE        ,03/01/2014,3575428,CE0226006855C1           ,177298.29,REED                                    ,341818,Human Resources,EMPLOYMENT & RECRUITMENT AGENC
P&TC STAFFING                 ,6210,RENTS                         ,03/01/2014,3575429,QS92251113               ,25500.00,TOWERS INVESTMENTS                      ,338083,Construction,PROPERTY DEVELOPERS           
PSH EMPTY PROPERTIES          ,1165,NC&A OTHER                    ,03/01/2014,3575431,90,381.00,ABBEYCLIFFE RENOVATIONS LTD             ,566073,Construction,BUILDERS                      
STATUTORY ADVERTISING         ,8420,ADVERTISING AND PUBL-INVOICED ,03/01/2014,3575444,1373926,282.97,SHEFFIELD NEWSPAPERS LTD                ,208391,Education,NEWSPAPER & MAGAZINE PUBLISHER
PAYMENT HOLDING ACCOUNT       ,8350,MISCELLANEOUS EXPENSES        ,03/01/2014,3575527,OP100546-002             ,591.60,METER MANAGER LTD                       ,584350,Construction,SOLAR ENERGY EQUIPMENT - SUPPL
BOOKS & OTHER MATERIALS       ,8080,MEDIA                         ,03/01/2014,3575912,1854082,1234.48,BERTRAM LIBRARY SERVICES                ,418929,Education,EDUCATIONAL EQUIPMENT & SUPPLI
BOOKS & OTHER MATERIALS       ,8080,MEDIA                         ,03/01/2014,3575916,1854081,549.84,BERTRAM LIBRARY SERVICES                ,418929,Education,EDUCATIONAL EQUIPMENT & SUPPLI
BOOKS & OTHER MATERIALS       ,8080,LIBRARY MATERIALS             ,03/01/2014,3575978,1853955,868.97,BERTRAM LIBRARY SERVICES                ,418929,Education,EDUCATIONAL EQUIPMENT & SUPPLI
BOOKS & OTHER MATERIALS       ,8080,LIBRARY MATERIALS             ,03/01/2014,3576002,128686,518.73,ISUBSCRIBE LTD                          ,554704,Education,NEWSPAPER & MAGAZINE PUBLISHER
STANIFORTH ROAD WORKSHOPS     ,8070,STOCKS AND STORES             ,03/01/2014,3575727,S1999S087                ,310.00,GME SPRINGS T/A GME MOTOR               ,440984,Building Construction Materials,SPRING MNFRS & DISTRIBUTORS   
STANIFORTH ROAD WORKSHOPS     ,7010,ROUTINE VEHICLE REPAIR & MTCE ,03/01/2014,3575736,22443,371.00,D.B.AUTO ELECTRICAL SUPPLIES            ,588397,Vehicles Not Buses,"COMMERCIAL VEHICLE SERVICING, "
STANIFORTH ROAD WORKSHOPS     ,7010,ROUTINE VEHICLE REPAIR & MTCE ,03/01/2014,3575745,15083231,1217.96,LOOKERS FORD                            ,474939,Vehicles Not Buses,CAR DEALERS                   
STANIFORTH ROAD WORKSHOPS     ,8070,STOCKS AND STORES             ,03/01/2014,3575748,14449900,683.27,LOOKERS FORD                            ,474939,Vehicles Not Buses,CAR DEALERS                   
STANIFORTH ROAD WORKSHOPS     ,7010,ROUTINE VEHICLE REPAIR & MTCE ,03/01/2014,3575750,14445961,259.04,LOOKERS FORD                            ,474939,Vehicles Not Buses,CAR DEALERS                   
STANIFORTH ROAD WORKSHOPS     ,7010,ROUTINE VEHICLE REPAIR & MTCE ,03/01/2014,3575752,14450366/1443738         ,1342.76,LOOKERS FORD                            ,474939,Vehicles Not Buses,CAR DEALERS                   
STANIFORTH ROAD WORKSHOPS     ,8070,STOCKS AND STORES             ,03/01/2014,3575766,370887,280.67,CITY SEALS & BEARINGS LTD               ,203918,Building Construction Materials,BEARINGS STOCKISTS            
PURCHASING LEARNING DISABILITI,9180,OTHER CLIENT EXPENDITURE      ,03/01/2014,3575574,J796007 050114           ,419.26,REDACTED PERSONAL DATA,332448,Social Community Care,HOME CARE SERVICES            
PURCHASING LEARNING DISABILITI,9180,OTHER CLIENT EXPENDITURE      ,03/01/2014,3575579,J796012 050114           ,433.12,REDACTED PERSONAL DATA,328070,Social Community Care,HOME CARE SERVICES            
PURCHASING LEARNING DISABILITI,9180,OTHER CLIENT EXPENDITURE      ,03/01/2014,3575581,J796014 050114           ,419.26,REDACTED PERSONAL DATA,408112,Social Community Care,HOME CARE SERVICES            
PURCHASING LEARNING DISABILITI,9180,OTHER CLIENT EXPENDITURE      ,03/01/2014,3575585,J796018 050114           ,433.12,REDACTED PERSONAL DATA,369406,Social Community Care,HOME CARE SERVICES            
EAST SA - LAC                 ,9270,PAYMENTS TO RELATIVES/FRIENDS ,03/01/2014,3575596,EAST/130                 ,252.00,REDACTED PERSONAL DATA,536243,Unclassified Non Trade,OUT OF SCOPE FOR SIC MONITORIN
EAST SA - LAC                 ,9440,LOOKED AFTER CHILDREN         ,03/01/2014,3575596,EAST/130                 ,270.00,REDACTED PERSONAL DATA,536243,Unclassified Non Trade,OUT OF SCOPE FOR SIC MONITORIN
CHILDRENS & JESSOPS S17       ,9280,CONTACT                       ,03/01/2014,3575662,13792,357.18,SSA SOCIAL CARE & COMMUNITY SERVICES LTD,301604,Human Resources,EMPLOYMENT & RECRUITMENT AGENC
CONTACT CONTRACTS             ,9280,CONTACT                       ,03/01/2014,3575685,13807,321.33,SSA SOCIAL CARE & COMMUNITY SERVICES LTD,301604,Human Resources,EMPLOYMENT & RECRUITMENT AGENC
 LUNCH CLUB GRANT             ,8180,GRANTS                        ,03/01/2014,3575805,MPA20140103167 1         ,788.50,BANNER CROSS LUNCHEON & FRIENDSHIP CLUB ,326250,Unclassified Non Trade,PLACES OF WORSHIP             
 LUNCH CLUB GRANT             ,8180,GRANTS                        ,03/01/2014,3575806,MPA20140103167 10        ,901.00,GREYSTONES LUNCH CLUB                   ,295226,Unclassified Non Trade,CHARITIES & VOLUNTARY ORGANISA
 LUNCH CLUB GRANT             ,8180,GRANTS                        ,03/01/2014,3575808,MPA20140103167 12        ,544.75,ADLINGTON LUNCHEON CLUB                 ,295201,Unclassified Non Trade,CHARITIES & VOLUNTARY ORGANISA
 LUNCH CLUB GRANT             ,8180,GRANTS                        ,03/01/2014,3575809,MPA20140103167 13        ,1299.50,DARNALL LUNCH CLUB                      ,295216,Unclassified Non Trade,CHARITIES & VOLUNTARY ORGANISA
 LUNCH CLUB GRANT             ,8180,GRANTS                        ,03/01/2014,3575811,MPA20140103167 15        ,565.50,GLEADLESS VALLEY LUNCHEON CLUB          ,295224,Unclassified Non Trade,CHARITIES & VOLUNTARY ORGANISA
 LUNCH CLUB GRANT             ,8180,GRANTS                        ,03/01/2014,3575812,MPA20140103167 16        ,961.75,THE LIMES LUNCHEON CLUB                 ,295165,Unclassified Non Trade,CHARITIES & VOLUNTARY ORGANISA
 LUNCH CLUB GRANT             ,8180,GRANTS                        ,03/01/2014,3575813,MPA20140103167 17        ,668.00,DUKE STREET COMMUNITY CENTRE            ,375030,Unclassified Non Trade,COMMUNITY CENTRES             
 LUNCH CLUB GRANT             ,8180,GRANTS                        ,03/01/2014,3575814,MPA20140103167 18        ,1563.25,ST OSWALDS LUNCHEON CLUB                ,385325,Unclassified Non Trade,CHARITIES & VOLUNTARY ORGANISA
 LUNCH CLUB GRANT             ,8180,GRANTS                        ,03/01/2014,3575815,MPA20140103167 19        ,278.25,DORE & TOTLEY DAY CENTRE LUNCHEON CLUB  ,295218,Unclassified Non Trade,CHARITIES & VOLUNTARY ORGANISA
 LUNCH CLUB GRANT             ,8180,GRANTS                        ,03/01/2014,3575816,MPA20140103167 2         ,713.50,CHRIST CHURCH PITSMOOR LUNCH CLUB       ,321910,Unclassified Non Trade,CHARITIES & VOLUNTARY ORGANISA
 LUNCH CLUB GRANT             ,8180,GRANTS                        ,03/01/2014,3575817,MPA20140103167 20        ,1945.00,BIRLEY SPA LUNCH CLUB                   ,295206,Unclassified Non Trade,CHARITIES & VOLUNTARY ORGANISA
 LUNCH CLUB GRANT             ,8180,GRANTS                        ,03/01/2014,3575819,MPA20140103167 22        ,405.75,MICHAEL CHURCH LOWEDGES THURS LUNCH CLUB,295189,Unclassified Non Trade,CHARITIES & VOLUNTARY ORGANISA
 LUNCH CLUB GRANT             ,8180,GRANTS                        ,03/01/2014,3575820,MPA20140103167 23        ,661.50,ST JOHN'S ABBEYDALE LUNCH CLUB          ,385324,Unclassified Non Trade,CHARITIES & VOLUNTARY ORGANISA
 LUNCH CLUB GRANT             ,8180,GRANTS                        ,03/01/2014,3575821,MPA20140103167 24        ,544.50,GRAPEVINE CENTRE LUNCHEON CLUB          ,295190,Unclassified Non Trade,CHARITIES & VOLUNTARY ORGANISA
 LUNCH CLUB GRANT             ,8180,GRANTS                        ,03/01/2014,3575822,MPA20140103167 25        ,895.50,PITSMOOR LUNCH CLUB                     ,295194,Unclassified Non Trade,CHARITIES & VOLUNTARY ORGANISA
 LUNCH CLUB GRANT             ,8180,GRANTS                        ,03/01/2014,3575823,MPA20140103167 26        ,1193.75,THE SALVATION ARMY SHEFFIELD CASTLE     ,327783,Unclassified Non Trade,"HOUSING ASSOCIATIONS, SOCIETIE"
 LUNCH CLUB GRANT             ,8180,GRANTS                        ,03/01/2014,3575825,MPA20140103167 28        ,486.75,WADSLEY CHURCH LUNCH CLUB               ,295167,Unclassified Non Trade,CHARITIES & VOLUNTARY ORGANISA
 LUNCH CLUB GRANT             ,8180,GRANTS                        ,03/01/2014,3575826,MPA20140103167 29        ,870.25,SHIREGREEN UNITED REFORMED CHURCH       ,295203,Unclassified Non Trade,PLACES OF WORSHIP             
 LUNCH CLUB GRANT             ,8180,GRANTS                        ,03/01/2014,3575827,MPA20140103167 3         ,1014.25,CROSSPOOL LUNCH CLUB                    ,321911,Unclassified Non Trade,CHARITIES & VOLUNTARY ORGANISA
 LUNCH CLUB GRANT             ,8180,GRANTS                        ,03/01/2014,3575828,MPA20140103167 30        ,583.00,ST TIMOTHY'S LUNCH CLUB                 ,295163,Unclassified Non Trade,CHARITIES & VOLUNTARY ORGANISA
 LUNCH CLUB GRANT             ,8180,GRANTS                        ,03/01/2014,3575829,MPA20140103167 31        ,749.00,MEERSBROOK PARK LUNCH CLUB              ,363027,Unclassified Non Trade,CHARITIES & VOLUNTARY ORGANISA
 LUNCH CLUB GRANT             ,8180,GRANTS                        ,03/01/2014,3575830,MPA20140103167 32        ,1004.00,ST BARTHOLOMEWS LUNCH CLUB              ,384447,Unclassified Non Trade,CHARITIES & VOLUNTARY ORGANISA
 LUNCH CLUB GRANT             ,8180,GRANTS                        ,03/01/2014,3575832,MPA20140103167 34        ,829.00,ST LEONARD'S LUNCH CLUB                 ,296991,Unclassified Non Trade,CHARITIES & VOLUNTARY ORGANISA
 LUNCH CLUB GRANT             ,8180,GRANTS                        ,03/01/2014,3575833,MPA20140103167 35        ,847.00,ST MARY'S LUNCH CLUB                    ,322012,Unclassified Non Trade,CHARITIES & VOLUNTARY ORGANISA
 LUNCH CLUB GRANT             ,8180,GRANTS                        ,03/01/2014,3575834,MPA20140103167 36        ,577.50,TINSLEY COMMUNITY CENTRE LUNCH CLUB     ,297105,Unclassified Non Trade,CHARITIES & VOLUNTARY ORGANISA
 LUNCH CLUB GRANT             ,8180,GRANTS                        ,03/01/2014,3575836,MPA20140103167 38        ,1325.00,ST MARY'S HANDSWORTH LUNCH CLUB         ,300780,Unclassified Non Trade,CHARITIES & VOLUNTARY ORGANISA
 LUNCH CLUB GRANT             ,8180,GRANTS                        ,03/01/2014,3575837,MPA20140103167 39        ,860.50,WILLIAM TEMPLE LUNCH CLUB               ,299806,Unclassified Non Trade,CHARITIES & VOLUNTARY ORGANISA
 LUNCH CLUB GRANT             ,8180,GRANTS                        ,03/01/2014,3575840,MPA20140103167 41        ,700.00,FOXHILL & BIRLEY CARR LIVE AT HOME SCHEM,349900,Unclassified Non Trade,CHARITIES & VOLUNTARY ORGANISA
 LUNCH CLUB GRANT             ,8180,GRANTS                        ,03/01/2014,3575841,MPA20140103167 42        ,480.00,LOWER SHIREGREEN LUNCH CLUB             ,299896,Unclassified Non Trade,CHARITIES & VOLUNTARY ORGANISA
 LUNCH CLUB GRANT             ,8180,GRANTS                        ,03/01/2014,3575842,MPA20140103167 43        ,288.50,ST MARKS LUNCH & FRIENDSHIP CLUB        ,301346,Unclassified Non Trade,PLACES OF WORSHIP             
 LUNCH CLUB GRANT             ,8180,GRANTS                        ,03/01/2014,3575845,MPA20140103167 46        ,416.75,LOWEDGES LUNCH CLUB                     ,353522,Unclassified Non Trade,CHARITIES & VOLUNTARY ORGANISA
 LUNCH CLUB GRANT             ,8180,GRANTS                        ,03/01/2014,3575846,MPA20140103167 47        ,1110.50,FRECHEVILLE PARISH DAY CENTRE           ,348612,Unclassified Non Trade,LOCAL GOVERNMENT              
 LUNCH CLUB GRANT             ,8180,GRANTS                        ,03/01/2014,3575848,MPA20140103167 49        ,353.25,ANGEL LUNCH CLUB                        ,481463,Unclassified Non Trade,CHARITIES & VOLUNTARY ORGANISA
 LUNCH CLUB GRANT             ,8180,GRANTS                        ,03/01/2014,3575849,MPA20140103167 5         ,431.75,HALLAM METHODIST LUNCH CLUB             ,321917,Unclassified Non Trade,CHARITIES & VOLUNTARY ORGANISA
 LUNCH CLUB GRANT             ,8180,GRANTS                        ,03/01/2014,3575850,MPA20140103167 50        ,646.50,WESLEY HALL LUNCH CLUB                  ,511866,Unclassified Non Trade,CHARITIES & VOLUNTARY ORGANISA
 LUNCH CLUB GRANT             ,8180,GRANTS                        ,03/01/2014,3575851,MPA20140103167 51        ,973.75,MOSBOROUGH LUNCH & SOCIAL CLUB          ,510333,Leisure Services,"CLUBS & ASSOCIATIONS - SOCIAL,"
 LUNCH CLUB GRANT             ,8180,GRANTS                        ,03/01/2014,3575852,MPA20140103167 52        ,594.75,VALLEY LUNCH CLUB                       ,514281,Unclassified Non Trade,CHARITIES & VOLUNTARY ORGANISA
 LUNCH CLUB GRANT             ,8180,GRANTS                        ,03/01/2014,3575853,MPA20140103167 53        ,932.75,THE THURSDAY CLUB                       ,451641,Unclassified Non Trade,CHARITIES & VOLUNTARY ORGANISA
 LUNCH CLUB GRANT             ,8180,GRANTS                        ,03/01/2014,3575855,MPA20140103167 55        ,548.50,MANOR LODGE LUNCHEON CLUB               ,545135,Unclassified Non Trade,CHARITIES & VOLUNTARY ORGANISA
 LUNCH CLUB GRANT             ,8180,GRANTS                        ,03/01/2014,3575856,MPA20140103167 56        ,335.75,MADINA ASIAN ELDERLY WOMEN'S LUNCH CLUB ,549528,Unclassified Non Trade,CHARITIES & VOLUNTARY ORGANISA
 LUNCH CLUB GRANT             ,8180,GRANTS                        ,03/01/2014,3575857,MPA20140103167 57        ,625.00,MADINA ELDERLY DAY CARE CENTRE (MEN'S LU,549532,Unclassified Non Trade,CHARITIES & VOLUNTARY ORGANISA
 LUNCH CLUB GRANT             ,8180,GRANTS                        ,03/01/2014,3575859,MPA20140103167 59        ,264.00,PARSON CROSS COMMUNITY DEVELOPMENT FORUM,385089,Unclassified Non Trade,CHARITIES & VOLUNTARY ORGANISA
 LUNCH CLUB GRANT             ,8180,GRANTS                        ,03/01/2014,3575860,MPA20140103167 6         ,278.25,OUGHTIBRIDGE & DISTRICT LUNCH CLUB      ,325339,Unclassified Non Trade,CHARITIES & VOLUNTARY ORGANISA
 LUNCH CLUB GRANT             ,8180,GRANTS                        ,03/01/2014,3575862,MPA20140103167 8         ,653.00,ST SAVIOURS LUNCH CLUB                  ,384448,Unclassified Non Trade,CHARITIES & VOLUNTARY ORGANISA
 LUNCH CLUB GRANT             ,8180,GRANTS                        ,03/01/2014,3575863,MPA20140103167 9         ,955.25,WOODSEATS METHODIST LUNCH CLUB          ,325667,Unclassified Non Trade,CHARITIES & VOLUNTARY ORGANISA
SHORT BREAKS FUNDING FOR DISAB,8440,FEE EXPENSES                  ,06/01/2014,3576367,ERS INVOICE94872         ,400.00,REDACTED PERSONAL DATA,548419,Unclassified Non Trade,OUT OF SCOPE FOR SIC MONITORIN
SHORT BREAKS FUNDING FOR DISAB,8440,FEE EXPENSES                  ,06/01/2014,3576366,ERS INVOICE94871         ,400.00,REDACTED PERSONAL DATA,536762,Unclassified Non Trade,OUT OF SCOPE FOR SIC MONITORIN
SHORT BREAKS FUNDING FOR DISAB,8440,FEE EXPENSES                  ,06/01/2014,3576368,ERS INVOICE94873         ,400.00,REDACTED PERSONAL DATA,576914,Unclassified Non Trade,OUT OF SCOPE FOR SIC MONITORIN
SHORT BREAKS FUNDING FOR DISAB,8440,FEE EXPENSES                  ,06/01/2014,3576369,ERS INVOICE94874         ,400.00,REDACTED PERSONAL DATA,539462,Unclassified Non Trade,OUT OF SCOPE FOR SIC MONITORIN
SHORT BREAKS FUNDING FOR DISAB,8440,FEE EXPENSES                  ,06/01/2014,3576370,ERS INVOICE94875         ,400.00,REDACTED PERSONAL DATA,591228,Unclassified Non Trade,OUT OF SCOPE FOR SIC MONITORIN
SHORT BREAKS FUNDING FOR DISAB,8440,FEE EXPENSES                  ,06/01/2014,3576371,ERS INVOICE94876         ,400.00,REDACTED PERSONAL DATA,536707,Unclassified Non Trade,OUT OF SCOPE FOR SIC MONITORIN
SHORT BREAKS FUNDING FOR DISAB,8440,FEE EXPENSES                  ,06/01/2014,3576372,ERS INVOICE94877         ,400.00,REDACTED PERSONAL DATA,535764,Unclassified Non Trade,OUT OF SCOPE FOR SIC MONITORIN
SHORT BREAKS FUNDING FOR DISAB,8440,FEE EXPENSES                  ,06/01/2014,3576373,ERS INVOICE94878         ,400.00,REDACTED PERSONAL DATA,533985,Unclassified Non Trade,OUT OF SCOPE FOR SIC MONITORIN
SHORT BREAKS FUNDING FOR DISAB,8440,FEE EXPENSES                  ,06/01/2014,3576374,ERS INVOICE94879         ,400.00,REDACTED PERSONAL DATA,546237,Unclassified Non Trade,OUT OF SCOPE FOR SIC MONITORIN
SHORT BREAKS FUNDING FOR DISAB,8440,FEE EXPENSES                  ,06/01/2014,3576375,ERS INVOICE94880         ,400.00,REDACTED PERSONAL DATA,591254,Unclassified Non Trade,OUT OF SCOPE FOR SIC MONITORIN
SHORT BREAKS FUNDING FOR DISAB,8440,FEE EXPENSES                  ,06/01/2014,3576376,ERS INVOICE94881         ,400.00,REDACTED PERSONAL DATA,546902,Unclassified Non Trade,OUT OF SCOPE FOR SIC MONITORIN
SHORT BREAKS FUNDING FOR DISAB,8440,FEE EXPENSES                  ,06/01/2014,3576377,ERS INVOICE94882         ,400.00,REDACTED PERSONAL DATA,591235,Unclassified Non Trade,OUT OF SCOPE FOR SIC MONITORIN
SHORT BREAKS FUNDING FOR DISAB,8440,FEE EXPENSES                  ,06/01/2014,3576378,ERS INVOICE94883         ,400.00,REDACTED PERSONAL DATA,591232,Unclassified Non Trade,OUT OF SCOPE FOR SIC MONITORIN
SHORT BREAKS FUNDING FOR DISAB,8440,FEE EXPENSES                  ,06/01/2014,3576379,ERS INVOICE94884         ,280.00,REDACTED PERSONAL DATA,591239,Unclassified Non Trade,OUT OF SCOPE FOR SIC MONITORIN
SHORT BREAKS FUNDING FOR DISAB,8440,FEE EXPENSES                  ,06/01/2014,3576380,ERS INVOICE94885         ,400.00,REDACTED PERSONAL DATA,591241,Unclassified Non Trade,OUT OF SCOPE FOR SIC MONITORIN
SHORT BREAKS FUNDING FOR DISAB,8440,FEE EXPENSES                  ,06/01/2014,3576381,ERS INVOICE94886         ,400.00,REDACTED PERSONAL DATA,591244,Unclassified Non Trade,OUT OF SCOPE FOR SIC MONITORIN
SHORT BREAKS FUNDING FOR DISAB,8440,FEE EXPENSES                  ,06/01/2014,3576382,ERS INVOICE94887         ,400.00,REDACTED PERSONAL DATA,591247,Unclassified Non Trade,OUT OF SCOPE FOR SIC MONITORIN
SHORT BREAKS FUNDING FOR DISAB,8440,FEE EXPENSES                  ,06/01/2014,3576384,ERS INVOICE94889         ,400.00,REDACTED PERSONAL DATA,591249,Unclassified Non Trade,OUT OF SCOPE FOR SIC MONITORIN
SHORT BREAKS FUNDING FOR DISAB,8440,FEE EXPENSES                  ,06/01/2014,3576385,ERS INVOICE94890         ,400.00,REDACTED PERSONAL DATA,591264,Unclassified Non Trade,OUT OF SCOPE FOR SIC MONITORIN
SHORT BREAKS FUNDING FOR DISAB,8440,FEE EXPENSES                  ,06/01/2014,3576386,ERS INVOICE94891         ,400.00,REDACTED PERSONAL DATA,591263,Unclassified Non Trade,OUT OF SCOPE FOR SIC MONITORIN
SHORT BREAKS FUNDING FOR DISAB,8440,FEE EXPENSES                  ,06/01/2014,3576387,ERS INVOICE94892         ,400.00,REDACTED PERSONAL DATA,591262,Unclassified Non Trade,OUT OF SCOPE FOR SIC MONITORIN
SHORT BREAKS FUNDING FOR DISAB,8440,FEE EXPENSES                  ,06/01/2014,3576388,ERS INVOICE94893         ,400.00,REDACTED PERSONAL DATA,591261,Unclassified Non Trade,OUT OF SCOPE FOR SIC MONITORIN
NATIONAL ASSISTANCE CONTRACT  ,6210,RENTS                         ,06/01/2014,3576391,ERS INVOICE94896         ,375.00,TAPTON ESTATES PROPERTIES LTD           ,449360,Unclassified Trade,PROPERTY & ESTATE MANAGEMENT  
NATIONAL ASSISTANCE CONTRACT  ,6210,RENTS                         ,06/01/2014,3576392,ERS INVOICE94897         ,330.00,TAPTON ESTATES PROPERTIES LTD           ,449360,Unclassified Trade,PROPERTY & ESTATE MANAGEMENT  
NATIONAL ASSISTANCE CONTRACT  ,6210,RENTS                         ,06/01/2014,3576393,ERS INVOICE94898         ,363.00,SANCTUARY MIDLANDS                      ,437596,Unclassified Non Trade,"HOUSING ASSOCIATIONS, SOCIETIE"
NATIONAL ASSISTANCE CONTRACT  ,6210,RENTS                         ,06/01/2014,3576394,ERS INVOICE94899         ,350.00,CAPITAL PROPERTIES                      ,478220,Unclassified Trade,LETTING AGENTS                
NATIONAL ASSISTANCE CONTRACT  ,6210,RENTS                         ,06/01/2014,3576395,ERS INVOICE94900         ,390.00,MU PROPERTIES                           ,583024,Unclassified Trade,LETTING AGENTS                
NATIONAL ASSISTANCE CONTRACT  ,6210,RENTS                         ,06/01/2014,3576396,ERS INVOICE94901         ,390.00,MU PROPERTIES                           ,583024,Unclassified Trade,LETTING AGENTS                
DISABLED GRANTS               ,1165,NC&A OTHER                    ,06/01/2014,3576478,ERS INVOICE94902         ,10740.00,CLARK & PARTNERS LTD                    ,203928,Medical ,DISABILITY EQUIPMENT - MNFRS &
DISABLED GRANTS               ,1165,NC&A OTHER                    ,06/01/2014,3576479,ERS INVOICE94903         ,2744.00,CLARK & PARTNERS LTD                    ,203928,Medical ,DISABILITY EQUIPMENT - MNFRS &
DISABLED GRANTS               ,1165,NC&A OTHER                    ,06/01/2014,3576480,ERS INVOICE94904         ,1126.80,JOHNSONS BUILDING SERVICES              ,556169,Construction,BUILDERS                      
DISABLED GRANTS               ,1165,NC&A OTHER                    ,06/01/2014,3576481,ERS INVOICE94905         ,1881.00,STANNAH LIFT SERVICES LTD.              ,208625,Social Community Care,STAIRLIFTS - MNFRS & INSTALLER
DISABLED GRANTS               ,1165,NC&A OTHER                    ,06/01/2014,3576485,ERS INVOICE94909         ,1940.00,PAUL BEATSON BUILDING CONTRACTORS LTD   ,207418,Construction,BUILDERS                      
DISABLED GRANTS               ,1165,NC&A OTHER                    ,06/01/2014,3576486,ERS INVOICE94910         ,3515.00,PAUL BEATSON BUILDING CONTRACTORS LTD   ,207418,Construction,BUILDERS                      
DISABLED GRANTS               ,1165,NC&A OTHER                    ,06/01/2014,3576487,ERS INVOICE94911         ,8176.01,A CLIFFE                                ,202578,Construction,ROOFING SERVICES              
DISABLED GRANTS               ,1165,NC&A OTHER                    ,06/01/2014,3576488,ERS INVOICE94912         ,3551.00,BANCROFT PLUMBING & HEATING LTD         ,398394,Construction,PLUMBERS                      
DISABLED GRANTS               ,1165,NC&A OTHER                    ,06/01/2014,3576489,ERS INVOICE94913         ,5711.00,G B ALLEN                               ,204993,Construction,PLUMBERS                      
DISABLED GRANTS               ,1165,NC&A OTHER                    ,06/01/2014,3576490,ERS INVOICE94914         ,4124.00,HARTLEY CONSTRUCTION CO                 ,527505,Construction,BUILDERS                      
DISABLED GRANTS               ,1165,NC&A OTHER                    ,06/01/2014,3576491,ERS INVOICE94915         ,1746.00,STANNAH LIFT SERVICES LTD.              ,208625,Social Community Care,STAIRLIFTS - MNFRS & INSTALLER
CLAIMS                        ,8740,PUBLIC LIABILITY              ,06/01/2014,3576492,ERS INVOICE94916         ,5000.00,JOHN MANSELL                            ,591199,Legal Services,SOLICITORS                    
CLAIMS                        ,8740,PUBLIC LIABILITY              ,06/01/2014,3576493,ERS INVOICE94917         ,615.00,DEPARTMENT FOR WORK & PENSIONS          ,326920,Unclassified Non Trade,CENTRAL GOVERNMENT            
CLAIMS                        ,8740,PUBLIC LIABILITY              ,06/01/2014,3576494,ERS INVOICE94918         ,2500.00,SIMPSON MILLAR SOLICITORS               ,591200,Legal Services,SOLICITORS                    
CLAIMS                        ,8740,HIGHWAYS                      ,06/01/2014,3576495,ERS INVOICE94919         ,10000.00,RAPID RESPONSE SOLICITORS               ,490791,Legal Services,SOLICITORS                    
LICENSING                     ,4080,FEES & CHARGES                ,06/01/2014,3576497,ERS INVOICE94921         ,366.00,REDACTED PERSONAL DATA,591329,Unclassified Non Trade,OUT OF SCOPE FOR SIC MONITORIN
MOORFOOT                      ,1194,OTHER FEES                    ,06/01/2014,3483204,594801,303.00,PICKFORDS                               ,573763,Transport,REMOVALS - OVERSEAS           
MANAGEMENT & SUPPORT SERVICES ,8400,PUBLICATIONS AND PERIODICALS  ,06/01/2014,3553578,WM0467                   ,385.00,JORDAN PUBLISHING LTD                   ,206102,Education,PUBLISHERS                    
WINTER GARDEN                 ,6030,REPAIRS AND MTCE - RESPONSIVE ,06/01/2014,3560765,13/M11014                ,2392.45,INTAKE WINDOW CLEANING SERVICES         ,205780,Cleaning and Janitorial,WINDOW CLEANERS               
WINTER GARDEN                 ,6030,REPAIRS AND MTCE - RESPONSIVE ,06/01/2014,3561331,13/M11019                ,261.00,INTAKE WINDOW CLEANING SERVICES         ,205780,Cleaning and Janitorial,WINDOW CLEANERS               
SHEFFIELD TRADING STANDARDS   ,8440,FEE EXPENSES                  ,06/01/2014,3561807,91308118294,302.00,WEST YORKSHIRE ANALYTICAL SERVICES      ,329765,Consultancy,FOOD CONSULTANTS & TECHNOLOGIS
ADULT SOCIAL CARE PURCHASING  ,9160,PARTNERSHIP CONTRACTS         ,06/01/2014,3561822,41610,1280.00,SHEFFIELD CHINESE COMMUNITY CENTRE      ,296373,Unclassified Non Trade,CHARITIES & VOLUNTARY ORGANISA
ADULT SOCIAL CARE PURCHASING  ,9160,PARTNERSHIP CONTRACTS         ,06/01/2014,3564816,2013/2014-04             ,37514.50,SHEFFIELD CHURCHES COUNCIL FOR COMM CARE,337028,Unclassified Non Trade,CHARITIES & VOLUNTARY ORGANISA
OFF THE SHELF                 ,8440,FEE EXPENSES                  ,06/01/2014,3566690,187,400.00,NEW WRITING NORTH LTD                   ,478418,Unclassified Non Trade,CHARITIES & VOLUNTARY ORGANISA
ADULT SOCIAL CARE PURCHASING  ,9160,PARTNERSHIP CONTRACTS         ,06/01/2014,3567181,INV118                   ,11480.27,DARNALL DEMENTIA GROUP                  ,299898,Social Community Care,DISABILITY & SPECIAL NEEDS - S
DIGITAL CALL OFF CONTRACT     ,1157,DWELLINGS MAIN CONTRACT       ,06/01/2014,3567207,1268,250.00,NEW CHANNELS                            ,207092,Domestic Goods,SATELLITE TELEVISION - EQUIPME
GATEWAY PROJECT               ,6210,RENTS                         ,06/01/2014,3567294,41620,349.80,MR MASKEEN BAZ                          ,513463,Unclassified Trade,COMMERCIAL PROPERTY AGENTS    
CLOSED LANDFILL SITES         ,8440,FEE EXPENSES                  ,06/01/2014,3567915,57540,4340.00,GOLDER ASSOCIATES (UK) LTD              ,444304,Consultancy,ENVIRONMENTAL CONSULTANTS     
SAFEGUARDING CHILDREN SERVICE ,8410,GENERAL OFFICE EXPENSES       ,06/01/2014,3567927,INV001244                ,4581.00,SHEFFIELD INFORMATION LINK              ,332794,Human Resources,INFORMATION SERVICES          
CITY WIDE CHILD CARE CONTRACT ,8440,FEE EXPENSES                  ,06/01/2014,3567929,INV001243                ,12563.00,SHEFFIELD INFORMATION LINK              ,332794,Human Resources,INFORMATION SERVICES          
SCHOOL MEALS                  ,8130,CATERING SUPPLIES             ,06/01/2014,3568663,1904/90676798            ,9130.24,MITIE PFI LIMITED                       ,472380,Facilities Management,FACILITIES MANAGEMENT         
SCHOOL MEALS                  ,8150,CONTRACT CATERING             ,06/01/2014,3568663,1904/90676798            ,3231.27,MITIE PFI LIMITED                       ,472380,Facilities Management,FACILITIES MANAGEMENT         
SHORT BREAKS FUNDING FOR DISAB,9120,OTHER AGENCIES                ,06/01/2014,3569277,INV001245                ,3629.00,SHEFFIELD INFORMATION LINK              ,332794,Human Resources,INFORMATION SERVICES          
ADAPTATIONS                   ,1157,DWELLINGS MAIN CONTRACT       ,06/01/2014,3569407,1025675,1383.00,CLARK & PARTNERS LTD                    ,203928,Medical ,DISABILITY EQUIPMENT - MNFRS &
CITY WIDE CARE ALARMS         ,8010,EQUIPMENT PURCHASE AND REPAIR ,06/01/2014,3569510,143004,272.28,MANGAR INTERNATIONAL                    ,335249,Medical ,DISABILITY EQUIPMENT - MNFRS &
HEALTH INTERVENTION & PREVENTI,8490,TRANSLATN/SIGN/INTERPRET FEES ,06/01/2014,3570056,3266235,264.13,LANGUAGELINE SOLUTIONS                  ,471915,Human Resources,TRANSLATORS & INTERPRETERS    
ENERGY -SCHEME                ,6150,ELECTRICITY - INVOICE         ,06/01/2014,3570066,2714-018                 ,141986.98,NPOWER                                  ,578562,Utilities,GAS SUPPLIERS                 
CORPORATE TRAVEL PLAN         ,7140,PUBLIC TRANSPORT COSTS        ,06/01/2014,3570707,MAIN255790               ,6723.00,FIRST SOUTH YORKSHIRE LTD               ,349357,Transport,BUS & COACH OPERATORS & STATIO
ADAPTATIONS                   ,1157,DWELLINGS MAIN CONTRACT       ,06/01/2014,3570791,9085171691,940.00,STANNAH LIFT SERVICES LTD.              ,208625,Social Community Care,STAIRLIFTS - MNFRS & INSTALLER
INCLUSION CENTRE              ,8390,STATIONERY                    ,06/01/2014,3570821,SINV00260873             ,302.40,R A ROBERTS (OFFICE EQUIPMENT) LTD      ,207777,Furniture,OFFICE FURNITURE & EQUIPMENT  
SCHOOL DRINKING MILK          ,8140,GROCERIES                     ,06/01/2014,3571058,46,20114.53,MEDINA CAPITAL DAIRY CO LTD             ,524568,Catering,DAIRIES                       
SCC BALANCE SHEET             ,1540,DEMOLITION CONTROL ACCOUNT    ,06/01/2014,3571096,82983,4080.00,HAGUE PLANT LTD                         ,205330,Vehicles Not Buses,PLANT & MACHINERY HIRE & LEASI
CARE PROCEEDINGS (LEGAL FEES) ,8470,LEGAL FEES                    ,06/01/2014,3571106,1001607,444.65,DAVID BRIGGS ASSOCIATES LTD             ,328709,Social Community Care,MENTAL HEALTH CENTRES         
PROVIDER CONTRACT AUG13-JUL14 ,9120,OTHER AGENCIES                ,06/01/2014,3571108,1314_141                 ,602.00,GLEADLESS VALLEY COMMUNITY FORUM        ,394371,Unclassified Non Trade,CHARITIES & VOLUNTARY ORGANISA
CLOSED LANDFILL SITES         ,8440,FEE EXPENSES                  ,06/01/2014,3571527,84676,641.83,HARPERS ENVIRONMENTAL LTD               ,537022,Consultancy,ENVIRONMENTAL CONSULTANTS     
VEHICLE MANAGEMENT            ,7020,VEHICLE FUEL COSTS            ,06/01/2014,3571548,E2002045637              ,1083.07,ALLSTAR BUSINESS SOLUTIONS LTD          ,444333,Vehicles Not Buses,CAR & TRUCK LEASING & CONTRACT
CLOSED LANDFILL SITES         ,8440,FEE EXPENSES                  ,06/01/2014,3571552,63219,2216.48,ENITIAL                                 ,480906,Consultancy,ENGINEERS - CONSULTING        
CLOSED LANDFILL SITES         ,8440,FEE EXPENSES                  ,06/01/2014,3571557,85015,619.98,HARPERS ENVIRONMENTAL LTD               ,537022,Consultancy,ENVIRONMENTAL CONSULTANTS     
MCA SUPPORT TEAM              ,8470,LEGAL FEES                    ,06/01/2014,3571561,876664,1387.50,MR J P A P O'BRIEN                      ,516793,Legal Services,BARRISTERS                    
CHAUCER PS ACTIVATION         ,1171,INTANGIBLE FIXED ASSETS       ,06/01/2014,3571611,562,3197.17,MAIRE MCCARTHY LTD                      ,301387,Consultancy,BUSINESS & MANAGEMENT CONSULTA
PLAYGROUND MAINTENANCE & INSPE,8010,EQUIPMENT PURCHASE AND REPAIR ,06/01/2014,3574017,02891PS                  ,984.00,PLAYSMART UK                            ,558533,Sports & Playground,PLAYGROUND EQUIPMENT          
TREE MANAGEMENT               ,1165,NC&A OTHER                    ,06/01/2014,3574049,1282,480.00,SHEFFIELD TREE CARE                     ,462546,Environmental Services,TREE WORK & FORESTRY SERVICES 
AREA SOUTH WEST               ,8110,"CLOTHING, UNIFORM AND LAUNDRY ",06/01/2014,3574057,920871909,388.83,ARCO LTD                                ,203022,Clothing,SAFETY EQUIPMENT & CLOTHING   
OUT OF CITY GUM               ,9030,HEALTH                        ,06/01/2014,3574067,6024099,945.98,BARNSLEY HOSPITAL NHS FT                ,308864,Unclassified Non Trade,HOSPITALS                     
CARE PROCEEDINGS (LEGAL FEES) ,8470,LEGAL FEES                    ,06/01/2014,3574127,2530,364.33,FORENSIC TESTING SERVICE LTD            ,557750,Medical ,MEDICAL & DENTAL LABORATORIES 
CLAIMS                        ,8490,OTHER PROFESSIONAL FEES       ,06/01/2014,3574163,166184,600.00,CLAIMS MANAGEMENT SOLUTIONS T/A CERTO   ,567835,Financial Services,INSURANCE - OTHER             
CARE PROCEEDINGS (LEGAL FEES) ,8470,LEGAL FEES                    ,06/01/2014,3574289,211483,1215.00,MISS SARA ANNING                        ,534666,Legal Services,BARRISTERS                    
SHEAF TRAINING                ,8010,EQUIPMENT PURCHASE AND REPAIR ,06/01/2014,3574351,SL0066338                ,2690.00,SYPTE                                   ,208757,Transport,BUS & COACH OPERATORS & STATIO
CITY WIDE CARE ALARMS         ,8010,EQUIPMENT PURCHASE AND REPAIR ,06/01/2014,3574354,3IN/10233698             ,7494.00,TUNSTALL HEALTHCARE (UK) LIMITED        ,209178,ICT,TELECOMMUNICATIONS EQUIPMENT &
PREV & EARLY INTERV. STRATEGY ,9120,OTHER AGENCIES                ,06/01/2014,3574364,882,67832.53,SHEFFIELD ALCOHOL SUPPORT SERVICE       ,351470,Medical ,ALCOHOL MISUSE - ADVICE & COUN
CARE PROCEEDINGS (LEGAL FEES) ,8470,LEGAL FEES                    ,06/01/2014,3574371,881331,600.00,MS C E FORD                             ,544033,Legal Services,SOLICITORS                    
HEALTH INTERVENTION & PREVENTI,8440,FEE EXPENSES                  ,06/01/2014,3574424,2100154837,24990.00,NHS PROVIDER SERVICES                   ,455606,Unclassified Non Trade,CLINICS - N.H.S.              
TREE MANAGEMENT               ,1165,NC&A OTHER                    ,06/01/2014,3574433,1460,788.00,DRONFIELD TREE SERVICES LTD             ,405525,Environmental Services,TREE WORK & FORESTRY SERVICES 
PARKS OPS EAST & NORTH EAST   ,7010,ROUTINE VEHICLE REPAIR & MTCE ,06/01/2014,3574435,134550,880.00,BOB WILD GRASS MACHINERY LTD            ,203417,Horticultural,LAWNMOWERS & GARDEN MACHINERY 
SAFEGUARDING CHILDREN SERVICE ,8440,FEE EXPENSES                  ,06/01/2014,3574578,816,1005.40,CONSILIENT CONSULTING LTD               ,446779,Consultancy,BUSINESS & MANAGEMENT CONSULTA
SAFEGUARDING CHILDREN SERVICE ,8440,FEE EXPENSES                  ,06/01/2014,3574579,826,403.44,CONSILIENT CONSULTING LTD               ,446779,Consultancy,BUSINESS & MANAGEMENT CONSULTA
RED TAPE CENTRAL              ,8420,ADVERTISING AND PUBLICITY     ,06/01/2014,3574592,SINV00261515             ,2794.90,R A ROBERTS (OFFICE EQUIPMENT) LTD      ,207777,Furniture,OFFICE FURNITURE & EQUIPMENT  
GRAVES PARK - ANIMAL FARM INC ,8060,MATERIALS AND SUPPLIES GENERAL,06/01/2014,3574697,270893,579.87,ARGO FEEDS LTD                          ,203028,Unclassified Trade,PET FOODS & ANIMAL FEEDS      
SHEFFIELD TRADING STANDARDS   ,5750,TRAINING EXPENDITURE          ,06/01/2014,3575051,14/13                    ,1600.00,DANIEL TRAINING SERVICES LTD            ,591023,Human Resources,TRAINING SERVICES             
MEDICO LEGAL CENTRE           ,6110,CLEANING/DOMESTIC MAT./SUPPLY ,06/01/2014,3575055,C7421                    ,420.20,CHEMSOL LTD                             ,342893,Unclassified Trade,CHEMICALS - DISTRIBUTORS & WHO
MEDICO LEGAL CENTRE           ,8010,EQUIPMENT PURCHASE AND REPAIR ,06/01/2014,3575055,C7421                    ,253.25,CHEMSOL LTD                             ,342893,Unclassified Trade,CHEMICALS - DISTRIBUTORS & WHO
MEDICO LEGAL CENTRE           ,8110,"CLOTHING, UNIFORM AND LAUNDRY ",06/01/2014,3575055,C7421                    ,510.53,CHEMSOL LTD                             ,342893,Unclassified Trade,CHEMICALS - DISTRIBUTORS & WHO
SCC INTERNAL PROG. COSTS - W4 ,1194,OTHER FEES                    ,06/01/2014,3575115,1298,6400.00,SHEFFIELD LEP LTD                       ,482230,Unclassified Non Trade,LOCAL GOVERNMENT              
CCTV                          ,8390,STATIONERY                    ,06/01/2014,3575143,13419,5675.00,BOLD COMMUNICATIONS LIMITED             ,417501,Consultancy,COMPUTER SYSTEMS & SOFTWARE (D
CITY CENTRE PROMOTIONAL PLAN  ,8550,OTHER SERVICES                ,06/01/2014,3575173,87,800.00,FIRE & POLICE MUSEUM                    ,297992,Leisure Services,MUSEUMS                       
PROJECT MANAGEMENT - SCHEME   ,8350,MISCELLANEOUS EXPENSES        ,06/01/2014,3575178,541607,1000.00,TURNER & TOWNSEND                       ,421729,Consultancy,BUILDING CONSULTANTS          
LEP BUSINESS PLAN - W4        ,1194,OTHER FEES                    ,06/01/2014,3575180,1299,550.00,SHEFFIELD LEP LTD                       ,482230,Unclassified Non Trade,LOCAL GOVERNMENT              
LEARNING DIS DEVELOPMENT FUND ,9120,OTHER AGENCIES                ,06/01/2014,3575190,1444,3060.00,SHEFFIELD MENCAP & GATEWAY              ,328741,Social Community Care,DISABILITY & SPECIAL NEEDS - S
CLAIMS                        ,8470,LEGAL FEES                    ,06/01/2014,3575280,1005117,1201.72,WRAGGE & CO LLP                         ,570660,Legal Services,SOLICITORS MARKETING SERVICES 
EXECUTOR SERVICES             ,8090,BEREAVEMENT SUPPLIES          ,06/01/2014,3575308,F49960-05501             ,572.00,SHEFFIELD CO-OPERATIVE FUNERALCARE      ,203171,Environmental Services,FUNERAL SERVICES              
YOUTH JUSTICE SERVICE         ,8490,TRANSLATN/SIGN/INTERPRET FEES ,06/01/2014,3575355,GC02093058               ,262.92,GLOBAL CONNECTIONS                      ,451209,Human Resources,TRANSLATORS & INTERPRETERS    
HARD FM                       ,6030,REPAIRS AND MTCE - RESPONSIVE ,06/01/2014,3575364,3002,415.00,CRB DOOR SYSTEMS LTD                    ,541144,Construction,DOORS - REPAIRING             
GLEADLESS PRIMARY - REBUILD   ,1194,OTHER FEES                    ,06/01/2014,3575382,93294530,1176.64,CAPITA PROPERTY AND INFRASTRUCTURE      ,591053,Consultancy,ARCHITECTS                    
CATERING PREMISES & EQUIPMENT ,8010,EQUIPMENT PURCHASE AND REPAIR ,06/01/2014,3575395,7607,525.00,DENBY CATERING EQUIPMENT LIMITED        ,580220,Catering,CATERING EQUIPMENT            
CASTLE MARKET                 ,8020,EQUIPMENT LEASE/ RENTAL/ HIRE ,06/01/2014,3575398,479661,300.00,BANNER PLANT  LTD                       ,203248,Vehicles Not Buses,PLANT & MACHINERY HIRE & LEASI
CLAIMS                        ,8470,LEGAL FEES                    ,06/01/2014,3575399,01-13-0045676/1/SHE114   ,700.00,KENNEDYS LAW LLP                        ,543971,Legal Services,SOLICITORS                    
CLAIMS                        ,8470,LEGAL FEES                    ,06/01/2014,3575400,01-13-0045675/1/SHEF03   ,700.00,KENNEDYS LAW LLP                        ,543971,Legal Services,SOLICITORS                    
CLAIMS                        ,8470,LEGAL FEES                    ,06/01/2014,3575402,01-13-0045674/1/SHEF03   ,700.00,KENNEDYS LAW LLP                        ,543971,Legal Services,SOLICITORS                    
CLAIMS                        ,8470,LEGAL FEES                    ,06/01/2014,3575403,01-13-0045673/1/SHEF03   ,700.00,KENNEDYS LAW LLP                        ,543971,Legal Services,SOLICITORS                    
CLAIMS                        ,8470,LEGAL FEES                    ,06/01/2014,3575405,01-13-0045233/1/SHEF03   ,950.00,KENNEDYS LAW LLP                        ,543971,Legal Services,SOLICITORS                    
CLAIMS                        ,8470,LEGAL FEES                    ,06/01/2014,3575406,01-13-0045672/1/SHEF03   ,700.00,KENNEDYS LAW LLP                        ,543971,Legal Services,SOLICITORS                    
CLAIMS                        ,8470,LEGAL FEES                    ,06/01/2014,3575407,01-13-0045232/1/SHEF03   ,720.00,KENNEDYS LAW LLP                        ,543971,Legal Services,SOLICITORS                    
CASTLE MARKET                 ,8020,EQUIPMENT LEASE/ RENTAL/ HIRE ,06/01/2014,3575408,479662,267.20,BANNER PLANT  LTD                       ,203248,Vehicles Not Buses,PLANT & MACHINERY HIRE & LEASI
MANAGEMENT & ADMIN SUPPORT    ,5750,TRAINING EXPENDITURE          ,06/01/2014,3575442,11358,323.68,REDACTED PERSONAL DATA,588665,Unclassified Non Trade,OUT OF SCOPE FOR SIC MONITORIN
MANAGEMENT & ADMIN SUPPORT    ,5750,TRAINING EXPENDITURE          ,06/01/2014,3575445,11359,313.28,REDACTED PERSONAL DATA,588392,Unclassified Non Trade,OUT OF SCOPE FOR SIC MONITORIN
MANAGEMENT & ADMIN SUPPORT    ,5750,TRAINING EXPENDITURE          ,06/01/2014,3575446,11360,316.38,REDACTED PERSONAL DATA,588473,Unclassified Non Trade,OUT OF SCOPE FOR SIC MONITORIN
CLAIMS                        ,8470,LEGAL FEES                    ,06/01/2014,3575447,01-13-0045234/1/SHEF03   ,950.00,KENNEDYS LAW LLP                        ,543971,Legal Services,SOLICITORS                    
MANAGEMENT & ADMIN SUPPORT    ,5750,TRAINING EXPENDITURE          ,06/01/2014,3575448,11361,353.22,REDACTED PERSONAL DATA,588864,Unclassified Non Trade,OUT OF SCOPE FOR SIC MONITORIN
CLAIMS                        ,8470,LEGAL FEES                    ,06/01/2014,3575455,01-13-0045678/1/SHE114   ,700.00,KENNEDYS LAW LLP                        ,543971,Legal Services,SOLICITORS                    
CLAIMS                        ,8470,LEGAL FEES                    ,06/01/2014,3575456,01-13-0045237/1/SHE114   ,625.00,KENNEDYS LAW LLP                        ,543971,Legal Services,SOLICITORS                    
CLAIMS                        ,8470,LEGAL FEES                    ,06/01/2014,3575457,01-13-0045235/1/SHE114   ,625.00,KENNEDYS LAW LLP                        ,543971,Legal Services,SOLICITORS                    
CLAIMS                        ,8470,LEGAL FEES                    ,06/01/2014,3575458,01-13-0045677/1/SHEF03   ,750.00,KENNEDYS LAW LLP                        ,543971,Legal Services,SOLICITORS                    
YOUTH JUSTICE SERVICE         ,9120,OTHER AGENCIES                ,06/01/2014,3575474,83,26250.00,REMEDI                                  ,329612,Unclassified Non Trade,CHARITIES & VOLUNTARY ORGANISA
YOUTH JUSTICE SERVICE         ,9120,OTHER AGENCIES                ,06/01/2014,3575491,85,23750.00,REMEDI                                  ,329612,Unclassified Non Trade,CHARITIES & VOLUNTARY ORGANISA
YOUTH JUSTICE SERVICE         ,9120,OTHER AGENCIES                ,06/01/2014,3575492,84,12500.00,REMEDI                                  ,329612,Unclassified Non Trade,CHARITIES & VOLUNTARY ORGANISA
CLAIMS                        ,8740,PUBLIC LIABILITY              ,06/01/2014,3575501,113820,4845.00,CORNERSTONE BARRISTERS                  ,570924,Legal Services,BARRISTERS                    
CLAIMS                        ,8470,LEGAL FEES                    ,06/01/2014,3575509,01-13-0045238/1/SHEF03   ,369.00,KENNEDYS LAW LLP                        ,543971,Legal Services,SOLICITORS                    
CLAIMS                        ,8470,LEGAL FEES                    ,06/01/2014,3575510,01-13-0045231/1/SHEF03   ,632.50,KENNEDYS LAW LLP                        ,543971,Legal Services,SOLICITORS                    
SENSORY MISCELLANEOUS         ,8010,EQUIPMENT PURCHASE AND REPAIR ,06/01/2014,3575514,SIN470165                ,494.91,ACTION ON HEARING LOSS                  ,207983,Unclassified Non Trade,CHARITIES & VOLUNTARY ORGANISA
CLAIMS                        ,8470,LEGAL FEES                    ,06/01/2014,3575515,01-13-0045230/1/SHEF03   ,541.60,KENNEDYS LAW LLP                        ,543971,Legal Services,SOLICITORS                    
CLAIMS                        ,8470,LEGAL FEES                    ,06/01/2014,3575522,01-13-0045236/1/SHEF03   ,1615.13,KENNEDYS LAW LLP                        ,543971,Legal Services,SOLICITORS                    
HARD FM                       ,6030,REPAIRS AND MTCE - RESPONSIVE ,06/01/2014,3575786,3014,365.00,CRB DOOR SYSTEMS LTD                    ,541144,Construction,DOORS - REPAIRING             
TRANSPORT FLEET PASSENGER SERV,8110,"CLOTHING, UNIFORM AND LAUNDRY ",06/01/2014,3575871,920927238,273.63,ARCO LTD                                ,203022,Clothing,SAFETY EQUIPMENT & CLOTHING   
ADOPTION SERVICE              ,8230,HOSPITALITY                   ,06/01/2014,3575898,41613,518.33,MERCURE ST PAULS HOTEL & SPA            ,435095,Facilities Management,HOTELS                        
EXECUTOR SERVICES             ,8090,BEREAVEMENT SUPPLIES          ,06/01/2014,3575919,F49960-05506             ,415.00,SHEFFIELD CO-OPERATIVE FUNERALCARE      ,203171,Environmental Services,FUNERAL SERVICES              
THE MOOR INDOOR MARKET        ,8020,EQUIPMENT LEASE/ RENTAL/ HIRE ,06/01/2014,3575929,20140438,4889.00,COUNTING SOLUTIONS                      ,401535,Unclassified Trade,ELECTRONIC EQUIPMENT - MNFRS &
CASTLE MARKET                 ,6090,WASTE DISPOSAL                ,06/01/2014,3575968,PSI-0040778              ,298.40,DS SMITH RECYCLING                      ,318789,Environmental Services,WASTE PAPER MERCHANTS & COLLEC
CRYSTAL PEAKS                 ,8020,EQUIPMENT LEASE/ RENTAL/ HIRE ,06/01/2014,3575969,20140381,426.00,COUNTING SOLUTIONS                      ,401535,Unclassified Trade,ELECTRONIC EQUIPMENT - MNFRS &
THE MOOR INDOOR MARKET        ,8020,EQUIPMENT LEASE/ RENTAL/ HIRE ,06/01/2014,3575969,20140381,426.00,COUNTING SOLUTIONS                      ,401535,Unclassified Trade,ELECTRONIC EQUIPMENT - MNFRS &
THE MOOR INDOOR MARKET        ,8060,MATERIALS AND SUPPLIES GENERAL,06/01/2014,3575971,20140441,1380.00,COUNTING SOLUTIONS                      ,401535,Unclassified Trade,ELECTRONIC EQUIPMENT - MNFRS &
COMMUNICATIONS                ,9120,OTHER AGENCIES                ,06/01/2014,3576027,72127,392.00,WHITESPRINT GROUP LIMITED               ,202894,Facilities Management,PRINTERS                      
STOCKSBRIDGE DISTRICT CENTRE  ,6020,FEES                          ,06/01/2014,3576029,1368,9785.00,CITY ILLUMINATIONS LTD                  ,526091,Building Construction Materials,LIGHTING RETAILERS            
PROJECTS & PROGRAMMES         ,8240,CONFERENCE EXPENSES           ,06/01/2014,3576042,3089232,250.00,CIPFA BUSINESS LIMITED                  ,301545,Human Resources,INSTITUTES - PROFESSIONAL     
CORPORATE MAIL                ,8570,POSTAGE & DELIVERY            ,06/01/2014,3576309,9046194842,8961.63,ROYAL MAIL GROUP LTD                    ,295326,Mail Services,DELIVERY SERVICES             
CLOSED LANDFILL SITES         ,6190,WATER SERVICES                ,06/01/2014,3576398,800308697/139            ,31652.40,YORKSHIRE WATER PLC                     ,295854,Utilities,WATER COMPANIES               
PURCHASING                    ,9180,RESPITE                       ,06/01/2014,3576138,J797227 291213           ,349.80,REDACTED PERSONAL DATA,328170,Social Community Care,HOME CARE SERVICES            
PDSI PURCHASING               ,9180,RESPITE                       ,06/01/2014,3576138,J797227 291213           ,349.80,REDACTED PERSONAL DATA,328170,Social Community Care,HOME CARE SERVICES            
SUPPORTED & TEMP ACCOM TEAM   ,6210,BED & BREAKFAST PAYMENTS      ,06/01/2014,3576333,1383,1095.40,EARL MARSHALL GUEST HOUSE               ,391589,Facilities Management,GUEST HOUSES                  
PURCHASING LEARNING DISABILITI,9190,DIRECT PAYMENTS               ,06/01/2014,3576248,J798834                  ,479.00,CITIZENSHIP FIRST                       ,556890,Social Community Care,CAREFIRST DIRECT PAYMENTS     
RIGHT TO CONTROL              ,9190,DIRECT PAYMENTS               ,06/01/2014,3576250,J798834                  ,1900.00,BTCV ENTERPRISES                        ,562542,Social Community Care,CAREFIRST DIRECT PAYMENTS     
ADULT SOCIAL CARE PURCHASING  ,4260,DIRECT PAYMENTS               ,06/01/2014,3576252,J798834                  ,259.86,REDACTED PERSONAL DATA,576935,Social Community Care,CAREFIRST DIRECT PAYMENTS     
ADULT SOCIAL CARE PURCHASING  ,9190,DIRECT PAYMENTS               ,06/01/2014,3576252,J798834                  ,756.93,REDACTED PERSONAL DATA,576935,Social Community Care,CAREFIRST DIRECT PAYMENTS     
DISAB CHILD ACCESS CHILDCARE  ,9190,DIRECT PAYMENTS               ,06/01/2014,3576253,J798834                  ,2145.44,REDACTED PERSONAL DATA,580174,Social Community Care,CAREFIRST DIRECT PAYMENTS     
ADULT SOCIAL CARE PURCHASING  ,9190,DIRECT PAYMENTS               ,06/01/2014,3576254,J798834                  ,432.04,REDACTED PERSONAL DATA,591206,Social Community Care,CAREFIRST DIRECT PAYMENTS     
ADULT SOCIAL CARE PURCHASING  ,9190,SUPPORT PLANNING COSTS        ,06/01/2014,3576255,J798835                  ,390.00,AGE UK                                  ,568628,Social Community Care,CAREFIRST DIRECT PAYMENTS     
PURCHASING                    ,9190,CITYWIDE SPOT                 ,06/01/2014,3576256,101273,367.04,TOGETHER                                ,453139,Unclassified Non Trade,CHARITIES & VOLUNTARY ORGANISA
ADULT SOCIAL CARE PURCHASING  ,9190,CITYWIDE SPOT                 ,06/01/2014,3576257,RR000421                 ,1202.45,SANCTUARY HOMECARE                      ,583116,Social Community Care,HOME CARE SERVICES            
PURCHASING                    ,9190,CITYWIDE SPOT                 ,06/01/2014,3576258,101275,367.04,TOGETHER                                ,453139,Unclassified Non Trade,CHARITIES & VOLUNTARY ORGANISA
ADULT SOCIAL CARE PURCHASING  ,9190,CITYWIDE SPOT                 ,06/01/2014,3576260,85987,1000.56,SCOPE(ROTHERHAM DAY SERVICE)            ,361950,Unclassified Non Trade,CHARITIES & VOLUNTARY ORGANISA
ADULT SOCIAL CARE PURCHASING  ,9190,CITYWIDE SPOT                 ,06/01/2014,3576262,17536,945.20,CAREWATCH (SHEFFIELD)                   ,328494,Social Community Care,HOME CARE SERVICES            
PREVENTION & SUPPORT - CDT    ,8490,TRANSLATN/SIGN/INTERPRET FEES ,06/01/2014,3576208,52235,808.30,LANGUAGELINE SOLUTIONS                  ,471915,Human Resources,TRANSLATORS & INTERPRETERS    
CHILDRENS & JESSOPS S17       ,9280,CONTACT                       ,06/01/2014,3576210,6384BM                   ,349.30,PROGRESSIVE CARE LTD                    ,343548,Social Community Care,CHILDREN'S HOMES              
CONTACT CONTRACTS             ,9280,CONTACT                       ,06/01/2014,3576223,6384FS                   ,320.60,PROGRESSIVE CARE LTD                    ,343548,Social Community Care,CHILDREN'S HOMES              
CONTACT CONTRACTS             ,9280,CONTACT                       ,06/01/2014,3576225,6384IB                   ,319.95,PROGRESSIVE CARE LTD                    ,343548,Social Community Care,CHILDREN'S HOMES              
CONTACT CONTRACTS             ,9280,CONTACT                       ,06/01/2014,3576232,6384KAF                  ,253.98,PROGRESSIVE CARE LTD                    ,343548,Social Community Care,CHILDREN'S HOMES              
PDSI PURCHASING               ,9200,CONTINUING RESIDENTIAL CARE   ,06/01/2014,3576185,J776474 050114           ,2586.68,HENLEIGH HALL                           ,362109,Social Community Care,NURSING HOMES                 
ADULT SOCIAL CARE PURCHASING  ,9200,CONTINUING RESIDENTIAL CARE   ,06/01/2014,3576185,J776474 050114           ,5674.80,HENLEIGH HALL                           ,362109,Social Community Care,NURSING HOMES                 
PDSI PURCHASING               ,9210,CONTINUING NURSING CARE       ,06/01/2014,3576185,J776474 050114           ,4153.84,HENLEIGH HALL                           ,362109,Social Community Care,NURSING HOMES                 
ADULT SOCIAL CARE PURCHASING  ,9210,CONTINUING NURSING CARE       ,06/01/2014,3576185,J776474 050114           ,13396.00,HENLEIGH HALL                           ,362109,Social Community Care,NURSING HOMES                 
ADULT SOCIAL CARE PURCHASING  ,9200,CONTINUING RESIDENTIAL CARE   ,06/01/2014,3576186,J792431 050114           ,22388.00,HARTWELL HOUSE                          ,361785,Social Community Care,NURSING HOMES                 
ADULT SOCIAL CARE PURCHASING  ,9200,CONTINUING RESIDENTIAL CARE   ,06/01/2014,3576187,J794917 050114           ,3990.00,ALPINE HEALTHCARE                       ,362125,Social Community Care,NURSING HOMES                 
ADULT SOCIAL CARE PURCHASING  ,9200,CONTINUING RESIDENTIAL CARE   ,06/01/2014,3576188,J794918 050114           ,10198.00,BALMORAL NURSING HOME                   ,361851,Social Community Care,NURSING HOMES                 
ADULT SOCIAL CARE PURCHASING  ,9210,CONTINUING NURSING CARE       ,06/01/2014,3576189,J794920 050114           ,33235.00,ABBEY GRANGE RESIDENTIAL HOME           ,361753,Social Community Care,RESIDENTIAL CARE HOMES        
ADULT SOCIAL CARE PURCHASING  ,9210,CONTINUING NURSING CARE       ,06/01/2014,3576190,J794922 050114           ,4650.57,ROSEBERRY CARE CENTRES GB LTD           ,368334,Social Community Care,NURSING HOMES                 
ADULT SOCIAL CARE PURCHASING  ,9200,CONTINUING RESIDENTIAL CARE   ,06/01/2014,3576191,J794924 050114           ,5244.00,IDEAL CARE HOMES                        ,524235,Social Community Care,RESIDENTIAL CARE HOMES        
ADULT SOCIAL CARE PURCHASING  ,9200,SHORT TERM RESIDENTIAL CARE   ,06/01/2014,3576191,J794924 050114           ,912.00,IDEAL CARE HOMES                        ,524235,Social Community Care,RESIDENTIAL CARE HOMES        
ADULT SOCIAL CARE PURCHASING  ,9200,SHORT TERM RESIDENTIAL CARE   ,06/01/2014,3576193,J792411 081213           ,391.00,ROSEBERRY CARE CENTRES GB LTD           ,361953,Social Community Care,NURSING HOMES                 
ADULT SOCIAL CARE PURCHASING  ,9200,SHORT TERM RESIDENTIAL CARE   ,06/01/2014,3576194,J794906 081213           ,733.58,BALMORAL NURSING HOME                   ,361851,Social Community Care,NURSING HOMES                 
ADULT SOCIAL CARE PURCHASING  ,9200,SHORT TERM RESIDENTIAL CARE   ,06/01/2014,3576195,J794907 081213           ,958.15,BEECHY KNOLL                            ,362144,Social Community Care,RESIDENTIAL CARE HOMES        
ADULT SOCIAL CARE PURCHASING  ,9200,SHORT TERM RESIDENTIAL CARE   ,06/01/2014,3576196,J794908 081213           ,1511.71,ABBEY GRANGE RESIDENTIAL HOME           ,361753,Social Community Care,RESIDENTIAL CARE HOMES        
ADULT SOCIAL CARE PURCHASING  ,9200,SHORT TERM RESIDENTIAL CARE   ,06/01/2014,3576197,J794909 081213           ,1106.00,CAIRN HOME                              ,368330,Social Community Care,RESIDENTIAL CARE HOMES        
ADULT SOCIAL CARE PURCHASING  ,9210,SHORT TERM NURSING CARE       ,06/01/2014,3576198,J794911 081213           ,1284.72,BLENHEIM COURT                          ,368328,Social Community Care,NURSING HOMES                 
CARE PROCEEDINGS (LEGAL FEES) ,8470,LEGAL FEES                    ,07/01/2014,3575449,2636,333.82,FORENSIC TESTING SERVICE LTD            ,557750,Medical ,MEDICAL & DENTAL LABORATORIES 
CATERING PREMISES & EQUIPMENT ,8010,EQUIPMENT PURCHASE AND REPAIR ,07/01/2014,3576273,7449,460.00,DENBY CATERING EQUIPMENT LIMITED        ,580220,Catering,CATERING EQUIPMENT            
SSCB                          ,8490,OTHER PROFESSIONAL FEES       ,07/01/2014,3576940,ERS INVOICE94949         ,600.00,MOHAMMAD ISMAIL                         ,477091,Consultancy,BUSINESS & MANAGEMENT CONSULTA
MADE IN SHEFFIELD             ,8440,FEE EXPENSES                  ,07/01/2014,3576941,ERS INVOICE94950         ,3240.00,ADAM BAILLIE                            ,464860,Consultancy,ENGINEERS - CONSULTING        
WALK BOOST                    ,8460,CONSULTANTS FEES              ,07/01/2014,3577110,ERS INVOICE94965         ,1000.00,RON CLAYTON                             ,505490,Leisure Services,PROFESSIONAL SPEAKERS         
DISABLED GRANTS               ,1165,NC&A OTHER                    ,07/01/2014,3577111,ERS INVOICE94966         ,13837.20,CLARK & PARTNERS LTD                    ,203928,Medical ,DISABILITY EQUIPMENT - MNFRS &
CLAIMS                        ,8740,MOTOR VEHICLE                 ,07/01/2014,3577112,ERS INVOICE94967         ,10395.00,DAWSON RENTALS SWEEPERS                 ,446765,Vehicles Not Buses,PLANT & MACHINERY HIRE & LEASI
AREA CENTAL                   ,8560,HOUSING AREA CONSULT ALLOWANCE,07/01/2014,3577125,ERS INVOICE94981         ,1000.00,ARBOURTHORNE TARA                       ,505674,Unclassified Non Trade,CHARITIES & VOLUNTARY ORGANISA
SSCB                          ,8490,OTHER PROFESSIONAL FEES       ,07/01/2014,3577126,ERS INVOICE94982         ,455.70,REDACTED PERSONAL DATA,507783,Unclassified Non Trade,OUT OF SCOPE FOR SIC MONITORIN
TREE TEAM                     ,6370,GROUNDS MTCE AND ARBORICULTURE,07/01/2014,3555403,2492,520.00,ANDERSON TREE CARE LTD                  ,316084,Environmental Services,TREE WORK & FORESTRY SERVICES 
NEW RETAIL QUARTER            ,8460,CONSULTANTS FEES              ,07/01/2014,3557802,N107015                  ,6750.00,CUSHMAN & WAKEFIELD LLP                 ,325533,Unclassified Trade,PROPERTY & ESTATE MANAGEMENT  
COMMUNITY PHARMACY            ,9030,HEALTH                        ,07/01/2014,3561034,PO/00000006              ,267.20,SKF LO (CHEMISTS) LTD                   ,581500,Unclassified Non Trade,PUBLIC HEALTH SUPPLIERS       
COMMUNITY PHARMACY            ,9030,HEALTH                        ,07/01/2014,3561035,FAWV/00000007            ,274.40,SKF LO (CHEMISTS) LTD                   ,581500,Unclassified Non Trade,PUBLIC HEALTH SUPPLIERS       
LEADERSHIP                    ,8470,LEGAL FEES                    ,07/01/2014,3561451,236708,412.50,MR DOMINIC BAYNE                        ,460310,Legal Services,BARRISTERS                    
OWLER BROOK PCP               ,1161,NC&A MAIN CONTRACT            ,07/01/2014,3561744,VYO65848                 ,42857.61,INTERSERVE CONSTRUCTION LIMITED         ,547901,Construction,BUILDERS                      
TREE TEAM                     ,6370,GROUNDS MTCE AND ARBORICULTURE,07/01/2014,3563007,1265,450.00,SHEFFIELD TREE CARE                     ,462546,Environmental Services,TREE WORK & FORESTRY SERVICES 
31) CHILD & FAM WEIGHT MAN SER,9030,HEALTH                        ,07/01/2014,3564731,2234,18674.00,ZEST                                    ,507419,Social Community Care,SOCIAL SERVICES               
TREE TEAM                     ,6370,GROUNDS MTCE AND ARBORICULTURE,07/01/2014,3566631,1457,2130.00,DRONFIELD TREE SERVICES LTD             ,405525,Environmental Services,TREE WORK & FORESTRY SERVICES 
33) PHYSICAL ACT & FOOD-UTHORP,9030,HEALTH                        ,07/01/2014,3567919,689,8117.00,UPPERTHORPE HEALTHY LIVING CENTRE       ,327429,Unclassified Non Trade,PUBLIC HEALTH SUPPLIERS       
GATEWAY PROJECT               ,8490,TRANSLATN/SIGN/INTERPRET FEES ,07/01/2014,3568105,50902,900.00,LANGUAGELINE SOLUTIONS                  ,471915,Human Resources,TRANSLATORS & INTERPRETERS    
GATEWAY PROJECT               ,8490,TRANSLATN/SIGN/INTERPRET FEES ,07/01/2014,3568107,52280,750.00,LANGUAGELINE SOLUTIONS                  ,471915,Human Resources,TRANSLATORS & INTERPRETERS    
PUBLIC HEALTH - DPH           ,9120,OTHER AGENCIES                ,07/01/2014,3569330,C88025_0002              ,1250.00,BIRLEY HEALTH CENTRE                    ,582706,Unclassified Non Trade,PUBLIC HEALTH SUPPLIERS       
ENHANCED SERVICE - CHLAMYDIA  ,9030,HEALTH                        ,07/01/2014,3569332,4000371614,1000.00,SHEFFIELD TEACHING HOSPITALS NHS FND TST,583240,Unclassified Non Trade,PUBLIC HEALTH SUPPLIERS       
OFF THE SHELF                 ,8440,FEE EXPENSES                  ,07/01/2014,3569375,181013,400.00,POETRY BOOK SOCIETY                     ,586593,Leisure Services,"CLUBS & ASSOCIATIONS - SOCIAL,"
CCRAC RADIOS                  ,8010,EQUIPMENT PURCHASE AND REPAIR ,07/01/2014,3569396,185394,310.00,D C R S                                 ,310853,ICT,RADIO COMMUNICATION EQUIPMENT 
HGV ROUTING STRATEGY          ,1183,PURCHASE OF EQUIPMENT         ,07/01/2014,3569416,15637,2699.00,GOLDEN RIVER TRAFFIC LTD                ,307176,Traffic Management,TRAFFIC MANAGEMENT SYSTEMS    
CATERING PREMISES & EQUIPMENT ,8030,EQUIPMENT MAINTENANCE CONTRACT,07/01/2014,3569521,51408,1296.64,BARNSLEY CATERING SERVICES LTD          ,203262,Catering,CATERING EQUIPMENT            
FIRST START CHILDRENS CENTRE  ,5610,AGENCY STAFF                  ,07/01/2014,3570023,3649147,266.50,CAPITA EDUCATION RESOURCING             ,203721,Human Resources,EMPLOYMENT & RECRUITMENT AGENC
CATERING PREMISES & EQUIPMENT ,8030,EQUIPMENT MAINTENANCE CONTRACT,07/01/2014,3570049,51414,434.20,BARNSLEY CATERING SERVICES LTD          ,203262,Catering,CATERING EQUIPMENT            
CATERING PREMISES & EQUIPMENT ,8030,EQUIPMENT MAINTENANCE CONTRACT,07/01/2014,3570051,51412,501.00,BARNSLEY CATERING SERVICES LTD          ,203262,Catering,CATERING EQUIPMENT            
CATERING PREMISES & EQUIPMENT ,8030,EQUIPMENT MAINTENANCE CONTRACT,07/01/2014,3570052,51413,388.56,BARNSLEY CATERING SERVICES LTD          ,203262,Catering,CATERING EQUIPMENT            
PFI 3                         ,8350,MISCELLANEOUS EXPENSES        ,07/01/2014,3570120,ASSL/13/34               ,5361.97,ACADEMY SERVICES (SHEFFIELD) LTD        ,438883,Financial Services,LEASING SERVICES              
PUBLIC HEALTH - DPH           ,9030,HEALTH                        ,07/01/2014,3570691,SCC2013/010              ,9166.75,SHEFFIELD OCCUPATIONAL HEALTH ADVISORY S,581987,Unclassified Non Trade,PUBLIC HEALTH SUPPLIERS       
CORPORATE TRAVEL PLAN         ,7140,PUBLIC TRANSPORT COSTS        ,07/01/2014,3570705,MAIN255775               ,3990.00,FIRST SOUTH YORKSHIRE LTD               ,349357,Transport,BUS & COACH OPERATORS & STATIO
RECRUITMENT AND RETENTION     ,8440,FEE EXPENSES                  ,07/01/2014,3570749,6049423,3700.00,BOND SOLON TRAINING LTD                 ,415411,Legal Services,LEGAL SERVICES                
RESOURCES MANAGER             ,8370,PRINTING                      ,07/01/2014,3570837,SINV00260844             ,265.55,R A ROBERTS (OFFICE EQUIPMENT) LTD      ,207777,Furniture,OFFICE FURNITURE & EQUIPMENT  
ENVIRONMENTAL OPERATIONS      ,8350,MISCELLANEOUS EXPENSES        ,07/01/2014,3571074,1542,394.88,MEADOWHALL EDUCATION CENTRE             ,350033,Human Resources,TRAINING CENTRES              
ACTIVITY SHEFFIELD MANAGER    ,8020,EQUIPMENT LEASE/ RENTAL/ HIRE ,07/01/2014,3571445,PASS006RT                ,414.00,PLAY AND SPORTS SOLUTION LIMITED        ,562235,Leisure Services,SPORTS COACHING & INSTRUCTION 
AREA TEAM LEADERS             ,6280,HIRE OF PREMISES              ,07/01/2014,3571534,FI00030706               ,529.38,INTERSERVE (FACILITIES SERVICES) LTD    ,318586,Unclassified Non Trade,SCHOOLS - LOCAL AUTHORITY     
CROOKESMOOR CENTRAL COSTS     ,6030,REPAIRS AND MTCE - RESPONSIVE ,07/01/2014,3571608,25391428-41              ,585.91,ADT FIRE & SECURITY PLC                 ,202773,Facilities Management,BURGLAR & INTRUDER ALARM SYSTE
NOT SCHOOL                    ,8440,FEE EXPENSES                  ,07/01/2014,3571616,3184,345.00,INCLUSION TRUST                         ,466185,Unclassified Non Trade,CHARITIES & VOLUNTARY ORGANISA
SERVICE MANAGEMENT            ,8550,OTHER SERVICES                ,07/01/2014,3574121,415,1500.00,CHILYPEP                                ,447098,Unclassified Non Trade,CHARITIES & VOLUNTARY ORGANISA
REGISTRATION & REGULATION     ,8440,FEE EXPENSES                  ,07/01/2014,3574132,137610,2025.00,MR ROBERT SANDFORD                      ,575156,Medical ,DOCTORS                       
COUNTRYSIDE EXT FUNDED PROJ.  ,8060,MATERIALS AND SUPPLIES GENERAL,07/01/2014,3574173,1542,6483.61,SHEFFIELD COUNTRYSIDE CONSERVATION TRUST,308423,Unclassified Non Trade,CHARITIES & VOLUNTARY ORGANISA
ENVIRONMENTAL OPERATIONS      ,8550,OTHER SERVICES                ,07/01/2014,3574353,90354336,580.00,AMEY LG LTD                             ,578587,Construction,ROAD CONSTRUCTION CONTRACTORS 
100 APPRENTICES               ,9120,OTHER AGENCIES                ,07/01/2014,3574377,41617,260.00,STUART'S FRUIT & VEG                    ,579202,Catering,GREENGROCERS & FRUIT SELLERS  
STUDENT FINANCIAL SUPPORT     ,9120,OTHER AGENCIES                ,07/01/2014,3574430,2014/61                  ,386.48,TIDDLYWINKS                             ,372812,Social Community Care,NURSERIES & CRECHES           
STUDENT FINANCIAL SUPPORT     ,9120,OTHER AGENCIES                ,07/01/2014,3574431,2014/62                  ,289.86,TIDDLYWINKS                             ,372812,Social Community Care,NURSERIES & CRECHES           
STUDENT FINANCIAL SUPPORT     ,9120,OTHER AGENCIES                ,07/01/2014,3574432,2014/60                  ,289.86,TIDDLYWINKS                             ,372812,Social Community Care,NURSERIES & CRECHES           
100 APPRENTICES               ,9120,OTHER AGENCIES                ,07/01/2014,3574434,41614,1071.20,THE OLD SCHOOL HOUSE NURSERY SCHOOL     ,514157,Unclassified Non Trade,NURSERY SCHOOLS               
CITY DEAL                     ,9120,OTHER AGENCIES                ,07/01/2014,3574454,4306,5391.00,FERN GLOBAL LTD                         ,517222,Human Resources,EMPLOYMENT & RECRUITMENT AGENC
100 APPRENTICES               ,9120,OTHER AGENCIES                ,07/01/2014,3574457,41617,260.00,STUART'S FRUIT & VEG                    ,579202,Catering,GREENGROCERS & FRUIT SELLERS  
100 APPRENTICES               ,9120,OTHER AGENCIES                ,07/01/2014,3574460,41617,260.00,STUART'S FRUIT & VEG                    ,579202,Catering,GREENGROCERS & FRUIT SELLERS  
100 APPRENTICES               ,9120,OTHER AGENCIES                ,07/01/2014,3574469,3,252.20,M & P PET SUPPLIES                      ,587882,Unclassified Trade,PET SHOPS & PET SUPPLIES      
100 APPRENTICES               ,9120,OTHER AGENCIES                ,07/01/2014,3574470,1830,260.00,HOME TEAM SERVICES LTD                  ,581479,Construction,GAS INSTALLERS                
RESPONSIVE HM&E               ,6020,LEGIONELLA MONITORING         ,07/01/2014,3574480,10743577,333.66,RENTOKIL INITIAL UK LTD                 ,437082,Cleaning and Janitorial,CLEANING SERVICES - COMMERCIAL
ESTATE & ENVIORMENTAL SERVICES,6090,WASTE DISPOSAL                ,07/01/2014,3574521,4485,1110.00,GREEN ESTATE LTD                        ,388189,Environmental Services,WASTE DISPOSAL SERVICES       
RESOURCES MANAGER             ,8370,PRINTING                      ,07/01/2014,3574553,SINV00261519             ,691.79,R A ROBERTS (OFFICE EQUIPMENT) LTD      ,207777,Furniture,OFFICE FURNITURE & EQUIPMENT  
CATERING PREMISES & EQUIPMENT ,8010,EQUIPMENT PURCHASE AND REPAIR ,07/01/2014,3574604,51547,867.20,BARNSLEY CATERING SERVICES LTD          ,203262,Catering,CATERING EQUIPMENT            
QUANTITY SURVEYORS - SCHEME   ,8350,MISCELLANEOUS EXPENSES        ,07/01/2014,3575008,3190,535.20,ROGERS GEOTECHNICAL SERVICES LTD        ,575312,Consultancy,SITE INVESTIGATION CONSULTANTS
STRUCTURES                    ,8350,MISCELLANEOUS EXPENSES        ,07/01/2014,3575008,3190,385.70,ROGERS GEOTECHNICAL SERVICES LTD        ,575312,Consultancy,SITE INVESTIGATION CONSULTANTS
SHELTERED PAYMENTS TO TENANTS ,6060,DECANTING/REMOVAL COSTS       ,07/01/2014,3575015,645259,302.38,PICKFORDS                               ,573763,Transport,REMOVALS - OVERSEAS           
HRS BUSINESS SUPPORT TEAM     ,8350,MISCELLANEOUS EXPENSES        ,07/01/2014,3575098,645719,269.48,PICKFORDS                               ,573763,Transport,REMOVALS - OVERSEAS           
CATERING PREMISES & EQUIPMENT ,8010,EQUIPMENT PURCHASE AND REPAIR ,07/01/2014,3575186,51508,585.93,BARNSLEY CATERING SERVICES LTD          ,203262,Catering,CATERING EQUIPMENT            
NEW RETAIL QUARTER            ,7140,PUBLIC TRANSPORT COSTS        ,07/01/2014,3575191,01/4563858               ,309.00,CO-OPERATIVE TRAVEL MANAGEMENT          ,202987,Facilities Management,TRAVEL AGENTS & HOLIDAY COMPAN
INTER AGENCY FEES             ,9120,OTHER AGENCIES                ,07/01/2014,3575289,M0006181037              ,9000.00,NORTH TYNESIDE COUNCIL                  ,558546,Unclassified Non Trade,LOCAL GOVERNMENT              
CITY STEWARDSHIP              ,6030,REPAIRS TO TENANTED PROPERTIES,07/01/2014,3575293,13060102,118447.56,KIER SHEFFIELD LLP                      ,352687,Construction,PROPERTY MAINTENANCE & REPAIRS
100 APPRENTICES               ,9120,OTHER AGENCIES                ,07/01/2014,3575304,41626,262.64,LITTLEDALE NURSING HOME                 ,361783,Social Community Care,NURSING HOMES                 
MINOR WORKS & ADAPTATIONS     ,6020,REPAIRS AND MTCE - PROGRAMMED ,07/01/2014,3575330,62012,251.00,G B ALLEN                               ,204993,Construction,PLUMBERS                      
CITY WIDE CHILD CARE CONTRACT ,6280,HIRE OF PREMISES              ,07/01/2014,3575338,41631,660.00,MANOR COMMUNITY CHILDCARE CENTRE LTD    ,311892,Social Community Care,NURSERIES & CRECHES           
CATERING PREMISES & EQUIPMENT ,8010,EQUIPMENT PURCHASE AND REPAIR ,07/01/2014,3575344,7606,1641.00,DENBY CATERING EQUIPMENT LIMITED        ,580220,Catering,CATERING EQUIPMENT            
ESTATE & ENVIORMENTAL SERVICES,6370,PLAYGROUND MAINTENANCE        ,07/01/2014,3575346,10/5398/43RC/40308       ,869.50,SHEFFIELD WILDLIFE TRUST                ,270716,Unclassified Non Trade,CHARITIES & VOLUNTARY ORGANISA
AREA CENTAL                   ,8010,ESTATES EQUIP PURCHASE & REPAI,07/01/2014,3575350,9544,375.00,BROADFIELD MOWERS LTD                   ,299941,Horticultural,LAWNMOWERS & GARDEN MACHINERY 
MINOR WORKS & ADAPTATIONS     ,6020,REPAIRS AND MTCE - PROGRAMMED ,07/01/2014,3575381,62013,502.00,G B ALLEN                               ,204993,Construction,PLUMBERS                      
TRANSPORT FLEET MANAGEMENT    ,7040,OTHER VEHICLE RUNNING COSTS   ,07/01/2014,3575434,I0490859                 ,2210.00,MIX TELEMATICS EUROPE LIMITED           ,579405,Vehicles Not Buses,COMMERCIAL VEHICLE COMPONENT M
CARE PROCEEDINGS (LEGAL FEES) ,8470,LEGAL FEES                    ,07/01/2014,3575451,891187,600.00,MISS N G ERLEN                          ,465151,Legal Services,BARRISTERS                    
OBSOLETE HEATING              ,1157,DWELLINGS MAIN CONTRACT       ,07/01/2014,3575471,13060018,32499.00,KIER SHEFFIELD LLP                      ,352687,Construction,PROPERTY MAINTENANCE & REPAIRS
OBSOLETE HEATING              ,1157,DWELLINGS MAIN CONTRACT       ,07/01/2014,3575473,13060020,7984.99,KIER SHEFFIELD LLP                      ,352687,Construction,PROPERTY MAINTENANCE & REPAIRS
TRAVEL SOLUTIONS TEAM         ,7140,PUBLIC TRANSPORT COSTS        ,07/01/2014,3575487,SL0066351                ,1170.00,SYPTE                                   ,208757,Transport,BUS & COACH OPERATORS & STATIO
OBSOLETE HEATING              ,1157,DWELLINGS MAIN CONTRACT       ,07/01/2014,3575494,13060007,30460.00,KIER SHEFFIELD LLP                      ,352687,Construction,PROPERTY MAINTENANCE & REPAIRS
EDUCATIONAL PSYCHOLOGY        ,8400,PUBLICATIONS AND PERIODICALS  ,07/01/2014,3575521,762997/1                 ,673.00,OPTIMUS EDUCATION                       ,322899,Education,PUBLISHERS                    
PRESCRIBING COST              ,9030,HEALTH                        ,07/01/2014,3575526,7016200107,145942.28,NHS SHEFFIELD CCG                       ,504799,Unclassified Non Trade,CLINICS - N.H.S.              
GOING LOCAL                   ,8560,TPB EAST                      ,07/01/2014,3575565,P55575301                ,474.75,MAPLIN ELECTRONICS                      ,314989,Unclassified Trade,ELECTRONIC EQUIPMENT COMPONENT
RESPONSIVE HM&E               ,6020,LEGIONELLA MONITORING         ,07/01/2014,3575777,10743628,3671.75,RENTOKIL INITIAL UK LTD                 ,437082,Cleaning and Janitorial,CLEANING SERVICES - COMMERCIAL
INDEPENDENT PLACEMENTS        ,9310,SOCIAL CARE OR HEALTH PLACEMNT,07/01/2014,3575869,14297,53604.33,SEASHELL TRUST ROYAL SCHOOL             ,334750,Unclassified Non Trade,SCHOOLS - SPECIAL             
SEN TRANSPORT                 ,7140,PUBLIC TRANSPORT COSTS        ,07/01/2014,3575900,91402852,280.20,NOTTINGHAMSHIRE COUNTY COUNCIL          ,319093,Unclassified Non Trade,LOCAL GOVERNMENT              
INDEPENDENT PLACEMENTS        ,9310,SOCIAL CARE OR HEALTH PLACEMNT,07/01/2014,3575901,14031,600.67,SEASHELL TRUST ROYAL SCHOOL             ,334750,Unclassified Non Trade,SCHOOLS - SPECIAL             
GRAVES PARK - ANIMAL FARM INC ,8060,MATERIALS AND SUPPLIES GENERAL,07/01/2014,3575922,272185,294.90,ARGO FEEDS LTD                          ,203028,Unclassified Trade,PET FOODS & ANIMAL FEEDS      
AGENCY STAFF                  ,5610,AGENCY STAFF - INVOICE        ,07/01/2014,3575932,CE0226043055D1           ,164480.30,REED                                    ,341818,Human Resources,EMPLOYMENT & RECRUITMENT AGENC
SCHOOL SPORTS                 ,8440,FEE EXPENSES                  ,07/01/2014,3575946,AT108145                 ,2120.00,ASHLEY TRAVEL LTD                       ,439136,Vehicles Not Buses,MINI BUSES - HIRE & LEASING   
GENERAL COMM AREAS - INC AREA ,6080,CONTRACT CLEANING             ,07/01/2014,3575958,1516,3349.00,ATKIN & SON                             ,203113,Cleaning and Janitorial,WINDOW CLEANERS               
GENERAL COMM AREAS - INC AREA ,6080,CONTRACT CLEANING             ,07/01/2014,3575960,1517,1904.98,ATKIN & SON                             ,203113,Cleaning and Janitorial,WINDOW CLEANERS               
CORONIAL SERVICES             ,8100,RECHARGEABLE PURCHASES        ,07/01/2014,3575966,9000167178,4074.27,BARNSLEY MBC                            ,414839,Unclassified Non Trade,LOCAL GOVERNMENT              
INTER AGENCY FEES             ,9120,OTHER AGENCIES                ,07/01/2014,3575981,30082567,18000.00,BLACKPOOL BOROUGH COUNCIL               ,412649,Unclassified Non Trade,LOCAL GOVERNMENT              
PUBLIC HEALTH - DPH           ,9030,HEALTH                        ,07/01/2014,3576278,7310500216,9129.00,WEST AND SOUTH YORKSHIRE AND BASSETLAW C,397430,Unclassified Non Trade,PUBLIC HEALTH SUPPLIERS       
WORKFORCE DEVELOPMENT         ,8440,FEE EXPENSES                  ,07/01/2014,3576294,19044659-011             ,858.75,SHEFFIELD HALLAM UNIVERSITY             ,301311,Unclassified Non Trade,UNIVERSITIES & MEDICAL SCHOOLS
ACCOMMODATION                 ,6210,RENTS                         ,07/01/2014,3576326,ARC1314-88               ,916.67,STOCKSBRIDGE TOWN COUNCIL               ,295752,Unclassified Non Trade,LOCAL GOVERNMENT              
MINOR WORKS                   ,6030,REPAIRS AND MTCE - RESPONSIVE ,07/01/2014,3576334,RE04255/1                ,84300.00,KIER SHEFFIELD LLP                      ,352687,Construction,PROPERTY MAINTENANCE & REPAIRS
INDIVIDUAL ELECTORAL REG      ,5750,TRAINING EXPENDITURE          ,07/01/2014,3576338,12908,708.00,ASSOCIATION OF ELECTORAL ADMINSTATORS   ,344379,Unclassified Non Trade,LOCAL GOVERNMENT              
CORPORATE TRAVEL PLAN         ,7140,PUBLIC TRANSPORT COSTS        ,07/01/2014,3576417,MAIN255788               ,3990.00,FIRST SOUTH YORKSHIRE LTD               ,349357,Transport,BUS & COACH OPERATORS & STATIO
PLAYGROUND MAINTENANCE & INSPE,8010,EQUIPMENT PURCHASE AND REPAIR ,07/01/2014,3576418,83003,4500.00,HAGUE PLANT LTD                         ,205330,Vehicles Not Buses,PLANT & MACHINERY HIRE & LEASI
WORKFORCE DEVELOPMENT         ,8440,FEE EXPENSES                  ,07/01/2014,3576427,20047170-013             ,429.00,SHEFFIELD HALLAM UNIVERSITY             ,301311,Unclassified Non Trade,UNIVERSITIES & MEDICAL SCHOOLS
WORKFORCE DEVELOPMENT         ,8440,FEE EXPENSES                  ,07/01/2014,3576428,20048129-014             ,858.75,SHEFFIELD HALLAM UNIVERSITY             ,301311,Unclassified Non Trade,UNIVERSITIES & MEDICAL SCHOOLS
TRANSPORT FLEET MANAGEMENT    ,8070,STOCKS AND STORES             ,07/01/2014,3576433,1729548,24172.50,CARLTON FUELS                           ,466741,Vehicles Not Buses,FUEL DEALERS                  
TRANSPORT FLEET PASSENGER SERV,7060,EXTERNAL VEHICLE HIRE         ,07/01/2014,3576434,788896,1324.58,DAWSONRENTALS BUS AND COACH LTD         ,556855,Vehicles Not Buses,VAN & TRUCK HIRE              
SEN TAXIS                     ,7060,EXTERNAL VEHICLE HIRE         ,07/01/2014,3576439,CTL5581                  ,6355.41,CENTRAL TRAVEL SHEFFIELD LTD            ,203820,Transport,TAXIS & PRIVATE HIRE          
PREV & EARLY INTERV. STRATEGY ,9120,OTHER AGENCIES                ,07/01/2014,3576459,4731,7223.00,PROGRESSIVE CARE LTD                    ,343548,Social Community Care,CHILDREN'S HOMES              
CORPORATE PARENTING           ,8350,MISCELLANEOUS EXPENSES        ,07/01/2014,3576460,TPM256                   ,400.48,TROPHIESPLUSMEDALS                      ,588777,Unclassified Trade,"TROPHIES, MEDALS & ROSETTES   "
PCT STAFFING BUDGET           ,5750,TRAINING EXPENDITURE          ,07/01/2014,3576461,SO1050439                ,349.00,THE KNOWLEDGE ACADEMY                   ,556154,Human Resources,TRAINING SERVICES             
PFI 2                         ,6270,SERVICE / PFI UNITARY CHARGE  ,07/01/2014,3576789,FEEP242                  ,340540.98,PRIORGATE LIMITED                       ,392312,Financial Services,LEASING SERVICES              
MINOR WORKS                   ,6030,REPAIRS AND MTCE - RESPONSIVE ,07/01/2014,3576843,RE04255/2                ,29300.00,KIER SHEFFIELD LLP                      ,352687,Construction,PROPERTY MAINTENANCE & REPAIRS
PLAYGROUND MAINTENANCE & INSPE,8010,EQUIPMENT PURCHASE AND REPAIR ,07/01/2014,3576875,2133396,1030.75,TALURIT UK LTD                          ,526574,Vehicles Not Buses,LIFTING EQUIPMENT             
CORPORATE PARENTING           ,9120,OTHER AGENCIES                ,07/01/2014,3576885,30646,10219.97,NATIONAL YOUTH ADVOCACY SERVICE         ,546945,Unclassified Non Trade,CHARITIES & VOLUNTARY ORGANISA
PUBLIC HEALTH - DPH           ,9120,OTHER AGENCIES                ,07/01/2014,3576916,C88007_0002              ,770.00,PORTER BROOK MEDICAL CENTRE             ,582165,Unclassified Non Trade,PUBLIC HEALTH SUPPLIERS       
PAYMENT HOLDING ACCOUNT       ,8350,MISCELLANEOUS EXPENSES        ,07/01/2014,3576983,13070001,876594.17,KIER SHEFFIELD LLP                      ,352687,Construction,PROPERTY MAINTENANCE & REPAIRS
PAYMENT HOLDING ACCOUNT       ,8350,MISCELLANEOUS EXPENSES        ,07/01/2014,3576985,13070002,876594.17,KIER SHEFFIELD LLP                      ,352687,Construction,PROPERTY MAINTENANCE & REPAIRS
RESOURCES MANAGER             ,8020,EQUIPMENT LEASE/ RENTAL/ HIRE ,07/01/2014,3577013,575,465.00,JUMP ROPE UK                            ,591374,Leisure Services,SPORTS COACHING & INSTRUCTION 
ACCOMMODATION                 ,6160,GAS                           ,07/01/2014,3576800,10644164280,852.45,E.ON                                    ,299536,Utilities,ELECTRICITY COMPANIES         
BIS TELECOMMS                 ,8600,MOBILE TELEPHONES - INVOICE   ,07/01/2014,3576820,121967799,595.00,ORANGE PCS LTD                          ,409889,ICT,MOBILE PHONES                 
BIS TELECOMMS                 ,8600,MOBILE TELEPHONES - INVOICE   ,07/01/2014,3576833,1041258226,9719.49,ORANGE PERSONAL COMMUNICATIONS          ,207254,ICT,MOBILE PHONES                 
BIS TELECOMMS                 ,8600,MOBILE TELEPHONES - INVOICE   ,07/01/2014,3576835,1041264900,1018.69,ORANGE PERSONAL COMMUNICATIONS          ,207254,ICT,MOBILE PHONES                 
BIS TELECOMMS                 ,8600,MOBILE TELEPHONES - INVOICE   ,07/01/2014,3576841,1041255996,849.56,ORANGE PERSONAL COMMUNICATIONS          ,207254,ICT,MOBILE PHONES                 
BIS TELECOMMS                 ,8600,MOBILE TELEPHONES - INVOICE   ,07/01/2014,3576842,1041308392,8068.62,ORANGE PERSONAL COMMUNICATIONS          ,207254,ICT,MOBILE PHONES                 
BIS TELECOMMS                 ,8600,MOBILE TELEPHONES - INVOICE   ,07/01/2014,3576844,1041264898,11275.90,ORANGE PERSONAL COMMUNICATIONS          ,207254,ICT,MOBILE PHONES                 
BIS TELECOMMS                 ,8600,MOBILE TELEPHONES - INVOICE   ,07/01/2014,3576845,1040968052,2803.90,ORANGE PERSONAL COMMUNICATIONS          ,207254,ICT,MOBILE PHONES                 
BIS TELECOMMS                 ,8600,MOBILE TELEPHONES - INVOICE   ,07/01/2014,3576846,1040994934,1659.92,ORANGE PERSONAL COMMUNICATIONS          ,207254,ICT,MOBILE PHONES                 
MFDS                          ,8370,MFD CHARGES                   ,07/01/2014,3576847,1110772614,352.94,KONICA MINOLTA BUSINESS SOLUTIONS EAST  ,206267,ICT,OFFICE EQUIPMENT MNFRS & DISTR
PURCHASING LEARNING DISABILITI,9190,DIRECT PAYMENTS               ,07/01/2014,3576659,J799871                  ,2555.73,A4E                                     ,547567,Human Resources,TRAINING SERVICES             
ADULT SOCIAL CARE PURCHASING  ,9190,DIRECT PAYMENTS               ,07/01/2014,3576660,J799871                  ,2400.00,REDACTED PERSONAL DATA,576855,Social Community Care,CAREFIRST DIRECT PAYMENTS     
PURCHASING LEARNING DISABILITI,9250,INDEPENDENT DAY CARE          ,07/01/2014,3576662,18251,339.60,BURTON STREET PROJECT                   ,342774,Unclassified Non Trade,CHARITIES & VOLUNTARY ORGANISA
ADULT SOCIAL CARE PURCHASING  ,9190,FUNDED HOME SUPPORT           ,07/01/2014,3576663,10768,919.92,B C SHEFFIELD LTD TA BLUEBIRD CARE      ,568674,Social Community Care,RESIDENTIAL CARE HOMES        
PURCHASING LEARNING DISABILITI,9190,CITYWIDE SPOT                 ,07/01/2014,3576664,2100083644,1356.12,COMMUNITY HEALTH SHEFFIELD              ,361895,Unclassified Non Trade,HOSPITALS                     
PURCHASING LEARNING DISABILITI,9190,CITYWIDE SPOT                 ,07/01/2014,3576665,2100083645,1356.12,COMMUNITY HEALTH SHEFFIELD              ,361895,Unclassified Non Trade,HOSPITALS                     
ADULT SOCIAL CARE PURCHASING  ,9190,CITYWIDE SPOT                 ,07/01/2014,3576666,2100083646,1888.12,COMMUNITY HEALTH SHEFFIELD              ,361895,Unclassified Non Trade,HOSPITALS                     
PURCHASING LEARNING DISABILITI,9190,CITYWIDE SPOT                 ,07/01/2014,3576667,2100083647,713.00,COMMUNITY HEALTH SHEFFIELD              ,361895,Unclassified Non Trade,HOSPITALS                     
PURCHASING LEARNING DISABILITI,9190,FUNDED HOME SUPPORT           ,07/01/2014,3576671,23390,6848.24,AFFINITY TRUST                          ,565909,Unclassified Non Trade,CHARITIES & VOLUNTARY ORGANISA
PURCHASING LEARNING DISABILITI,9190,FUNDED HOME SUPPORT           ,07/01/2014,3576673,23391,8366.96,AFFINITY TRUST                          ,565909,Unclassified Non Trade,CHARITIES & VOLUNTARY ORGANISA
PURCHASING LEARNING DISABILITI,9190,FUNDED HOME SUPPORT           ,07/01/2014,3576674,23393,6848.24,AFFINITY TRUST                          ,565909,Unclassified Non Trade,CHARITIES & VOLUNTARY ORGANISA
PURCHASING LEARNING DISABILITI,9190,CITYWIDE SPOT                 ,07/01/2014,3576675,2510,347.20,CARE2CARE SERVICES LTD                  ,504076,Human Resources,TRAINING SERVICES             
ADULT SOCIAL CARE PURCHASING  ,9190,CITYWIDE SPOT                 ,07/01/2014,3576677,2518,644.80,CARE2CARE SERVICES LTD                  ,504076,Human Resources,TRAINING SERVICES             
ADULT SOCIAL CARE PURCHASING  ,9190,CITYWIDE SPOT                 ,07/01/2014,3576678,2521,272.80,CARE2CARE SERVICES LTD                  ,504076,Human Resources,TRAINING SERVICES             
ADULT SOCIAL CARE PURCHASING  ,9190,CITYWIDE SPOT                 ,07/01/2014,3576679,10771,588.02,B C SHEFFIELD LTD TA BLUEBIRD CARE      ,568674,Social Community Care,RESIDENTIAL CARE HOMES        
PURCHASING                    ,9230,CCSP EMERGENCY HOSING COSTS   ,07/01/2014,3576680,6282939,996.00,MIDDLESBROUGH BOROUGH COUNCIL           ,558400,Unclassified Non Trade,LOCAL GOVERNMENT              
ADULT SOCIAL CARE PURCHASING  ,9190,CITYWIDE SPOT                 ,07/01/2014,3576681,10772,459.27,B C SHEFFIELD LTD TA BLUEBIRD CARE      ,568674,Social Community Care,RESIDENTIAL CARE HOMES        
PURCHASING LEARNING DISABILITI,9190,CITYWIDE SPOT                 ,07/01/2014,3576682,9484EM                   ,5248.88,NEW ERA HOUSING AUTHORITY               ,505956,Unclassified Non Trade,"HOUSING ASSOCIATIONS, SOCIETIE"
PURCHASING LEARNING DISABILITI,9190,CITYWIDE SPOT                 ,07/01/2014,3576683,9484JH                   ,5052.88,NEW ERA HOUSING AUTHORITY               ,505956,Unclassified Non Trade,"HOUSING ASSOCIATIONS, SOCIETIE"
PURCHASING LEARNING DISABILITI,9190,CITYWIDE SPOT                 ,07/01/2014,3576684,9484JW                   ,4099.60,NEW ERA HOUSING AUTHORITY               ,505956,Unclassified Non Trade,"HOUSING ASSOCIATIONS, SOCIETIE"
PURCHASING LEARNING DISABILITI,9190,CITYWIDE SPOT                 ,07/01/2014,3576685,9485GR                   ,8504.04,NEW ERA HOUSING AUTHORITY               ,505956,Unclassified Non Trade,"HOUSING ASSOCIATIONS, SOCIETIE"
PURCHASING LEARNING DISABILITI,9190,CITYWIDE SPOT                 ,07/01/2014,3576686,9485MW                   ,5446.20,NEW ERA HOUSING AUTHORITY               ,505956,Unclassified Non Trade,"HOUSING ASSOCIATIONS, SOCIETIE"
PURCHASING LEARNING DISABILITI,9190,CITYWIDE SPOT                 ,07/01/2014,3576687,9486AS                   ,4194.48,NEW ERA HOUSING AUTHORITY               ,505956,Unclassified Non Trade,"HOUSING ASSOCIATIONS, SOCIETIE"
PURCHASING LEARNING DISABILITI,9190,CITYWIDE SPOT                 ,07/01/2014,3576688,9486IH                   ,4194.48,NEW ERA HOUSING AUTHORITY               ,505956,Unclassified Non Trade,"HOUSING ASSOCIATIONS, SOCIETIE"
PURCHASING LEARNING DISABILITI,9190,CITYWIDE SPOT                 ,07/01/2014,3576689,9488,6403.32,NEW ERA HOUSING AUTHORITY               ,505956,Unclassified Non Trade,"HOUSING ASSOCIATIONS, SOCIETIE"
PURCHASING LEARNING DISABILITI,9190,FUNDED HOME SUPPORT           ,07/01/2014,3576691,9552,846.40,NEW ERA HOUSING AUTHORITY               ,505956,Unclassified Non Trade,"HOUSING ASSOCIATIONS, SOCIETIE"
PURCHASING LEARNING DISABILITI,9190,CITYWIDE SPOT                 ,07/01/2014,3576691,9552,8411.20,NEW ERA HOUSING AUTHORITY               ,505956,Unclassified Non Trade,"HOUSING ASSOCIATIONS, SOCIETIE"
PURCHASING LEARNING DISABILITI,9190,FUNDED HOME SUPPORT           ,07/01/2014,3576692,9553,2297.00,NEW ERA HOUSING AUTHORITY               ,505956,Unclassified Non Trade,"HOUSING ASSOCIATIONS, SOCIETIE"
PURCHASING LEARNING DISABILITI,9190,CITYWIDE SPOT                 ,07/01/2014,3576692,9553,2232.52,NEW ERA HOUSING AUTHORITY               ,505956,Unclassified Non Trade,"HOUSING ASSOCIATIONS, SOCIETIE"
PURCHASING LEARNING DISABILITI,9190,FUNDED HOME SUPPORT           ,07/01/2014,3576693,9554,1031.68,NEW ERA HOUSING AUTHORITY               ,505956,Unclassified Non Trade,"HOUSING ASSOCIATIONS, SOCIETIE"
PURCHASING LEARNING DISABILITI,9190,CITYWIDE SPOT                 ,07/01/2014,3576693,9554,2281.60,NEW ERA HOUSING AUTHORITY               ,505956,Unclassified Non Trade,"HOUSING ASSOCIATIONS, SOCIETIE"
PURCHASING LEARNING DISABILITI,9190,CITYWIDE SPOT                 ,07/01/2014,3576694,9555,7343.84,NEW ERA HOUSING AUTHORITY               ,505956,Unclassified Non Trade,"HOUSING ASSOCIATIONS, SOCIETIE"
PURCHASING LEARNING DISABILITI,9190,CITYWIDE SPOT                 ,07/01/2014,3576695,9556,4903.00,NEW ERA HOUSING AUTHORITY               ,505956,Unclassified Non Trade,"HOUSING ASSOCIATIONS, SOCIETIE"
PURCHASING LEARNING DISABILITI,9190,FUNDED HOME SUPPORT           ,07/01/2014,3576695,9556,1713.88,NEW ERA HOUSING AUTHORITY               ,505956,Unclassified Non Trade,"HOUSING ASSOCIATIONS, SOCIETIE"
PURCHASING LEARNING DISABILITI,9190,CITYWIDE SPOT                 ,07/01/2014,3576696,9557,8580.24,NEW ERA HOUSING AUTHORITY               ,505956,Unclassified Non Trade,"HOUSING ASSOCIATIONS, SOCIETIE"
PURCHASING LEARNING DISABILITI,9190,CITYWIDE SPOT                 ,07/01/2014,3576697,9558,335.52,NEW ERA HOUSING AUTHORITY               ,505956,Unclassified Non Trade,"HOUSING ASSOCIATIONS, SOCIETIE"
PURCHASING LEARNING DISABILITI,9190,CITYWIDE SPOT                 ,07/01/2014,3576698,9559,7343.84,NEW ERA HOUSING AUTHORITY               ,505956,Unclassified Non Trade,"HOUSING ASSOCIATIONS, SOCIETIE"
PURCHASING LEARNING DISABILITI,9190,FUNDED HOME SUPPORT           ,07/01/2014,3576699,9560,2362.32,NEW ERA HOUSING AUTHORITY               ,505956,Unclassified Non Trade,"HOUSING ASSOCIATIONS, SOCIETIE"
PURCHASING LEARNING DISABILITI,9190,CITYWIDE SPOT                 ,07/01/2014,3576700,9561,4376.64,NEW ERA HOUSING AUTHORITY               ,505956,Unclassified Non Trade,"HOUSING ASSOCIATIONS, SOCIETIE"
ADULT SOCIAL CARE PURCHASING  ,9190,CITYWIDE SPOT                 ,07/01/2014,3576701,10774,403.95,B C SHEFFIELD LTD TA BLUEBIRD CARE      ,568674,Social Community Care,RESIDENTIAL CARE HOMES        
ADULT SOCIAL CARE PURCHASING  ,9190,CITYWIDE SPOT                 ,07/01/2014,3576702,10775,269.25,B C SHEFFIELD LTD TA BLUEBIRD CARE      ,568674,Social Community Care,RESIDENTIAL CARE HOMES        
EAST SA - LAC                 ,9440,LOOKED AFTER CHILDREN         ,07/01/2014,3576648,01/4542375               ,545.00,CO-OPERATIVE TRAVEL MANAGEMENT          ,202987,Facilities Management,TRAVEL AGENTS & HOLIDAY COMPAN
PURCHASING LEARNING DISABILITI,9190,CITYWIDE SPOT                 ,07/01/2014,3576704,SCC0024                  ,2848.39,BLISS SUPPORT LTD                       ,387589,Social Community Care,HOME CARE SERVICES            
ADULT SOCIAL CARE PURCHASING  ,9190,CITYWIDE SPOT                 ,07/01/2014,3576704,SCC0024                  ,4641.22,BLISS SUPPORT LTD                       ,387589,Social Community Care,HOME CARE SERVICES            
ADULT SOCIAL CARE PURCHASING  ,9190,FUNDED HOME SUPPORT           ,07/01/2014,3576704,SCC0024                  ,3903.20,BLISS SUPPORT LTD                       ,387589,Social Community Care,HOME CARE SERVICES            
ADULT SOCIAL CARE PURCHASING  ,9190,FUNDED HOME SUPPORT           ,07/01/2014,3576706,10777,448.76,B C SHEFFIELD LTD TA BLUEBIRD CARE      ,568674,Social Community Care,RESIDENTIAL CARE HOMES        
ADULT SOCIAL CARE PURCHASING  ,9190,CITYWIDE SPOT                 ,07/01/2014,3576708,10760,605.70,B C SHEFFIELD LTD TA BLUEBIRD CARE      ,568674,Social Community Care,RESIDENTIAL CARE HOMES        
ADULT SOCIAL CARE PURCHASING  ,9190,CITYWIDE SPOT                 ,07/01/2014,3576711,10781,439.67,B C SHEFFIELD LTD TA BLUEBIRD CARE      ,568674,Social Community Care,RESIDENTIAL CARE HOMES        
ADULT SOCIAL CARE PURCHASING  ,9190,CITYWIDE SPOT                 ,07/01/2014,3576712,10941,430.72,B C SHEFFIELD LTD TA BLUEBIRD CARE      ,568674,Social Community Care,RESIDENTIAL CARE HOMES        
ADULT SOCIAL CARE PURCHASING  ,9190,CITYWIDE SPOT                 ,07/01/2014,3576713,10942,260.29,B C SHEFFIELD LTD TA BLUEBIRD CARE      ,568674,Social Community Care,RESIDENTIAL CARE HOMES        
ADULT SOCIAL CARE PURCHASING  ,9190,CITYWIDE SPOT                 ,07/01/2014,3576719,10761,305.15,B C SHEFFIELD LTD TA BLUEBIRD CARE      ,568674,Social Community Care,RESIDENTIAL CARE HOMES        
ADULT SOCIAL CARE PURCHASING  ,9190,FUNDED HOME SUPPORT           ,07/01/2014,3576720,10948,891.50,B C SHEFFIELD LTD TA BLUEBIRD CARE      ,568674,Social Community Care,RESIDENTIAL CARE HOMES        
ADULT SOCIAL CARE PURCHASING  ,9190,CITYWIDE SPOT                 ,07/01/2014,3576723,10951,1149.14,B C SHEFFIELD LTD TA BLUEBIRD CARE      ,568674,Social Community Care,RESIDENTIAL CARE HOMES        
ADULT SOCIAL CARE PURCHASING  ,9190,CITYWIDE SPOT                 ,07/01/2014,3576724,10952,423.37,B C SHEFFIELD LTD TA BLUEBIRD CARE      ,568674,Social Community Care,RESIDENTIAL CARE HOMES        
ADULT SOCIAL CARE PURCHASING  ,9190,CITYWIDE SPOT                 ,07/01/2014,3576726,10954,260.32,B C SHEFFIELD LTD TA BLUEBIRD CARE      ,568674,Social Community Care,RESIDENTIAL CARE HOMES        
ADULT SOCIAL CARE PURCHASING  ,9190,CITYWIDE SPOT                 ,07/01/2014,3576733,10960,397.81,B C SHEFFIELD LTD TA BLUEBIRD CARE      ,568674,Social Community Care,RESIDENTIAL CARE HOMES        
PURCHASING                    ,9190,CITYWIDE SPOT                 ,07/01/2014,3576734,13698,269.30,SSA SOCIAL CARE & COMMUNITY SERVICES LTD,301604,Human Resources,EMPLOYMENT & RECRUITMENT AGENC
ADULT SOCIAL CARE PURCHASING  ,9190,CITYWIDE SPOT                 ,07/01/2014,3576734,13698,723.51,SSA SOCIAL CARE & COMMUNITY SERVICES LTD,301604,Human Resources,EMPLOYMENT & RECRUITMENT AGENC
ADULT SOCIAL CARE PURCHASING  ,9190,CITYWIDE SPOT                 ,07/01/2014,3576735,13851,412.56,SSA SOCIAL CARE & COMMUNITY SERVICES LTD,301604,Human Resources,EMPLOYMENT & RECRUITMENT AGENC
PURCHASING                    ,9190,CITYWIDE SPOT                 ,07/01/2014,3576735,13851,269.30,SSA SOCIAL CARE & COMMUNITY SERVICES LTD,301604,Human Resources,EMPLOYMENT & RECRUITMENT AGENC
ADULT SOCIAL CARE PURCHASING  ,9190,CITYWIDE SPOT                 ,07/01/2014,3576736,13920,257.41,SSA SOCIAL CARE & COMMUNITY SERVICES LTD,301604,Human Resources,EMPLOYMENT & RECRUITMENT AGENC
PURCHASING LEARNING DISABILITI,9190,CITYWIDE SPOT                 ,07/01/2014,3576738,198020,522.00,UNITED RESPONSE                         ,329604,Unclassified Non Trade,CHARITIES & VOLUNTARY ORGANISA
PURCHASING LEARNING DISABILITI,9190,CITYWIDE SPOT                 ,07/01/2014,3576739,198022,812.00,UNITED RESPONSE                         ,329604,Unclassified Non Trade,CHARITIES & VOLUNTARY ORGANISA
ADULT SOCIAL CARE PURCHASING  ,9190,CITYWIDE SPOT                 ,07/01/2014,3576740,198026,522.00,UNITED RESPONSE                         ,329604,Unclassified Non Trade,CHARITIES & VOLUNTARY ORGANISA
PURCHASING LEARNING DISABILITI,9190,CITYWIDE SPOT                 ,07/01/2014,3576742,198107/15072             ,769.08,UNITED RESPONSE                         ,329604,Unclassified Non Trade,CHARITIES & VOLUNTARY ORGANISA
PURCHASING LEARNING DISABILITI,9190,CITYWIDE SPOT                 ,07/01/2014,3576743,198108/15071             ,2151.22,UNITED RESPONSE                         ,329604,Unclassified Non Trade,CHARITIES & VOLUNTARY ORGANISA
PURCHASING LEARNING DISABILITI,9190,CITYWIDE SPOT                 ,07/01/2014,3576745,198114,1825.16,UNITED RESPONSE                         ,329604,Unclassified Non Trade,CHARITIES & VOLUNTARY ORGANISA
PURCHASING LEARNING DISABILITI,9190,CITYWIDE SPOT                 ,07/01/2014,3576748,198220,2143.68,UNITED RESPONSE                         ,329604,Unclassified Non Trade,CHARITIES & VOLUNTARY ORGANISA
ADULT SOCIAL CARE PURCHASING  ,9190,CITYWIDE SPOT                 ,07/01/2014,3576749,198234,909.44,UNITED RESPONSE                         ,329604,Unclassified Non Trade,CHARITIES & VOLUNTARY ORGANISA
ADULT SOCIAL CARE PURCHASING  ,9190,CITYWIDE SPOT                 ,07/01/2014,3576750,198235,860.72,UNITED RESPONSE                         ,329604,Unclassified Non Trade,CHARITIES & VOLUNTARY ORGANISA
PURCHASING LEARNING DISABILITI,9190,CITYWIDE SPOT                 ,07/01/2014,3576751,198240,844.48,UNITED RESPONSE                         ,329604,Unclassified Non Trade,CHARITIES & VOLUNTARY ORGANISA
PURCHASING LEARNING DISABILITI,9190,CITYWIDE SPOT                 ,07/01/2014,3576752,198248,649.60,UNITED RESPONSE                         ,329604,Unclassified Non Trade,CHARITIES & VOLUNTARY ORGANISA
PDSI PURCHASING               ,9190,CITYWIDE SPOT                 ,07/01/2014,3576753,198277,812.00,UNITED RESPONSE                         ,329604,Unclassified Non Trade,CHARITIES & VOLUNTARY ORGANISA
PURCHASING LEARNING DISABILITI,9190,CITYWIDE SPOT                 ,07/01/2014,3576754,198278,870.00,UNITED RESPONSE                         ,329604,Unclassified Non Trade,CHARITIES & VOLUNTARY ORGANISA
PURCHASING LEARNING DISABILITI,9190,CITYWIDE SPOT                 ,07/01/2014,3576756,198279,2842.00,UNITED RESPONSE                         ,329604,Unclassified Non Trade,CHARITIES & VOLUNTARY ORGANISA
PURCHASING LEARNING DISABILITI,9190,CITYWIDE SPOT                 ,07/01/2014,3576757,198280,1522.50,UNITED RESPONSE                         ,329604,Unclassified Non Trade,CHARITIES & VOLUNTARY ORGANISA
PURCHASING LEARNING DISABILITI,9190,CITYWIDE SPOT                 ,07/01/2014,3576758,198281,1711.00,UNITED RESPONSE                         ,329604,Unclassified Non Trade,CHARITIES & VOLUNTARY ORGANISA
PURCHASING LEARNING DISABILITI,9190,CITYWIDE SPOT                 ,07/01/2014,3576759,198282,2349.00,UNITED RESPONSE                         ,329604,Unclassified Non Trade,CHARITIES & VOLUNTARY ORGANISA
PURCHASING LEARNING DISABILITI,9190,CITYWIDE SPOT                 ,07/01/2014,3576760,198283,1203.50,UNITED RESPONSE                         ,329604,Unclassified Non Trade,CHARITIES & VOLUNTARY ORGANISA
PURCHASING LEARNING DISABILITI,9190,CITYWIDE SPOT                 ,07/01/2014,3576761,198360/15074             ,1861.22,UNITED RESPONSE                         ,329604,Unclassified Non Trade,CHARITIES & VOLUNTARY ORGANISA
PURCHASING LEARNING DISABILITI,9190,CITYWIDE SPOT                 ,07/01/2014,3576762,198361/15073             ,1711.58,UNITED RESPONSE                         ,329604,Unclassified Non Trade,CHARITIES & VOLUNTARY ORGANISA
PURCHASING LEARNING DISABILITI,9190,CITYWIDE SPOT                 ,07/01/2014,3576763,198362,1102.00,UNITED RESPONSE                         ,329604,Unclassified Non Trade,CHARITIES & VOLUNTARY ORGANISA
PURCHASING LEARNING DISABILITI,9190,CITYWIDE SPOT                 ,07/01/2014,3576764,198363,1015.00,UNITED RESPONSE                         ,329604,Unclassified Non Trade,CHARITIES & VOLUNTARY ORGANISA
PURCHASING LEARNING DISABILITI,9190,FUNDED HOME SUPPORT           ,07/01/2014,3576765,198378,729.60,UNITED RESPONSE                         ,329604,Unclassified Non Trade,CHARITIES & VOLUNTARY ORGANISA
PURCHASING LEARNING DISABILITI,9190,CITYWIDE SPOT                 ,07/01/2014,3576767,198383,290.00,UNITED RESPONSE                         ,329604,Unclassified Non Trade,CHARITIES & VOLUNTARY ORGANISA
PURCHASING LEARNING DISABILITI,9190,CITYWIDE SPOT                 ,07/01/2014,3576769,198424,619.60,UNITED RESPONSE                         ,329604,Unclassified Non Trade,CHARITIES & VOLUNTARY ORGANISA
PURCHASING LEARNING DISABILITI,9190,CITYWIDE SPOT                 ,07/01/2014,3576770,198493,928.00,UNITED RESPONSE                         ,329604,Unclassified Non Trade,CHARITIES & VOLUNTARY ORGANISA
PURCHASING LEARNING DISABILITI,9190,CITYWIDE SPOT                 ,07/01/2014,3576771,198494,928.00,UNITED RESPONSE                         ,329604,Unclassified Non Trade,CHARITIES & VOLUNTARY ORGANISA
PURCHASING LEARNING DISABILITI,9190,CITYWIDE SPOT                 ,07/01/2014,3576772,198496,1334.00,UNITED RESPONSE                         ,329604,Unclassified Non Trade,CHARITIES & VOLUNTARY ORGANISA
PURCHASING LEARNING DISABILITI,9190,CITYWIDE SPOT                 ,07/01/2014,3576773,198497,464.00,UNITED RESPONSE                         ,329604,Unclassified Non Trade,CHARITIES & VOLUNTARY ORGANISA
PURCHASING LEARNING DISABILITI,9190,CITYWIDE SPOT                 ,07/01/2014,3576774,198498,928.00,UNITED RESPONSE                         ,329604,Unclassified Non Trade,CHARITIES & VOLUNTARY ORGANISA
PURCHASING LEARNING DISABILITI,9190,CITYWIDE SPOT                 ,07/01/2014,3576775,198499,928.00,UNITED RESPONSE                         ,329604,Unclassified Non Trade,CHARITIES & VOLUNTARY ORGANISA
PURCHASING LEARNING DISABILITI,9190,CITYWIDE SPOT                 ,07/01/2014,3576776,198500,464.00,UNITED RESPONSE                         ,329604,Unclassified Non Trade,CHARITIES & VOLUNTARY ORGANISA
PURCHASING LEARNING DISABILITI,9190,CITYWIDE SPOT                 ,07/01/2014,3576778,198501,928.00,UNITED RESPONSE                         ,329604,Unclassified Non Trade,CHARITIES & VOLUNTARY ORGANISA
PURCHASING LEARNING DISABILITI,9190,CITYWIDE SPOT                 ,07/01/2014,3576779,198502,580.00,UNITED RESPONSE                         ,329604,Unclassified Non Trade,CHARITIES & VOLUNTARY ORGANISA
PURCHASING LEARNING DISABILITI,9190,CITYWIDE SPOT                 ,07/01/2014,3576780,198503,464.00,UNITED RESPONSE                         ,329604,Unclassified Non Trade,CHARITIES & VOLUNTARY ORGANISA
PURCHASING LEARNING DISABILITI,9190,CITYWIDE SPOT                 ,07/01/2014,3576781,198504,464.00,UNITED RESPONSE                         ,329604,Unclassified Non Trade,CHARITIES & VOLUNTARY ORGANISA
PURCHASING LEARNING DISABILITI,9190,CITYWIDE SPOT                 ,07/01/2014,3576782,198505,580.00,UNITED RESPONSE                         ,329604,Unclassified Non Trade,CHARITIES & VOLUNTARY ORGANISA
PURCHASING LEARNING DISABILITI,9190,CITYWIDE SPOT                 ,07/01/2014,3576785,198508,812.00,UNITED RESPONSE                         ,329604,Unclassified Non Trade,CHARITIES & VOLUNTARY ORGANISA
PURCHASING LEARNING DISABILITI,9190,CITYWIDE SPOT                 ,07/01/2014,3576786,198509,779.52,UNITED RESPONSE                         ,329604,Unclassified Non Trade,CHARITIES & VOLUNTARY ORGANISA
PURCHASING LEARNING DISABILITI,9190,CITYWIDE SPOT                 ,07/01/2014,3576787,198523,928.00,UNITED RESPONSE                         ,329604,Unclassified Non Trade,CHARITIES & VOLUNTARY ORGANISA
INDEPENDENT FOSTERING PLACEMEN,9270,INDEPENDENT FOSTERING         ,07/01/2014,3576633,26176,3703.00,FOSTERPLUS LTD.                         ,366456,Social Community Care,ADOPTION & FOSTERING          
INDEPENDENT FOSTERING PLACEMEN,9270,INDEPENDENT FOSTERING         ,07/01/2014,3576634,26177,3703.00,FOSTERPLUS LTD.                         ,366456,Social Community Care,ADOPTION & FOSTERING          
INDEPENDENT FOSTERING PLACEMEN,9270,INDEPENDENT FOSTERING         ,07/01/2014,3576635,140058,874.00,SWIIS FOSTER CARE LTD.                  ,349291,Social Community Care,ADOPTION & FOSTERING          
INDEPENDENT FOSTERING PLACEMEN,9270,INDEPENDENT FOSTERING         ,07/01/2014,3576636,140059,830.00,SWIIS FOSTER CARE LTD.                  ,349291,Social Community Care,ADOPTION & FOSTERING          
INDEPENDENT FOSTERING PLACEMEN,9270,INDEPENDENT FOSTERING         ,07/01/2014,3576637,140060,928.97,SWIIS FOSTER CARE LTD.                  ,349291,Social Community Care,ADOPTION & FOSTERING          
INDEPENDENT FOSTERING PLACEMEN,9270,INDEPENDENT FOSTERING         ,07/01/2014,3576638,18/13                    ,1600.00,CHRYSALIS CONSORTIUM                    ,590591,Social Community Care,ADOPTION & FOSTERING          
INDEPENDENT RES BLOCK PLACEMEN,9270,INDEPENDENT RESIDENTIAL PMENT ,07/01/2014,3576640,6332,4084.42,PROGRESSIVE CARE LTD                    ,343548,Social Community Care,CHILDREN'S HOMES              
UASC/ASYLUM 16-17             ,6210,RENTS                         ,07/01/2014,3576641,6333,4765.62,PROGRESSIVE CARE LTD                    ,343548,Social Community Care,CHILDREN'S HOMES              
INDEPENDENT RES BLOCK PLACEMEN,9270,INDEPENDENT RESIDENTIAL PMENT ,07/01/2014,3576642,6334,5106.02,PROGRESSIVE CARE LTD                    ,343548,Social Community Care,CHILDREN'S HOMES              
LEAVING CARE                  ,9270,CARELEAVERS ACCOMMODATION     ,07/01/2014,3576643,6351,3063.61,PROGRESSIVE CARE LTD                    ,343548,Social Community Care,CHILDREN'S HOMES              
UASC/ASYLUM - LEAVING CARE    ,6210,RENTS                         ,07/01/2014,3576644,6353,465.00,PROGRESSIVE CARE LTD                    ,343548,Social Community Care,CHILDREN'S HOMES              
LEAVING CARE                  ,9270,CARELEAVERS ACCOMMODATION     ,07/01/2014,3576645,6357,1142.85,PROGRESSIVE CARE LTD                    ,343548,Social Community Care,CHILDREN'S HOMES              
LEAVING CARE                  ,9270,CARELEAVERS ACCOMMODATION     ,07/01/2014,3576646,951,15972.76,PENARTH HOUSE                           ,326884,Social Community Care,CHILDCARE SERVICES            
LEAVING CARE                  ,9270,CARELEAVERS ACCOMMODATION     ,07/01/2014,3576647,A1608                    ,453.30,JUST ONE RECRUITMENT & TRAINING LTD     ,583918,Human Resources,EMPLOYMENT & RECRUITMENT AGENC
EAST SA - CIN S17             ,8490,TRANSLATN/SIGN/INTERPRET FEES ,07/01/2014,3576655,52086,2362.50,LANGUAGELINE SOLUTIONS                  ,471915,Human Resources,TRANSLATORS & INTERPRETERS    
ADULT SOCIAL CARE PURCHASING  ,9200,CONTINUING RESIDENTIAL CARE   ,07/01/2014,3576622,J776326 050114           ,1608.00,HAVEN LODGE CARE HOME                   ,582721,Social Community Care,RESIDENTIAL CARE HOMES        
PURCHASING LEARNING DISABILITI,9240,SUPPORTED LIVING CARE         ,07/01/2014,3576623,J799945 020214           ,861.12,UNITED RESPONSE                         ,209238,Unclassified Non Trade,CHARITIES & VOLUNTARY ORGANISA
ADULT SOCIAL CARE PURCHASING  ,9200,CONTINUING RESIDENTIAL CARE   ,07/01/2014,3576624,J799969 020214           ,24148.00,DARNALL VIEW RESIDENTIAL HOME           ,362170,Social Community Care,RESIDENTIAL CARE HOMES        
ADULT SOCIAL CARE PURCHASING  ,9200,CONTINUING RESIDENTIAL CARE   ,07/01/2014,3576625,J800032 020214           ,7388.00,ROSEBERRY CARE CENTRES GB LTD           ,361953,Social Community Care,NURSING HOMES                 
ADULT SOCIAL CARE PURCHASING  ,9210,CONTINUING NURSING CARE       ,07/01/2014,3576625,J800032 020214           ,17982.80,ROSEBERRY CARE CENTRES GB LTD           ,361953,Social Community Care,NURSING HOMES                 
PURCHASING                    ,9200,CONTINUING RESIDENTIAL CARE   ,07/01/2014,3576626,J800139 020214           ,2370.16,BIRMINGHAM CITY COUNCIL                 ,560253,Unclassified Non Trade,COUNCILS                      
ADULT SOCIAL CARE PURCHASING  ,9200,SHORT TERM RESIDENTIAL CARE   ,07/01/2014,3576627,J799830 050114           ,5018.57,BURNT TREE CROFT                        ,361793,Social Community Care,RESIDENTIAL CARE HOMES        
ADULT SOCIAL CARE PURCHASING  ,9200,SHORT TERM RESIDENTIAL CARE   ,07/01/2014,3576628,J799831 050114           ,1761.15,CASTELAYN                               ,361796,Social Community Care,RESIDENTIAL CARE HOMES        
ADULT SOCIAL CARE PURCHASING  ,9200,SHORT TERM RESIDENTIAL CARE   ,07/01/2014,3576629,J799832 050114           ,1189.00,SHEFFCARE LTD                           ,361811,Social Community Care,RESIDENTIAL CARE HOMES        
ADULT SOCIAL CARE PURCHASING  ,9200,SHORT TERM RESIDENTIAL CARE   ,07/01/2014,3576630,J799841 050114           ,912.00,BROOMGROVE TRUST NURSING                ,361755,Social Community Care,NURSING HOMES                 
ADULT SOCIAL CARE PURCHASING  ,9200,SHORT TERM RESIDENTIAL CARE   ,07/01/2014,3576631,J799843 050114           ,1125.00,BROOMCROFT HOUSE                        ,361960,Social Community Care,NURSING HOMES                 
ADULT SOCIAL CARE PURCHASING  ,9200,SHORT TERM RESIDENTIAL CARE   ,07/01/2014,3576632,J799847 050114           ,1417.57,ABBEY GRANGE RESIDENTIAL HOME           ,361753,Social Community Care,RESIDENTIAL CARE HOMES        
LOCAL HOUSING COMPANY LGF     ,9120,OTHER AGENCIES                ,08/01/2014,3577595,ERS INVOICE94984         ,60000.00,SHEFFIELD HOUSING COMPANY LIMITED       ,559160,Unclassified Non Trade,OUT OF SCOPE FOR SIC MONITORIN
VSP DELIVER                   ,9120,OTHER AGENCIES                ,08/01/2014,3577596,ERS INVOICE94985         ,857.25,WHIRLOW HALL FARM TRUST LTD             ,318019,Unclassified Non Trade,CHARITIES & VOLUNTARY ORGANISA
VSP DELIVER                   ,9120,OTHER AGENCIES                ,08/01/2014,3577597,ERS INVOICE94986         ,5683.25,DIMENSIONS TRAINING SOLUTIONS           ,433070,Education,HAIRDRESSING SCHOOLS          
VSP DELIVER                   ,9120,OTHER AGENCIES                ,08/01/2014,3577598,ERS INVOICE94987         ,5699.13,DONCASTER ROTH & DIST (MOTOR TRADES)GTA ,204434,Human Resources,TRAINING CENTRES              
VSP DELIVER                   ,9120,OTHER AGENCIES                ,08/01/2014,3577599,ERS INVOICE94988         ,1557.90,SHEFFIELD COLLEGE                       ,394141,Unclassified Non Trade,SCHOOLS & COLLEGES - FURTHER E
VSP DELIVER                   ,9120,OTHER AGENCIES                ,08/01/2014,3577600,ERS INVOICE94989         ,986.67,THE SHEFFIELD COLLEGE                   ,297611,Unclassified Non Trade,SCHOOLS & COLLEGES - FURTHER E
VSP DELIVER                   ,9120,OTHER AGENCIES                ,08/01/2014,3577601,ERS INVOICE94990         ,4302.00,WHITE ROSE SCHOOLS LTD                  ,334662,Education,BEAUTY SCHOOLS                
VSP DELIVER                   ,9120,OTHER AGENCIES                ,08/01/2014,3577602,ERS INVOICE94991         ,843.75,THE SOURCE AT MEADOWHALL                ,350485,Human Resources,TRAINING CENTRES              
VSP DELIVER                   ,9120,OTHER AGENCIES                ,08/01/2014,3577603,ERS INVOICE94992         ,1206.50,WHIRLOW HALL FARM TRUST LTD             ,318019,Unclassified Non Trade,CHARITIES & VOLUNTARY ORGANISA
VSP DELIVER                   ,9140,PRIVATE CONTRACTORS           ,08/01/2014,3577604,ERS INVOICE94994         ,593.75,A MIND APART THEATRE COMPANY LTD        ,508180,Education,DRAMA SCHOOLS                 
VSP DELIVER                   ,9140,PRIVATE CONTRACTORS           ,08/01/2014,3577605,ERS INVOICE94995         ,1206.50,DONCASTER ROTH & DIST (MOTOR TRADES)GTA ,204434,Human Resources,TRAINING CENTRES              
VSP DELIVER                   ,9140,PRIVATE CONTRACTORS           ,08/01/2014,3577606,ERS INVOICE94996         ,1047.75,SHEFFIELD INDUSTRIAL MUSEUMS TRUST LTD  ,307272,Leisure Services,MUSEUMS                       
VSP DELIVER                   ,9140,PRIVATE CONTRACTORS           ,08/01/2014,3577607,ERS INVOICE94997         ,1587.50,HEELEY CITY FARM                        ,301277,Unclassified Non Trade,CHARITIES & VOLUNTARY ORGANISA
VSP DELIVER                   ,9140,PRIVATE CONTRACTORS           ,08/01/2014,3577608,ERS INVOICE94998         ,3048.00,IN2CHANGE SOUTH YORKS LTD               ,558793,Unclassified Non Trade,CHARITIES & VOLUNTARY ORGANISA
VSP DELIVER                   ,9140,PRIVATE CONTRACTORS           ,08/01/2014,3577609,ERS INVOICE94999         ,1333.50,HEELEY DEVELOPMENT TRUST                ,363241,Unclassified Non Trade,CHARITIES & VOLUNTARY ORGANISA
VSP DELIVER                   ,9140,PRIVATE CONTRACTORS           ,08/01/2014,3577610,ERS INVOICE95000         ,1406.25,SHEFFIELD TEACHING HOSPITALS NHS TRUST  ,299675,Unclassified Non Trade,HOSPITALS - POST MORTEM       
VSP DELIVER                   ,9140,PRIVATE CONTRACTORS           ,08/01/2014,3577611,ERS INVOICE95001         ,5966.91,THE SHEFFIELD COLLEGE                   ,297611,Unclassified Non Trade,SCHOOLS & COLLEGES - FURTHER E
VSP DELIVER                   ,9140,PRIVATE CONTRACTORS           ,08/01/2014,3577612,ERS INVOICE95012         ,1750.00,THE SHARKS                              ,540033,Leisure Services,SPORTS CLUBS & ASSOCIATIONS   
VSP DELIVER                   ,9140,PRIVATE CONTRACTORS           ,08/01/2014,3577614,ERS INVOICE95013         ,2781.25,SOUTH YORKSHIRE & HALLAMSHIRE CYP       ,431967,Unclassified Non Trade,YOUTH ORGANISATIONS & CENTRES 
VSP DELIVER                   ,9120,OTHER AGENCIES                ,08/01/2014,3577615,ERS INVOICE95014         ,2093.75,SHEFFIELD WEDNESDAY ACADEMY             ,461589,Leisure Services,SPORTS CLUBS & ASSOCIATIONS   
VSP DELIVER                   ,9140,PRIVATE CONTRACTORS           ,08/01/2014,3577616,ERS INVOICE95015         ,906.25,MANOR AND CASTLE DEVELOPMENT TRUST      ,486881,Unclassified Non Trade,YOUTH ORGANISATIONS & CENTRES 
VSP DELIVER                   ,9140,PRIVATE CONTRACTORS           ,08/01/2014,3577617,ERS INVOICE95016         ,906.25,HEELEY DEVELOPMENT TRUST                ,363241,Unclassified Non Trade,CHARITIES & VOLUNTARY ORGANISA
VSP DELIVER                   ,9140,PRIVATE CONTRACTORS           ,08/01/2014,3577618,ERS INVOICE95017         ,3500.00,SYTG LTD                                ,306547,Human Resources,TRAINING CENTRES              
VSP DELIVER                   ,9140,PRIVATE CONTRACTORS           ,08/01/2014,3577619,ERS INVOICE95020         ,1651.00,WHIRLOW HALL FARM TRUST LTD             ,318019,Unclassified Non Trade,CHARITIES & VOLUNTARY ORGANISA
VSP DELIVER                   ,9140,PRIVATE CONTRACTORS           ,08/01/2014,3577620,ERS INVOICE95024         ,6312.51,Y A S Y                                 ,306981,Unclassified Non Trade,YOUTH ORGANISATIONS & CENTRES 
VSP DELIVER                   ,9140,PRIVATE CONTRACTORS           ,08/01/2014,3577621,ERS INVOICE95027         ,2531.25,ENDEAVOUR TRAINING                      ,347945,Human Resources,TRAINING SERVICES             
DISABLED GRANTS               ,1165,NC&A OTHER                    ,08/01/2014,3577622,ERS INVOICE95028         ,8042.00,COMPLETE CONSTRUCTION SHEFFIELD         ,566918,Construction,BUILDING SERVICES             
CUSTOMER FIRST PROGRAMME      ,5750,TRAINING EXPENDITURE          ,08/01/2014,3577633,ERS INVOICE95040         ,1250.00,STUART J PYBUS                          ,557974,Human Resources,TRAINING SERVICES             
BUSINESS INTELLIGENCE         ,8440,FEE EXPENSES                  ,08/01/2014,3577634,ERS INVOICE95041         ,409.69,JOHN FARRAR                             ,505273,Consultancy,BUSINESS & MANAGEMENT CONSULTA
ADOPTION SERVICE              ,9120,OTHER AGENCIES                ,08/01/2014,3577637,ERS INVOICE95044         ,395.91,REDACTED PERSONAL DATA,589674,Unclassified Non Trade,OUT OF SCOPE FOR SIC MONITORIN
CORONIAL SERVICES             ,8440,PATHOLOGIST INVOICE           ,08/01/2014,3577638,ERS INVOICE95045         ,591.90,DR C A WILSON                           ,554965,Medical ,DOCTORS                       
ADULT SOCIAL CARE PURCHASING  ,8350,MISCELLANEOUS EXPENSES        ,08/01/2014,3577770,ERS INVOICE95046         ,4915.00,REDACTED PERSONAL DATA,585403,Social Community Care,CAREFIRST DIRECT PAYMENTS     
ADULT SOCIAL CARE PURCHASING  ,8350,MISCELLANEOUS EXPENSES        ,08/01/2014,3577771,ERS INVOICE95047         ,650.00,REDACTED PERSONAL DATA,591362,Unclassified Non Trade,OUT OF SCOPE FOR SIC MONITORIN
WORK CHOICE                   ,8440,FEE EXPENSES                  ,08/01/2014,3577772,ERS INVOICE95048         ,600.00,DG TRUCK TRAINING                       ,590273,Human Resources,TRAINING SERVICES             
EXTERNAL PROJECTS             ,8550,OTHER SERVICES                ,08/01/2014,3577774,ERS INVOICE95050         ,500.00,FIONA M. GREAVES                        ,587313,Consultancy,BUSINESS & MANAGEMENT CONSULTA
DELEGATED BUDGETS             ,8470,LEGAL FEES                    ,08/01/2014,3577775,ERS INVOICE95051         ,840.00,HOWELLS SOLICITORS LLP                  ,545844,Legal Services,SOLICITORS                    
STRATEGY AND SKILLS           ,8550,OTHER SERVICES                ,08/01/2014,3577778,ERS INVOICE95054         ,2500.00, GAIL LEATHLEY                          ,585506,Consultancy,INVESTMENT CONSULTANTS        
STRATEGY AND SKILLS           ,8550,OTHER SERVICES                ,08/01/2014,3577780,ERS INVOICE95056         ,1500.00,THE BREW COMPANY LTD                    ,589609,Catering,BREWERS                       
SAFER COMMUNITIES PARTNERSHIP ,9120,OTHER AGENCIES                ,08/01/2014,3566644,1,5000.00,SOMALI EDUCATION BREAKTHROUGH           ,297394,Education,EDUCATIONAL TRAINING PROVIDERS
SAFER COMMUNITIES PARTNERSHIP ,9120,OTHER AGENCIES                ,08/01/2014,3566646,SPCC24                   ,4511.00,SHEENA AMOS YOUTH TRUST                 ,315721,Unclassified Non Trade,YOUTH ORGANISATIONS & CENTRES 
SAFER COMMUNITIES PARTNERSHIP ,9120,OTHER AGENCIES                ,08/01/2014,3566647,1314_135                 ,4291.00,GLEADLESS VALLEY COMMUNITY FORUM        ,394371,Unclassified Non Trade,CHARITIES & VOLUNTARY ORGANISA
VISION SUPPORT SERVICE        ,5750,TRAINING EXPENDITURE          ,08/01/2014,3567946,3083,420.00,DR CHRIS STONEHOUSE                     ,560978,Medical ,DOCTORS                       
LENDING SERVICES GENERAL      ,8420,ADVERTISING AND PUBLICITY     ,08/01/2014,3568765,46758,3000.00,JONATHAN MANNING                        ,583735,Legal Services,BARRISTERS                    
SAFER COMMUNITIES PARTNERSHIP ,9120,OTHER AGENCIES                ,08/01/2014,3569262,B149                     ,4100.00,TOGETHER WOMEN PROJECTS                 ,531983,Unclassified Non Trade,CHARITIES & VOLUNTARY ORGANISA
100 APPRENTICES               ,9120,OTHER AGENCIES                ,08/01/2014,3569322,41611,624.00,G.R.MILLWARD LTD                        ,567485,Vehicles Not Buses,AUTO ELECTRICIANS             
SOUTH WEST                    ,9120,OTHER AGENCIES                ,08/01/2014,3570754,645-72                   ,645.72, FRIENDS OF GILCREST WOOD & MEADOW      ,590883,Leisure Services,"CLUBS & ASSOCIATIONS - SOCIAL,"
CENTRAL                       ,9120,OTHER AGENCIES                ,08/01/2014,3570767,1001,700.00,THAIBOXING ACADEMY                      ,590876,Leisure Services,SPORTS CLUBS & ASSOCIATIONS   
SOUTH                         ,9120,OTHER AGENCIES                ,08/01/2014,3570769,1,500.00,NETHER EDGE NEIGHBOURHOOD GROUP         ,297000,Unclassified Non Trade,CHARITIES & VOLUNTARY ORGANISA
CENTRAL                       ,9120,OTHER AGENCIES                ,08/01/2014,3570770,1,1000.00,FRIENDS OF WISEWOOD AND DISTRICT        ,574626,Unclassified Non Trade,COMMUNITY NETWORKS            
SOUTH WEST                    ,9120,OTHER AGENCIES                ,08/01/2014,3570802,DTLC01                   ,444.40,DORE & TOTLEY DAY CENTRE LUNCHEON CLUB  ,295218,Unclassified Non Trade,CHARITIES & VOLUNTARY ORGANISA
FULFILMENT TEAM               ,8350,MISCELLANEOUS EXPENSES        ,08/01/2014,3571070,J1213                    ,462.00,RADAR KEY COMPANY                       ,364216,Facilities Management,KEY CUTTING                   
COMMERCIAL ESTATE             ,8540,SECURITY SERVICES             ,08/01/2014,3571107,5817,435.00,ADMIRAL SECURITY SERVICES               ,462025,Facilities Management,SECURITY SERVICES             
BROOMHALL                     ,9030,HEALTH                        ,08/01/2014,3571568,5,6083.30,MAAN SOMALI MENTAL HEALTH SHEFFIELD     ,580721,Unclassified Non Trade,PUBLIC HEALTH SUPPLIERS       
CHANCET WOOD YOUNG CHILDREN'SC,5750,TRAINING EXPENDITURE          ,08/01/2014,3571586,FA/EXTCT/CWCC            ,600.00,SOUTH YORKS PRE SCHOOL LEARNING ALLIANCE,339062,Unclassified Non Trade,CHARITIES & VOLUNTARY ORGANISA
MANAGEMENT & SUPPORT SERVICES ,8440,FEE EXPENSES                  ,08/01/2014,3571610,SIN147883                ,329.72,OYEZ PROFESSIONAL SERVICES LTD          ,305112,Stationery ,STATIONERY SUPPLIERS          
HR ADVISORY                   ,8440,FEE EXPENSES                  ,08/01/2014,3571614,7630,525.00,COLLINGWOOD HEALTH LTD                  ,456629,Medical ,OCCUPATIONAL HEALTH           
SHEAF SQUARE/HOWARD ST        ,6020,REPAIRS AND MTCE - PROGRAMMED ,08/01/2014,3574116,5348,3163.92,COXHEAD ELECTRICAL SERVICES             ,527937,Construction,ELECTRICIANS & ELECTRICAL CONT
BARKERS POOL                  ,6030,REPAIRS AND MTCE - RESPONSIVE ,08/01/2014,3574168,5347,3666.63,COXHEAD ELECTRICAL SERVICES             ,527937,Construction,ELECTRICIANS & ELECTRICAL CONT
CAPABILITY & DEVELOPMENT      ,5750,TRAINING EXPENDITURE          ,08/01/2014,3574374,8727,420.00,NORTH WEST EMPLOYERS                    ,400125,Human Resources,EMPLOYMENT & RECRUITMENT AGENC
CENTRAL                       ,9120,OTHER AGENCIES                ,08/01/2014,3574375,1,651.87,WADSLEY MID WEEK FELLOW-SHIP            ,590748,Leisure Services,"CLUBS & ASSOCIATIONS - SOCIAL,"
OFF SITE SCHOOL VISITS        ,8040,LEARNING RESOURCES            ,08/01/2014,3574438,133,385.00,OFFSITE EDUCATION LIMITED               ,591006,Human Resources,TRAINING SERVICES             
FUTURE PROOF NEETS 14 - 25    ,9120,OTHER AGENCIES                ,08/01/2014,3574465,1069,3780.00,THE SOURCE AT MEADOWHALL                ,350485,Human Resources,TRAINING CENTRES              
FIELDWORK BUSINESS SUPPORT    ,8390,STATIONERY                    ,08/01/2014,3574504,SINV00261534             ,397.90,R A ROBERTS (OFFICE EQUIPMENT) LTD      ,207777,Furniture,OFFICE FURNITURE & EQUIPMENT  
SOUTH                         ,9120,OTHER AGENCIES                ,08/01/2014,3574981,43113,729.00,WOODSEATS ALLOTMENT SOCIETY             ,464303,Unclassified Non Trade,COMMUNITY PROJECTS            
SOUTH                         ,9120,OTHER AGENCIES                ,08/01/2014,3574984,1,980.00,BRINDLEY & MUNDELLA TARA                ,431726,Unclassified Non Trade,COMMUNITY PROJECTS            
ESTATE & ENVIORMENTAL SERVICES,6090,WASTE DISPOSAL                ,08/01/2014,3575038,60243,1834.00,R FLETCHER WASTE DISPOSAL LTD           ,473104,Environmental Services,WASTE DISPOSAL SERVICES       
ESTATE & ENVIORMENTAL SERVICES,6090,WASTE DISPOSAL                ,08/01/2014,3575040,60242,998.44,R FLETCHER WASTE DISPOSAL LTD           ,473104,Environmental Services,WASTE DISPOSAL SERVICES       
ESTATE & ENVIORMENTAL SERVICES,6090,WASTE DISPOSAL                ,08/01/2014,3575052,60240,736.00,R FLETCHER WASTE DISPOSAL LTD           ,473104,Environmental Services,WASTE DISPOSAL SERVICES       
ESTATE & ENVIORMENTAL SERVICES,6090,WASTE DISPOSAL                ,08/01/2014,3575053,60239,841.20,R FLETCHER WASTE DISPOSAL LTD           ,473104,Environmental Services,WASTE DISPOSAL SERVICES       
ESTATE & ENVIORMENTAL SERVICES,6090,WASTE DISPOSAL                ,08/01/2014,3575106,60238,955.84,R FLETCHER WASTE DISPOSAL LTD           ,473104,Environmental Services,WASTE DISPOSAL SERVICES       
INCLUSION CENTRE              ,8040,LEARNING RESOURCES            ,08/01/2014,3575116,573983,260.35,TECHNOLOGY SUPPLIES LTD                 ,324202,Education,EDUCATIONAL EQUIPMENT & SUPPLI
ESTATE & ENVIORMENTAL SERVICES,6090,WASTE DISPOSAL                ,08/01/2014,3575118,60241,988.76,R FLETCHER WASTE DISPOSAL LTD           ,473104,Environmental Services,WASTE DISPOSAL SERVICES       
WINTER GARDEN                 ,6030,REPAIRS AND MTCE - RESPONSIVE ,08/01/2014,3575166,#819                     ,1339.00,ABC ACCESS LIMITED                      ,483769,Construction,ACCESS EQUIPMENT              
FUTURE PROOF NEETS 14 - 25    ,9120,OTHER AGENCIES                ,08/01/2014,3575171,582,534.40,A MIND APART THEATRE COMPANY LTD        ,508180,Education,DRAMA SCHOOLS                 
XMAS ILLUMINATIONS            ,8440,FEE EXPENSES                  ,08/01/2014,3575275,EF28924                  ,1673.00,ELVEDON FARMS LTD                       ,409642,Stationery ,CHRISTMAS GOODS               
SAFER COMMUNITIES PARTNERSHIP ,9120,OTHER AGENCIES                ,08/01/2014,3575336,10,3916.66,SWWOP                                   ,379956,Unclassified Non Trade,CHARITIES & VOLUNTARY ORGANISA
MINOR WORKS & ADAPTATIONS     ,6020,REPAIRS AND MTCE - PROGRAMMED ,08/01/2014,3575413,1715A                    ,447.95,YORKSHIRE HOUSING FOUNDATION            ,331371,Unclassified Non Trade,CHARITIES & VOLUNTARY ORGANISA
SERVICE OVERHEADS             ,6280,HIRE OF PREMISES              ,08/01/2014,3575437,3029957,560.00,7 HILLS LEISURE TRUST                   ,566500,Leisure Services,SPORTS GROUND & STADIUM CONTRA
NORTH EAST                    ,9120,OTHER AGENCIES                ,08/01/2014,3575454,1,650.00,BRUSHES BUSY KIDS CLUB                  ,530253,Unclassified Non Trade,CHARITIES & VOLUNTARY ORGANISA
EAST - BURNGREAVE             ,1157,DWELLINGS MAIN CONTRACT       ,08/01/2014,3575470,13060010,2520.00,KIER SHEFFIELD LLP                      ,352687,Construction,PROPERTY MAINTENANCE & REPAIRS
HEATING BREAKDOWNS            ,1157,DWELLINGS MAIN CONTRACT       ,08/01/2014,3575472,13060019,15120.00,KIER SHEFFIELD LLP                      ,352687,Construction,PROPERTY MAINTENANCE & REPAIRS
HEATING BREAKDOWNS            ,1157,DWELLINGS MAIN CONTRACT       ,08/01/2014,3575493,13060006,20270.00,KIER SHEFFIELD LLP                      ,352687,Construction,PROPERTY MAINTENANCE & REPAIRS
SOUTH WEST - ABBEY BROOK      ,1157,DWELLINGS MAIN CONTRACT       ,08/01/2014,3575496,13060008,5040.00,KIER SHEFFIELD LLP                      ,352687,Construction,PROPERTY MAINTENANCE & REPAIRS
NORTH - NEW PARSON CROSS      ,1157,DWELLINGS MAIN CONTRACT       ,08/01/2014,3575499,13060009,50400.00,KIER SHEFFIELD LLP                      ,352687,Construction,PROPERTY MAINTENANCE & REPAIRS
SUPPORTED HOUSING             ,8050,FURNITURE PURCHASES           ,08/01/2014,3575502,416128,8145.00,KOZEE SLEEP                             ,531691,Furniture,"BEDS, BEDDING & BLANKETS      "
CLAIMS                        ,8470,LEGAL FEES                    ,08/01/2014,3575507,01-13-0045281/1/SHE114   ,782.00,KENNEDYS LAW LLP                        ,543971,Legal Services,SOLICITORS                    
INCLUSION CENTRE              ,6030,REPAIRS AND MTCE - RESPONSIVE ,08/01/2014,3575534,860469,652.00,PROTEC FIRE DETECTION PLC               ,289308,Facilities Management,FIRE ALARM SYSTEMS            
SOUTH WEST                    ,9120,OTHER AGENCIES                ,08/01/2014,3575778,SFJ/O98                  ,250.00,WHITELEY WOODS BOWLING CLUB             ,353004,Leisure Services,"CLUBS & ASSOCIATIONS - SOCIAL,"
SOUTH WEST                    ,9120,OTHER AGENCIES                ,08/01/2014,3575781,081213/1                 ,627.60,SHEFFIELD DERWENT WOODCRAFT FOLK        ,518616,Unclassified Non Trade,CHARITIES & VOLUNTARY ORGANISA
WINTER GARDEN                 ,6030,REPAIRS AND MTCE - RESPONSIVE ,08/01/2014,3575913,13/M12011                ,261.00,INTAKE WINDOW CLEANING SERVICES         ,205780,Cleaning and Janitorial,WINDOW CLEANERS               
COMMUNICATIONS                ,9120,OTHER AGENCIES                ,08/01/2014,3575921,INV163745                ,1500.22,A PINDER LTD                            ,202627,Facilities Management,COPYING & DUPLICATING SERVICES
STATUTORY ADVERTISING         ,8420,ADVERTISING AND PUBL-INVOICED ,08/01/2014,3575938,1390504,254.67,SHEFFIELD NEWSPAPERS LTD                ,208391,Education,NEWSPAPER & MAGAZINE PUBLISHER
DH - UTILITIES                ,1165,NC&A OTHER                    ,08/01/2014,3575940,8840818867,280.00,NPOWER (METERPLUS)                      ,464845,Utilities,ELECTRICITY COMPANIES         
STATUTORY ADVERTISING         ,8420,ADVERTISING AND PUBL-INVOICED ,08/01/2014,3575941,1390459,367.86,SHEFFIELD NEWSPAPERS LTD                ,208391,Education,NEWSPAPER & MAGAZINE PUBLISHER
STATUTORY ADVERTISING         ,8420,ADVERTISING AND PUBL-INVOICED ,08/01/2014,3575943,1390620,384.28,SHEFFIELD NEWSPAPERS LTD                ,208391,Education,NEWSPAPER & MAGAZINE PUBLISHER
DH - UTILITIES                ,1165,NC&A OTHER                    ,08/01/2014,3575945,8840818457,420.00,NPOWER (METERPLUS)                      ,464845,Utilities,ELECTRICITY COMPANIES         
DH - UTILITIES                ,1165,NC&A OTHER                    ,08/01/2014,3575947,8840818607,1260.00,NPOWER (METERPLUS)                      ,464845,Utilities,ELECTRICITY COMPANIES         
DH - UTILITIES                ,1165,NC&A OTHER                    ,08/01/2014,3575949,8840818527,2554.88,NPOWER (METERPLUS)                      ,464845,Utilities,ELECTRICITY COMPANIES         
BIS CORE SERVICES             ,8270,SUBSCRIPTIONS                 ,08/01/2014,3575950,INV4242                  ,279.00,SOCITM LIMITED                          ,374354,Human Resources,INSTITUTES - PROFESSIONAL     
ESTATE & ENVIORMENTAL SERVICES,8440,FEE EXPENSES                  ,08/01/2014,3575974,41639,687.75,RECYCLING REVOLUTION                    ,489496,Environmental Services,RECYCLING SERVICES            
BNDFC - SORBY HOUSE           ,8610,OTHER TELECOMMUNICATIONS      ,08/01/2014,3576000,16914,1041.00,ASK4 BUSINESS LTD                       ,519129,ICT,BROADBAND SERVICES            
SUPPORTED HOUSING             ,8050,ELECTRICAL GOODS              ,08/01/2014,3576012,CMD2374688               ,13510.25,DOMESTIC APPLIANCE DISTRIBUTORS         ,527171,Domestic Goods,ELECTRICAL GOODS - SALES      
PARTNERSHIP & GRANT AID MH    ,9160,PARTNERSHIP CONTRACTS         ,08/01/2014,3576031,LTH1868                  ,31252.00,SHEFFIELD MIND LTD                      ,341804,Unclassified Non Trade,CHARITIES & VOLUNTARY ORGANISA
HIGH GREEN                    ,9030,HEALTH                        ,08/01/2014,3576035,SOARCO/1203              ,2157.63,SOAR COMMUNITY                          ,581261,Unclassified Non Trade,PUBLIC HEALTH SUPPLIERS       
BURNGREAVE                    ,9030,HEALTH                        ,08/01/2014,3576036,SOARCO/1204              ,3715.50,SOAR COMMUNITY                          ,581261,Unclassified Non Trade,PUBLIC HEALTH SUPPLIERS       
P/CROSS SOUTHEYGR/LONGS/CLF   ,9030,HEALTH                        ,08/01/2014,3576038,SOARCO/1206              ,5048.75,SOAR COMMUNITY                          ,581261,Unclassified Non Trade,PUBLIC HEALTH SUPPLIERS       
FLOWER                        ,9030,HEALTH                        ,08/01/2014,3576039,SOARCO/1205              ,2878.75,SOAR COMMUNITY                          ,581261,Unclassified Non Trade,PUBLIC HEALTH SUPPLIERS       
GLEADLESS VALLEY/HEMSWORTH    ,9030,HEALTH                        ,08/01/2014,3576040,1314_162                 ,2480.00,GLEADLESS VALLEY COMMUNITY FORUM        ,581293,Unclassified Non Trade,PUBLIC HEALTH SUPPLIERS       
OUTDOOR EDUCATION             ,6110,CLEANING/DOMESTIC MAT./SUPPLY ,08/01/2014,3576043,60735180,405.84,PHS GROUP PLC                           ,207528,Cleaning and Janitorial,TOWEL SUPPLY & WASHROOM SERVIC
ESTATE & ENVIORMENTAL SERVICES,6370,GROUNDS MTCE AND ARBORICULTURE,08/01/2014,3576060,4509,1800.00,GREEN ESTATE LTD                        ,388189,Environmental Services,WASTE DISPOSAL SERVICES       
ESTATE & ENVIORMENTAL SERVICES,6390,WEED KILLING                  ,08/01/2014,3576061,4510,2700.00,GREEN ESTATE LTD                        ,388189,Environmental Services,WASTE DISPOSAL SERVICES       
SERVICE OVERHEADS             ,6280,HIRE OF PREMISES              ,08/01/2014,3576076,2175,1170.00,WOODVIEW CARE HOME                      ,456477,Social Community Care,NURSING HOMES                 
SERVICE OVERHEADS             ,6280,HIRE OF PREMISES              ,08/01/2014,3576077,2180,877.50,WOODVIEW CARE HOME                      ,456477,Social Community Care,NURSING HOMES                 
ESTATE & ENVIORMENTAL SERVICES,6390,WEED KILLING                  ,08/01/2014,3576089,4511,3750.00,GREEN ESTATE LTD                        ,388189,Environmental Services,WASTE DISPOSAL SERVICES       
QUALITY TEAM - CONTRACTS      ,9160,PARTNERSHIP CONTRACTS         ,08/01/2014,3576285,1817,12030.00,VOICEABILITY ADVOCACY                   ,416217,Unclassified Non Trade,CHARITIES & VOLUNTARY ORGANISA
SHEFFIELD CUBED               ,9030,HEALTH                        ,08/01/2014,3576286,51,16369.77, SHEFFIELD CUBED                        ,581274,Unclassified Non Trade,PUBLIC HEALTH SUPPLIERS       
ESTATE & ENVIORMENTAL SERVICES,6370,GROUNDS MTCE AND ARBORICULTURE,08/01/2014,3576317,4508,6500.00,GREEN ESTATE LTD                        ,388189,Environmental Services,WASTE DISPOSAL SERVICES       
CENTRAL                       ,9120,OTHER AGENCIES                ,08/01/2014,3576335,CENT-001                 ,300.00,SOUTH SHEFFIELD EMPOWERMENT PROJECT     ,564511,Unclassified Non Trade,COMMUNITY PROJECTS            
SOUTH                         ,9120,OTHER AGENCIES                ,08/01/2014,3576336,NETH-003                 ,480.00,SOUTH SHEFFIELD EMPOWERMENT PROJECT     ,564511,Unclassified Non Trade,COMMUNITY PROJECTS            
BUILDING STANDARDS            ,8270,SUBSCRIPTIONS                 ,08/01/2014,3576337,93966015/1000            ,808.00,BSI                                     ,409486,Consultancy,QUALITY PROCEDURES PROCESSES &
SHEFFIELD TRADING STANDARDS   ,8440,FEE EXPENSES                  ,08/01/2014,3576341,141528,600.00,MR CHRIS ASPINALL                       ,591201,Legal Services,BARRISTERS                    
NEW BANK HOUSE                ,6020,REPAIRS AND MTCE - PROGRAMMED ,08/01/2014,3576345,81650,1152.25,SILVER PRIDE FACILITIES MANAGEMENT LTD. ,208319,Cleaning and Janitorial,CLEANING SERVICES - COMMERCIAL
HME                           ,6030,REPAIRS TO TENANTED PROPERTIES,08/01/2014,3576400,SSH/CAP/RES/236/13/14    ,3012.30,TELSTAR SECURITY                        ,299814,Facilities Management,SECURITY EQUIPMENT            
GATEWAY 3 GA-C                ,8440,FEE EXPENSES                  ,08/01/2014,3576405,3028,5920.70,NORTHERN REVIVE C.I.C                   ,565072,Unclassified Non Trade,EMPLOYMENT SERVICE            
CENTRAL                       ,9120,OTHER AGENCIES                ,08/01/2014,3576406,NW01                     ,1950.00,BROOMHILL FESTIVAL                      ,420159,Unclassified Non Trade,COMMUNITY PROJECTS            
OUTDOOR EDUCATION             ,6090,WASTE DISPOSAL                ,08/01/2014,3576430,81154940,522.60,DERBYSHIRE DALES DISTRICT COUNCIL       ,325291,Unclassified Non Trade,LOCAL GOVERNMENT              
STADIA TECHNOLOGY PARK        ,8590,LANDLINE TELEPHONES           ,08/01/2014,3576837,14467,424.40,SHEFFIELD SCIENCE PARK COMPANY          ,302336,Human Resources,TRAINING SERVICES             
PORTFOLIO LEADERSHIP          ,8240,CONFERENCE EXPENSES           ,08/01/2014,3576857,PK072668                 ,350.00,DODS PARLIAMENTARY COMMUNICATIONS LTD.  ,438416,Education,PUBLISHERS                    
PARTNERSHIP INV AGREEMNT      ,9160,PARTNERSHIP CONTRACTS         ,08/01/2014,3576861,GFI001121015             ,38417.00,MAKING SPACE                            ,574625,Social Community Care,MENTAL HEALTH CENTRES         
SOUTH                         ,9120,OTHER AGENCIES                ,08/01/2014,3576868,41613,500.00,WOODSEATS FESTIVAL GROUP                ,487816,Unclassified Non Trade,CHARITIES & VOLUNTARY ORGANISA
YOUTH JUSTICE SERVICE         ,9120,OTHER AGENCIES                ,08/01/2014,3576872,7154,3400.20,SHEFFIELD FUTURES                       ,322702,Medical ,COUNSELLING & ADVICE SERVICES 
ESTATE & ENVIORMENTAL SERVICES,6090,WASTE DISPOSAL                ,08/01/2014,3576879,59104,325.00,R FLETCHER WASTE DISPOSAL LTD           ,473104,Environmental Services,WASTE DISPOSAL SERVICES       
ESTATE & ENVIORMENTAL SERVICES,6090,WASTE DISPOSAL                ,08/01/2014,3576880,60072,464.68,R FLETCHER WASTE DISPOSAL LTD           ,473104,Environmental Services,WASTE DISPOSAL SERVICES       
SUPPORTED HOUSING             ,8050,SOFT FURNISHINGS              ,08/01/2014,3576882,16298,5100.00,ALLEN UPHOLSTERY                        ,295763,Furniture,FURNITURE MNFRS - HOME & OFFIC
C & BS RETENDER               ,8440,FEE EXPENSES                  ,08/01/2014,3576909,2260500,1794.00,TROWERS & HAMLINS LLP                   ,300795,Legal Services,SOLICITORS                    
OUTDOOR EDUCATION             ,7010,ROUTINE VEHICLE REPAIR & MTCE ,08/01/2014,3576919,6098,942.56,LOVERS LEAP GARAGE                      ,445105,Facilities Management,GUEST HOUSES                  
ANNS GROVE YOUTH FACILITIES   ,1167,RENOVATIONS & REFURBISHMENTS  ,08/01/2014,3576965,3419,62500.00,HEELEY DEVELOPMENT TRUST                ,585318,Unclassified Non Trade,OUT OF SCOPE FOR SIC MONITORIN
PUBLIC HEALTH - DPH           ,9120,OTHER AGENCIES                ,08/01/2014,3576970,C88073_0002              ,950.00,HEELEY GREEN SURGERY                    ,581086,Unclassified Non Trade,PUBLIC HEALTH SUPPLIERS       
PUBLIC HEALTH - DPH           ,9120,OTHER AGENCIES                ,08/01/2014,3576972,C88050_0002              ,1430.00,JAUNTY SPRINGS HEALTH CENTRE            ,582709,Unclassified Non Trade,PUBLIC HEALTH SUPPLIERS       
YOUTH JUSTICE SERVICE         ,9120,OTHER AGENCIES                ,08/01/2014,3576976,7155,3400.20,SHEFFIELD FUTURES                       ,322702,Medical ,COUNSELLING & ADVICE SERVICES 
PUBLIC HEALTH - DPH           ,9120,OTHER AGENCIES                ,08/01/2014,3576984,C88079_0002              ,640.00,THE CROOKES PRACTICE                    ,582168,Unclassified Non Trade,PUBLIC HEALTH SUPPLIERS       
COMMUNITIES OF INTEREST       ,9030,HEALTH                        ,08/01/2014,3576992,DWB/01/14/103            ,2920.00,DARNALL WELL BEING CENTRE LTD           ,582732,Unclassified Non Trade,PUBLIC HEALTH SUPPLIERS       
DARNALL/ACRES HILL/TINSLEY    ,9030,HEALTH                        ,08/01/2014,3576996,DWB/01/14/104            ,3760.00,DARNALL WELL BEING CENTRE LTD           ,582732,Unclassified Non Trade,PUBLIC HEALTH SUPPLIERS       
SEN TAXIS                     ,7060,EXTERNAL VEHICLE HIRE         ,08/01/2014,3577012,5821,5694.80,SHEFFIELD CITY TAXIS LTD                ,301182,Transport,TAXIS & PRIVATE HIRE          
BOOKS & OTHER MATERIALS       ,8080,LIBRARY MATERIALS             ,08/01/2014,3577020,1857129,336.59,BERTRAM LIBRARY SERVICES                ,418929,Education,EDUCATIONAL EQUIPMENT & SUPPLI
BOOKS & OTHER MATERIALS       ,8080,LIBRARY MATERIALS             ,08/01/2014,3577022,1857328,702.21,BERTRAM LIBRARY SERVICES                ,418929,Education,EDUCATIONAL EQUIPMENT & SUPPLI
DIRECTORATE                   ,5720,RECRUITMENT ADVERTISING       ,08/01/2014,3577051,15275,5612.50,GATENBY SANDERSON LTD                   ,514541,Human Resources,EMPLOYMENT & RECRUITMENT AGENC
PUBLIC HEALTH - DPH           ,9120,OTHER AGENCIES                ,08/01/2014,3577070,QUARTER3HEALTHC          ,360.00,NETHERGREEN SURGERY                     ,581089,Unclassified Non Trade,PUBLIC HEALTH SUPPLIERS       
PUBLIC HEALTH - DPH           ,9120,OTHER AGENCIES                ,08/01/2014,3577073,C88044_0002              ,420.00,MANCHESTER ROAD SURGERY                 ,581101,Unclassified Non Trade,PUBLIC HEALTH SUPPLIERS       
PUBLIC HEALTH - DPH           ,9120,OTHER AGENCIES                ,08/01/2014,3577074,2,390.00,SHEFFIELD MEDICAL CENTRE                ,581174,Unclassified Non Trade,PUBLIC HEALTH SUPPLIERS       
SECURITY SERVICES             ,6030,REPAIRS AND MTCE - RESPONSIVE ,08/01/2014,3577452,61668,577.50,P N ALARMS                              ,207332,Facilities Management,BURGLAR & INTRUDER ALARM SYSTE
PUBLIC HEALTH - DPH           ,9120,OTHER AGENCIES                ,08/01/2014,3577457,C88032_0002              ,420.00, CHARNOCK HEALTH PRIMARY CARE CENTRE    ,581128,Unclassified Non Trade,PUBLIC HEALTH SUPPLIERS       
OSP2 KIER LTD CONTROL ACCOUNT ,9620,FINANCIAL PROCESSES           ,08/01/2014,3577460,140702,554507.00,KIER LIMITED                            ,516733,Facilities Management,FACILITIES MANAGEMENT         
BROOMHALL                     ,9030,HEALTH                        ,08/01/2014,3577461,6,6083.30,MAAN SOMALI MENTAL HEALTH SHEFFIELD     ,580721,Unclassified Non Trade,PUBLIC HEALTH SUPPLIERS       
NORTH                         ,9120,OTHER AGENCIES                ,08/01/2014,3577470,2013/013                 ,420.00,BOLSTERSTONE ARCHAEOLOGY HERITAGE GROUP ,528890,Unclassified Non Trade,COMMUNITY PROJECTS            
PUBLIC HEALTH - DPH           ,9120,OTHER AGENCIES                ,08/01/2014,3577474,C88068_0002              ,600.00,TOTLEY RISE MEDICAL CENTRE              ,581493,Unclassified Non Trade,PUBLIC HEALTH SUPPLIERS       
PARTNERSHIP & GRANT AID MH    ,9160,PARTNERSHIP CONTRACTS         ,08/01/2014,3577475,LTH1870                  ,3420.00,SHEFFIELD MIND LTD                      ,341804,Unclassified Non Trade,CHARITIES & VOLUNTARY ORGANISA
PARTNERSHIP & GRANT AID MH    ,9160,PARTNERSHIP CONTRACTS         ,08/01/2014,3577476,LTH1869                  ,2675.00,SHEFFIELD MIND LTD                      ,341804,Unclassified Non Trade,CHARITIES & VOLUNTARY ORGANISA
PUBLIC HEALTH - DPH           ,9120,OTHER AGENCIES                ,08/01/2014,3577513,C88010_0002              ,3030.00,DR CHAMBERS & PARTNERS BURNCROSS SURGERY,582715,Unclassified Non Trade,PUBLIC HEALTH SUPPLIERS       
OUTDOOR EDUCATION             ,6370,GROUNDS MTCE AND ARBORICULTURE,08/01/2014,3577514,46,258.50,DALE FARM                               ,330054,Unclassified Trade,DAIRY FARMERS                 
PUBLIC HEALTH - DPH           ,9120,OTHER AGENCIES                ,08/01/2014,3577516,C88016_0002              ,1750.00,DR CHARLES & PARTNERS                   ,585420,Unclassified Non Trade,PUBLIC HEALTH SUPPLIERS       
BRT NORTH                     ,1161,NC&A MAIN CONTRACT            ,08/01/2014,3577521,TPBN653A/1               ,35200.00,C R REYNOLDS (CONSTRUCTION) LIMITED     ,484708,Construction,CIVIL ENGINEERS               
VISION SUPPORT SERVICE        ,8370,PRINTING                      ,08/01/2014,3577728,SINV00256442             ,267.50,R A ROBERTS (OFFICE EQUIPMENT) LTD      ,207777,Furniture,OFFICE FURNITURE & EQUIPMENT  
BISHOPS HOUSE                 ,6150,ELECTRICITY                   ,08/01/2014,3577323,27141301,266.50,NPOWER NORTHERN LTD                     ,207191,Utilities,ELECTRICITY COMPANIES         
CONTRACTOR PAYMENTS - AMEY    ,6150,ELECTRICITY - STREET LIGHTING ,08/01/2014,3577431,11659150930,5582.24,E.ON                                    ,479524,Utilities,ELECTRICITY COMPANIES         
CONTRACTOR PAYMENTS - AMEY    ,6150,ELECTRICITY - STREET LIGHTING ,08/01/2014,3577434,11871955150,348.11,E.ON                                    ,479524,Utilities,ELECTRICITY COMPANIES         
CLOSED LANDFILL SITES         ,6190,WATER SERVICES                ,08/01/2014,3577436,800308697/142            ,10137.57,YORKSHIRE WATER PLC                     ,295854,Utilities,WATER COMPANIES               
STANIFORTH ROAD WORKSHOPS     ,7010,ROUTINE VEHICLE REPAIR & MTCE ,08/01/2014,3577442,14450819,1058.38,LOOKERS FORD                            ,474939,Vehicles Not Buses,CAR DEALERS                   
STANIFORTH ROAD WORKSHOPS     ,7010,ROUTINE VEHICLE REPAIR & MTCE ,08/01/2014,3577447,8046,1019.83,GPG 2000 LTD                            ,416225,Vehicles Not Buses,CAR BODY REPAIRS              
ADULT SOCIAL CARE PURCHASING  ,9190,SUPPORT PLANNING COSTS        ,08/01/2014,3577231,J802951                  ,295.00,AGE UK                                  ,568628,Social Community Care,CAREFIRST DIRECT PAYMENTS     
PURCHASING LEARNING DISABILITI,9250,INDEPENDENT DAY CARE          ,08/01/2014,3577232,18155+18253              ,1476.00,BURTON STREET PROJECT                   ,342774,Unclassified Non Trade,CHARITIES & VOLUNTARY ORGANISA
PURCHASING LEARNING DISABILITI,9250,INDEPENDENT DAY CARE          ,08/01/2014,3577234,18252,914.40,BURTON STREET PROJECT                   ,342774,Unclassified Non Trade,CHARITIES & VOLUNTARY ORGANISA
PURCHASING LEARNING DISABILITI,9250,INDEPENDENT DAY CARE          ,08/01/2014,3577235,18255,339.60,BURTON STREET PROJECT                   ,342774,Unclassified Non Trade,CHARITIES & VOLUNTARY ORGANISA
PURCHASING LEARNING DISABILITI,9250,INDEPENDENT DAY CARE          ,08/01/2014,3577236,SB1313                   ,420.00,ORCHARD CARE RESIDENTIAL HOME           ,362100,Social Community Care,NURSING HOMES                 
PURCHASING LEARNING DISABILITI,9250,INDEPENDENT DAY CARE          ,08/01/2014,3577237,4490,376.00,BURTON STREET PROJECT                   ,342774,Unclassified Non Trade,CHARITIES & VOLUNTARY ORGANISA
PURCHASING LEARNING DISABILITI,9250,INDEPENDENT DAY CARE          ,08/01/2014,3577238,4491,564.00,BURTON STREET PROJECT                   ,342774,Unclassified Non Trade,CHARITIES & VOLUNTARY ORGANISA
PURCHASING LEARNING DISABILITI,9250,INDEPENDENT DAY CARE          ,08/01/2014,3577239,4493,564.00,BURTON STREET PROJECT                   ,342774,Unclassified Non Trade,CHARITIES & VOLUNTARY ORGANISA
PURCHASING LEARNING DISABILITI,9250,INDEPENDENT DAY CARE          ,08/01/2014,3577243,7191,480.00,HEELEY CITY FARM                        ,301277,Unclassified Non Trade,CHARITIES & VOLUNTARY ORGANISA
PURCHASING LEARNING DISABILITI,9210,FUNDED NURSING CARE (INCOME)  ,08/01/2014,3577247,940,1221.80,THE GOOD DAYS PROJECT                   ,532126,Unclassified Non Trade,CHARITIES & VOLUNTARY ORGANISA
PURCHASING LEARNING DISABILITI,9250,INDEPENDENT DAY CARE          ,08/01/2014,3577247,940,1262.50,THE GOOD DAYS PROJECT                   ,532126,Unclassified Non Trade,CHARITIES & VOLUNTARY ORGANISA
PURCHASING LEARNING DISABILITI,9190,CITYWIDE SPOT                 ,08/01/2014,3577248,18250,1833.40,BURTON STREET PROJECT                   ,342774,Unclassified Non Trade,CHARITIES & VOLUNTARY ORGANISA
PURCHASING LEARNING DISABILITI,9190,CITYWIDE SPOT                 ,08/01/2014,3577250,1929728+15               ,1611.48,MENCAP HOMECARE                         ,361858,Unclassified Non Trade,CHARITIES & VOLUNTARY ORGANISA
PURCHASING LEARNING DISABILITI,9190,CITYWIDE SPOT                 ,08/01/2014,3577251,1929729,880.00,MENCAP HOMECARE                         ,361858,Unclassified Non Trade,CHARITIES & VOLUNTARY ORGANISA
PURCHASING LEARNING DISABILITI,9190,CITYWIDE SPOT                 ,08/01/2014,3577252,1929737,880.00,MENCAP HOMECARE                         ,361858,Unclassified Non Trade,CHARITIES & VOLUNTARY ORGANISA
PURCHASING LEARNING DISABILITI,9190,FUNDED HOME SUPPORT           ,08/01/2014,3577253,1929738+14               ,880.00,MENCAP HOMECARE                         ,361858,Unclassified Non Trade,CHARITIES & VOLUNTARY ORGANISA
PURCHASING LEARNING DISABILITI,9190,CITYWIDE SPOT                 ,08/01/2014,3577253,1929738+14               ,1239.00,MENCAP HOMECARE                         ,361858,Unclassified Non Trade,CHARITIES & VOLUNTARY ORGANISA
PURCHASING LEARNING DISABILITI,9190,CITYWIDE SPOT                 ,08/01/2014,3577254,VARIOUS/                 ,1221.92,MENCAP HOMECARE                         ,361858,Unclassified Non Trade,CHARITIES & VOLUNTARY ORGANISA
PURCHASING LEARNING DISABILITI,9250,INDEPENDENT DAY CARE          ,08/01/2014,3577255,1075,834.68,CAMPHILL VILLAGE TRUST                  ,361868,Unclassified Non Trade,CHARITIES & VOLUNTARY ORGANISA
PURCHASING LEARNING DISABILITI,9190,CITYWIDE SPOT                 ,08/01/2014,3577256,1929739,880.00,MENCAP HOMECARE                         ,361858,Unclassified Non Trade,CHARITIES & VOLUNTARY ORGANISA
PURCHASING LEARNING DISABILITI,9190,CITYWIDE SPOT                 ,08/01/2014,3577257,1929741,880.00,MENCAP HOMECARE                         ,361858,Unclassified Non Trade,CHARITIES & VOLUNTARY ORGANISA
PURCHASING LEARNING DISABILITI,9190,FUNDED HOME SUPPORT           ,08/01/2014,3577258,23394,8366.96,AFFINITY TRUST                          ,565909,Unclassified Non Trade,CHARITIES & VOLUNTARY ORGANISA
PURCHASING LEARNING DISABILITI,9190,CITYWIDE SPOT                 ,08/01/2014,3577262,265-006739               ,841.00,LEONARD CHESHIRE SERVICES               ,329306,Unclassified Non Trade,CHARITIES & VOLUNTARY ORGANISA
ADULT SOCIAL CARE PURCHASING  ,9190,CITYWIDE SPOT                 ,08/01/2014,3577263,265-006740               ,812.00,LEONARD CHESHIRE SERVICES               ,329306,Unclassified Non Trade,CHARITIES & VOLUNTARY ORGANISA
PURCHASING LEARNING DISABILITI,9190,CITYWIDE SPOT                 ,08/01/2014,3577265,11881,2130.31,CAMPHILL VILLAGE TRUST                  ,397783,Unclassified Non Trade,CHARITIES & VOLUNTARY ORGANISA
ADULT SOCIAL CARE PURCHASING  ,9190,CITYWIDE SPOT                 ,08/01/2014,3577267,265-006745               ,449.50,LEONARD CHESHIRE SERVICES               ,329306,Unclassified Non Trade,CHARITIES & VOLUNTARY ORGANISA
PURCHASING LEARNING DISABILITI,9190,CITYWIDE SPOT                 ,08/01/2014,3577268,265-006746               ,1102.00,LEONARD CHESHIRE SERVICES               ,329306,Unclassified Non Trade,CHARITIES & VOLUNTARY ORGANISA
PURCHASING LEARNING DISABILITI,9190,CITYWIDE SPOT                 ,08/01/2014,3577269,265-006747               ,12041.60,LEONARD CHESHIRE SERVICES               ,329306,Unclassified Non Trade,CHARITIES & VOLUNTARY ORGANISA
ADULT SOCIAL CARE PURCHASING  ,9190,CITYWIDE SPOT                 ,08/01/2014,3577271,265-006749               ,845.00,LEONARD CHESHIRE SERVICES               ,329306,Unclassified Non Trade,CHARITIES & VOLUNTARY ORGANISA
ADULT SOCIAL CARE PURCHASING  ,9190,CITYWIDE SPOT                 ,08/01/2014,3577272,265-006750               ,1062.75,LEONARD CHESHIRE SERVICES               ,329306,Unclassified Non Trade,CHARITIES & VOLUNTARY ORGANISA
ADULT SOCIAL CARE PURCHASING  ,9190,CITYWIDE SPOT                 ,08/01/2014,3577273,265-006751               ,279.50,LEONARD CHESHIRE SERVICES               ,329306,Unclassified Non Trade,CHARITIES & VOLUNTARY ORGANISA
ADULT SOCIAL CARE PURCHASING  ,9190,CITYWIDE SPOT                 ,08/01/2014,3577284,2910,324.01,NEW HORIZONS TRUST HOME CARE SERVICES   ,532473,Social Community Care,HOME CARE SERVICES            
ADULT SOCIAL CARE PURCHASING  ,9190,CITYWIDE SPOT                 ,08/01/2014,3577285,2911,496.89,NEW HORIZONS TRUST HOME CARE SERVICES   ,532473,Social Community Care,HOME CARE SERVICES            
ADULT SOCIAL CARE PURCHASING  ,9190,CITYWIDE SPOT                 ,08/01/2014,3577286,2912,916.00,NEW HORIZONS TRUST HOME CARE SERVICES   ,532473,Social Community Care,HOME CARE SERVICES            
PURCHASING LEARNING DISABILITI,9190,CITYWIDE SPOT                 ,08/01/2014,3577287,1618PH                   ,486.22,KEYRING LIVING SUPPORT NETWORKS         ,558736,Social Community Care,CAREFIRST DIRECT PAYMENTS     
ADULT SOCIAL CARE PURCHASING  ,9190,CITYWIDE SPOT                 ,08/01/2014,3577288,2913,773.72,NEW HORIZONS TRUST HOME CARE SERVICES   ,532473,Social Community Care,HOME CARE SERVICES            
ADULT SOCIAL CARE PURCHASING  ,9190,CITYWIDE SPOT                 ,08/01/2014,3577290,2915,686.88,NEW HORIZONS TRUST HOME CARE SERVICES   ,532473,Social Community Care,HOME CARE SERVICES            
ADULT SOCIAL CARE PURCHASING  ,9190,CITYWIDE SPOT                 ,08/01/2014,3577292,2917,366.57,NEW HORIZONS TRUST HOME CARE SERVICES   ,532473,Social Community Care,HOME CARE SERVICES            
PDSI PURCHASING               ,9190,CITYWIDE SPOT                 ,08/01/2014,3577293,2918,1316.00,NEW HORIZONS TRUST HOME CARE SERVICES   ,532473,Social Community Care,HOME CARE SERVICES            
ADULT SOCIAL CARE PURCHASING  ,9190,CITYWIDE SPOT                 ,08/01/2014,3577294,2920,450.89,NEW HORIZONS TRUST HOME CARE SERVICES   ,532473,Social Community Care,HOME CARE SERVICES            
ADULT SOCIAL CARE PURCHASING  ,9190,CITYWIDE SPOT                 ,08/01/2014,3577295,2921,716.75,NEW HORIZONS TRUST HOME CARE SERVICES   ,532473,Social Community Care,HOME CARE SERVICES            
ADULT SOCIAL CARE PURCHASING  ,9190,CITYWIDE SPOT                 ,08/01/2014,3577296,2922,389.96,NEW HORIZONS TRUST HOME CARE SERVICES   ,532473,Social Community Care,HOME CARE SERVICES            
ADULT SOCIAL CARE PURCHASING  ,9190,CITYWIDE SPOT                 ,08/01/2014,3577297,2923,1822.42,NEW HORIZONS TRUST HOME CARE SERVICES   ,532473,Social Community Care,HOME CARE SERVICES            
ADULT SOCIAL CARE PURCHASING  ,9190,FUNDED HOME SUPPORT           ,08/01/2014,3577297,2923,277.12,NEW HORIZONS TRUST HOME CARE SERVICES   ,532473,Social Community Care,HOME CARE SERVICES            
PURCHASING LEARNING DISABILITI,9190,CITYWIDE SPOT                 ,08/01/2014,3577298,1782,277.84,KEYRING LIVING SUPPORT NETWORKS         ,558736,Social Community Care,CAREFIRST DIRECT PAYMENTS     
ADULT SOCIAL CARE PURCHASING  ,9190,CITYWIDE SPOT                 ,08/01/2014,3577299,2924,1183.28,NEW HORIZONS TRUST HOME CARE SERVICES   ,532473,Social Community Care,HOME CARE SERVICES            
ADULT SOCIAL CARE PURCHASING  ,9190,CITYWIDE SPOT                 ,08/01/2014,3577300,2925,733.12,NEW HORIZONS TRUST HOME CARE SERVICES   ,532473,Social Community Care,HOME CARE SERVICES            
ADULT SOCIAL CARE PURCHASING  ,9190,CITYWIDE SPOT                 ,08/01/2014,3577301,2926,887.77,NEW HORIZONS TRUST HOME CARE SERVICES   ,532473,Social Community Care,HOME CARE SERVICES            
ADULT SOCIAL CARE PURCHASING  ,9190,CITYWIDE SPOT                 ,08/01/2014,3577302,2927,639.12,NEW HORIZONS TRUST HOME CARE SERVICES   ,532473,Social Community Care,HOME CARE SERVICES            
PURCHASING LEARNING DISABILITI,9190,CITYWIDE SPOT                 ,08/01/2014,3577309,1783,277.84,KEYRING LIVING SUPPORT NETWORKS         ,558736,Social Community Care,CAREFIRST DIRECT PAYMENTS     
ADULT SOCIAL CARE PURCHASING  ,9190,CITYWIDE SPOT                 ,08/01/2014,3577311,32869-32550              ,1694.01,TLC HOMECARE LTD                        ,573940,Social Community Care,RESIDENTIAL CARE HOMES        
ADULT SOCIAL CARE PURCHASING  ,9190,CITYWIDE SPOT                 ,08/01/2014,3577312,32873-32886              ,1613.31,TLC HOMECARE LTD                        ,573940,Social Community Care,RESIDENTIAL CARE HOMES        
ADULT SOCIAL CARE PURCHASING  ,9190,CITYWIDE SPOT                 ,08/01/2014,3577313,33209-33220              ,1637.14,TLC HOMECARE LTD                        ,573940,Social Community Care,RESIDENTIAL CARE HOMES        
PURCHASING                    ,9230,CCSP OTHER                    ,08/01/2014,3577314,38/14/38/26              ,603.60,NEWFIELD VIEW SUPPORTED LIVING LTD      ,487359,Social Community Care,DISABILITY & SPECIAL NEEDS - S
PURCHASING LEARNING DISABILITI,9230,CCSP OTHER                    ,08/01/2014,3577314,38/14/38/26              ,16146.58,NEWFIELD VIEW SUPPORTED LIVING LTD      ,487359,Social Community Care,DISABILITY & SPECIAL NEEDS - S
PURCHASING LEARNING DISABILITI,9190,CITYWIDE SPOT                 ,08/01/2014,3577315,4151,2008.50,CAMPHILL VILLAGE TRUST                  ,203704,Unclassified Non Trade,CHARITIES & VOLUNTARY ORGANISA
PURCHASING LEARNING DISABILITI,9190,CITYWIDE SPOT                 ,08/01/2014,3577316,1803,277.84,KEYRING LIVING SUPPORT NETWORKS         ,558736,Social Community Care,CAREFIRST DIRECT PAYMENTS     
PURCHASING LEARNING DISABILITI,9190,CITYWIDE SPOT                 ,08/01/2014,3577317,4492,564.00,BURTON STREET PROJECT                   ,342774,Unclassified Non Trade,CHARITIES & VOLUNTARY ORGANISA
PURCHASING LEARNING DISABILITI,9190,CITYWIDE SPOT                 ,08/01/2014,3577319,1810,277.84,KEYRING LIVING SUPPORT NETWORKS         ,558736,Social Community Care,CAREFIRST DIRECT PAYMENTS     
PURCHASING LEARNING DISABILITI,9190,CITYWIDE SPOT                 ,08/01/2014,3577321,AB/11/237600             ,1645.48,H F TRUST LIMITED                       ,362078,Unclassified Non Trade,CHARITIES & VOLUNTARY ORGANISA
PURCHASING LEARNING DISABILITI,9190,CITYWIDE SPOT                 ,08/01/2014,3577322,AB/11/237601             ,4641.24,H F TRUST LIMITED                       ,362078,Unclassified Non Trade,CHARITIES & VOLUNTARY ORGANISA
LEAVING CARE                  ,9270,CARELEAVERS ACCOMMODATION     ,08/01/2014,3577218,SCC005390                ,525.00,ALARA BED & BREAKFAST                   ,305061,Facilities Management,GUEST HOUSES                  
LEAVING CARE                  ,9270,CARELEAVERS ACCOMMODATION     ,08/01/2014,3577219,SCC005391                ,525.00,ALARA BED & BREAKFAST                   ,305061,Facilities Management,GUEST HOUSES                  
LEAVING CARE                  ,9270,CARELEAVERS ACCOMMODATION     ,08/01/2014,3577220,SCC005393                ,525.00,ALARA BED & BREAKFAST                   ,305061,Facilities Management,GUEST HOUSES                  
LEAVING CARE                  ,9270,CARELEAVERS ACCOMMODATION     ,08/01/2014,3577221,SCC005394                ,525.00,ALARA BED & BREAKFAST                   ,305061,Facilities Management,GUEST HOUSES                  
LEAVING CARE                  ,9270,CARELEAVERS ACCOMMODATION     ,08/01/2014,3577222,342,868.92,ASHIANA SHEFFIELD LTD                   ,517492,Medical ,COUNSELLING & ADVICE SERVICES 
LEAVING CARE                  ,9270,CARELEAVERS ACCOMMODATION     ,08/01/2014,3577223,348,868.92,ASHIANA SHEFFIELD LTD                   ,517492,Medical ,COUNSELLING & ADVICE SERVICES 
LEAVING CARE                  ,9270,CARELEAVERS ACCOMMODATION     ,08/01/2014,3577224,354,868.92,ASHIANA SHEFFIELD LTD                   ,517492,Medical ,COUNSELLING & ADVICE SERVICES 
PREVENTION & SUPPORT - CDT    ,9270,CARELEAVERS INDEPENDENT LIVING,08/01/2014,3577226,25185,253.70,SPECTRUM SOCIAL CARE LTD                ,328608,Human Resources,EMPLOYMENT & RECRUITMENT AGENC
WEST SA - CIN S17             ,8490,TRANSLATN/SIGN/INTERPRET FEES ,08/01/2014,3577228,52147,532.50,LANGUAGELINE SOLUTIONS                  ,471915,Human Resources,TRANSLATORS & INTERPRETERS    
WEST SA - CIN S17             ,8490,TRANSLATN/SIGN/INTERPRET FEES ,08/01/2014,3577229,52176,727.50,LANGUAGELINE SOLUTIONS                  ,471915,Human Resources,TRANSLATORS & INTERPRETERS    
COMMUNITY PHARMACY            ,9030,HEALTH                        ,08/01/2014,3577662,MPA20140108168 14        ,703.20,GLEADLESS VALLEY PHARMACY LTD           ,582171,Unclassified Non Trade,PUBLIC HEALTH SUPPLIERS       
COMMUNITY PHARMACY            ,9030,HEALTH                        ,08/01/2014,3577667,MPA20140108168 21        ,356.00,LLOYDSPHARMACY                          ,583254,Unclassified Non Trade,PUBLIC HEALTH SUPPLIERS       
COMMUNITY PHARMACY            ,9030,HEALTH                        ,08/01/2014,3577668,MPA20140108168 22        ,338.40,LLOYDSPHARMACY (6417)                   ,584552,Unclassified Non Trade,PUBLIC HEALTH SUPPLIERS       
COMMUNITY PHARMACY            ,9030,HEALTH                        ,08/01/2014,3577669,MPA20140108168 23        ,430.40,LLOYDSPHARMACY (6502)                   ,583384,Unclassified Non Trade,PUBLIC HEALTH SUPPLIERS       
COMMUNITY PHARMACY            ,9030,HEALTH                        ,08/01/2014,3577673,MPA20140108168 28        ,379.20,LLOYDSPHARMACY (6582                    ,583312,Unclassified Non Trade,PUBLIC HEALTH SUPPLIERS       
COMMUNITY PHARMACY            ,9030,HEALTH                        ,08/01/2014,3577675,MPA20140108168 30        ,705.60,LLOYDSPHARMACY                          ,583255,Unclassified Non Trade,PUBLIC HEALTH SUPPLIERS       
COMMUNITY PHARMACY            ,9030,HEALTH                        ,08/01/2014,3577676,MPA20140108168 32        ,785.60,LLOYDSPHARMACY(0296) JORDANTHORPE       ,583298,Unclassified Non Trade,PUBLIC HEALTH SUPPLIERS       
COMMUNITY PHARMACY            ,9030,HEALTH                        ,08/01/2014,3577682,MPA20140108168 39        ,292.80,NORFOLK PARK PHARMACY                   ,581499,Unclassified Non Trade,PUBLIC HEALTH SUPPLIERS       
COMMUNITY PHARMACY            ,9030,HEALTH                        ,08/01/2014,3577684,MPA20140108168 41        ,294.40,ROWLANDS PHARMACY 1270                  ,582377,Unclassified Non Trade,PUBLIC HEALTH SUPPLIERS       
COMMUNITY PHARMACY            ,9030,HEALTH                        ,08/01/2014,3577685,MPA20140108168 43        ,417.60,ROWLANDS PHARMACY 1263                  ,584547,Unclassified Non Trade,PUBLIC HEALTH SUPPLIERS       
COMMUNITY PHARMACY            ,9030,HEALTH                        ,08/01/2014,3577687,MPA20140108168 45        ,254.40,ROWLANDS PHARMACY 1274                  ,584549,Unclassified Non Trade,PUBLIC HEALTH SUPPLIERS       
COMMUNITY PHARMACY            ,9030,HEALTH                        ,08/01/2014,3577688,MPA20140108168 46        ,260.00,ROWLANDS PHARMACY 1271                  ,584548,Unclassified Non Trade,PUBLIC HEALTH SUPPLIERS       
COMMUNITY PHARMACY            ,9030,HEALTH                        ,08/01/2014,3577696,MPA20140108168 56        ,664.80,THE CO-OPERATIVE PHARMACY               ,581483,Unclassified Non Trade,PUBLIC HEALTH SUPPLIERS       
COMMUNITY PHARMACY            ,9030,HEALTH                        ,08/01/2014,3577698,MPA20140108168 58        ,1126.40,THE CO-OPERATIVE PHARMACY               ,581483,Unclassified Non Trade,PUBLIC HEALTH SUPPLIERS       
COMMUNITY PHARMACY            ,9030,HEALTH                        ,08/01/2014,3577700,MPA20140108168 62        ,497.60,THE CO-OPERATIVE PHARMACY               ,581483,Unclassified Non Trade,PUBLIC HEALTH SUPPLIERS       
COMMUNITY PHARMACY            ,9030,HEALTH                        ,08/01/2014,3577701,MPA20140108168 64        ,766.40,THE CO-OPERATIVE PHARMACY               ,581483,Unclassified Non Trade,PUBLIC HEALTH SUPPLIERS       
COMMUNITY PHARMACY            ,9030,HEALTH                        ,08/01/2014,3577704,MPA20140108168 68        ,703.20,MANOR COM PHARMACY LTD T/A VANTAGE PHARM,582719,Unclassified Non Trade,PUBLIC HEALTH SUPPLIERS       
COMMUNITY PHARMACY            ,9030,HEALTH                        ,08/01/2014,3577705,MPA20140108168 69        ,355.20,HI WELDRICK LTD  (PHARMACY)             ,584182,Unclassified Non Trade,PUBLIC HEALTH SUPPLIERS       
COMMUNITY PHARMACY            ,9030,HEALTH                        ,08/01/2014,3577707,MPA20140108168 70        ,472.80,HI WELDRICK LTD  (PHARMACY)             ,584182,Unclassified Non Trade,PUBLIC HEALTH SUPPLIERS       
COMMUNITY PHARMACY            ,9030,HEALTH                        ,08/01/2014,3577711,MPA20140108168 75        ,924.00,ROWLANDS PHARMACY 1421                  ,584551,Unclassified Non Trade,PUBLIC HEALTH SUPPLIERS       
COMMUNITY PHARMACY            ,9030,HEALTH                        ,08/01/2014,3577715,MPA20140108168 8         ,628.80,BOOTS UK LTD                            ,582725,Unclassified Non Trade,PUBLIC HEALTH SUPPLIERS       
COMMUNITY PHARMACY            ,9030,HEALTH                        ,08/01/2014,3577716,MPA20140108168 81        ,484.00,BOOTS UK LTD                            ,587379,Unclassified Non Trade,PUBLIC HEALTH SUPPLIERS       
ADULT SOCIAL CARE PURCHASING  ,4260,RESIDENTIAL COSTS RECOVERED   ,08/01/2014,3577134,J773834 081213           ,3200.54,LOXLEY COURT                            ,362146,Social Community Care,NURSING HOMES                 
ADULT SOCIAL CARE PURCHASING  ,9200,CONTINUING RESIDENTIAL CARE   ,08/01/2014,3577135,J776393 050114           ,16701.00,LOXLEY COURT                            ,362146,Social Community Care,NURSING HOMES                 
ADULT SOCIAL CARE PURCHASING  ,9210,CONTINUING NURSING CARE       ,08/01/2014,3577135,J776393 050114           ,21025.56,LOXLEY COURT                            ,362146,Social Community Care,NURSING HOMES                 
PURCHASING                    ,9210,CONTINUING NURSING CARE       ,08/01/2014,3577135,J776393 050114           ,2001.56,LOXLEY COURT                            ,362146,Social Community Care,NURSING HOMES                 
ADULT SOCIAL CARE PURCHASING  ,4260,RESIDENTIAL COSTS RECOVERED   ,08/01/2014,3577136,J794919 050114           ,575.09,SILVER LODGE CARE HOME                  ,361763,Social Community Care,NURSING HOMES                 
PURCHASING                    ,9200,CONTINUING RESIDENTIAL CARE   ,08/01/2014,3577137,J799874 020214           ,4400.00,SANDFORD HOUSE LTD                      ,578938,Social Community Care,RESIDENTIAL CARE HOMES        
ADULT SOCIAL CARE PURCHASING  ,9200,CONTINUING RESIDENTIAL CARE   ,08/01/2014,3577138,J799876 020214           ,1476.00,PYMGATE HOUSE REST HOME                 ,580634,Social Community Care,RESIDENTIAL CARE HOMES        
PURCHASING                    ,9200,CONTINUING RESIDENTIAL CARE   ,08/01/2014,3577139,J799879 020214           ,3450.00,ROEFIELD SPECIALIST CARE LIMITED        ,585052,Social Community Care,RESIDENTIAL CARE HOMES        
PURCHASING LEARNING DISABILITI,9200,CONTINUING RESIDENTIAL CARE   ,08/01/2014,3577140,J799880 020214           ,6885.52,ROSELEA                                 ,586292,Social Community Care,RESIDENTIAL CARE HOMES        
ADULT SOCIAL CARE PURCHASING  ,9200,CONTINUING RESIDENTIAL CARE   ,08/01/2014,3577141,J799881 020214           ,1672.00,HAS CAREPLUS LTD T/A ST MARYS MOUNT     ,588265,Social Community Care,RESIDENTIAL CARE HOMES        
ADULT SOCIAL CARE PURCHASING  ,9200,CONTINUING RESIDENTIAL CARE   ,08/01/2014,3577142,J799885 020214           ,4474.05,SANDFORD HOUSE                          ,361790,Social Community Care,RESIDENTIAL CARE HOMES        
PURCHASING                    ,9200,CONTINUING RESIDENTIAL CARE   ,08/01/2014,3577142,J799885 020214           ,18608.72,SANDFORD HOUSE                          ,361790,Social Community Care,RESIDENTIAL CARE HOMES        
ADULT SOCIAL CARE PURCHASING  ,9200,CONTINUING RESIDENTIAL CARE   ,08/01/2014,3577143,J799888 020214           ,4740.00,MIMOSA HEALTHCARE LIMITED               ,362253,Social Community Care,RESIDENTIAL CARE HOMES        
ADULT SOCIAL CARE PURCHASING  ,9210,CONTINUING NURSING CARE       ,08/01/2014,3577143,J799888 020214           ,13747.53,MIMOSA HEALTHCARE LIMITED               ,362253,Social Community Care,RESIDENTIAL CARE HOMES        
